Workbook

Sheet 0 Úvod
C4: Úvod
C5: Toto je jednoduchý finanční model, který doplňuje stávající výsledky analýz CBA obsažených ve studiích proveditelnosti a ekonomických hodnoceních českých železničních infrastrukturních projektů. Model je založen na analýze výnosů a je plně v souladu se současnou metodikou Evropské komise o CBA. Připravil DG REGIO/F.2, SUDOP PRAHA a.s. Aktualizoval SUDOP PRAHA a.s. 2016, verze 01-2017
C15: Základní informace
C17: Zdroj dat: | D17: Studie proveditelnosti pro trať Praha Smíchov – Plzeň, doplnění 2016
C19: Cenová úroveň (CÚ) | D19: 2016 | F19: Začátek stavebních prací | G19: 2009 | I19: Doba hodnocení | J19: 30 | M19: Směnný kurz (CZK/EUR) | N19: 25.66
C21: Diskontní sazba | D21: 0.04 | F21: Začátek provozu | G21: 2024 | M21: DPH | N21: 0.21
C25: Hodnocené scénáře
B26: BEZ PROJEKTU | C26: Odpovídá současnému technickému stavu jednotlivých úseků 3. TŽK a jeho očekávanému vývoji po dobu hodnocení projektu. Cílem této varianty je simulovat situaci, jak by se s největší pravděpodobností vyvíjel stav infrastruktury a z něj plynoucí změny v dopravě, aniž by se do infrastruktury vkládaly investiční prostředky.
B31: S PROJEKTEM | C31: Předpokládá aktualizovanou projektovou variantu č. 2 dle Podkladové studie ve zpřesnění dle Provozně ekonomické studie. Rozdíl oproti těmto uvedeným materiálům potom spočívá v harmonogramu výstavby. Nově se předpokládá uvedení celé trati Praha – Plzeň do provozu v roce 2024 (ukončení výstavby posledního úseku v roce 2023). Varianta projektová 2 spočívá v optimalizaci celé tratě Praha – Beroun – Plzeň ve stávající stopě vyjma úseku Ejpovice – Plzeň, který je navržen v nové stopě. V úseku Praha – Beroun spočívá optimalizace ve zvýšení traťové rychlosti na 90 až 140 km/h, úpravě všech železničních stanic a zastávek, náhradě úrovňových přejezdů mimoúrovňovým křížením, instalaci nového zabezpečovacího zařízení 3. kategorie, zajištění prostorové průchodnosti UICGC a traťové třídy zatížení D4. V úseku Rokycany – Ejpovice – Plzeň bude trať přeložena do nové stopy (přeložka Ejpovice). Stávající trať přes žst. Chrást u Plzně bude částečně ponechána pro místní dopravu a částečně zrušena.
C38: Seznam tabulek
C40: List / tabulka | E40: Celk. investiční náklady | F40: Zůstatková hodnota | G40: Provozní náklady | H40: Tržby | I40: Fin. analýza (FRR_C) | J40: Kontrola dotací | K40: Mezera ve financování | L40: Finanční struktura | M40: Udržitelnost | N40: FRR_K
C41: V konstantních cenách* | E41: 1.1. | F41: 2.1., 2.2 | G41: 3.1., 3.2., 3.3 | H41: 4.1., 4.2., 4.3 | I41: 5.1. | J41: 6.1., 6.2., 6.3 | K41: 7.1., 7.2 | L41: 8.1. | M41: 9.1. | N41: 10.1.
C42: V běžných cenách** | E42: 1.2. | K42: 7.3. | L42: 8.2.
C44: * v případě "stavebního souboru" (např. tranzitní železniční koridor) - všechny tabulky se vztahují na celý projekt
C45: ** tabulky pro projektovou žádost
C49: Míra inflace
C51: rok | D51: 2006 | E51: 2007 | F51: 2008 | G51: 2009 | H51: 2010 | I51: 2011 | J51: 2012 | K51: 2013 | L51: 2014 | M51: 2015 | N51: 2016 | O51: ***
C52: inflace | D52: 0.025 | E52: 0.028 | F52: 0.063 | G52: 0.01 | H52: 0.015 | I52: 0.019 | J52: 0.033 | K52: 0.014 | L52: 0.004 | M52: 0.003 | N52: 0.01
D53: 1 | E53: 1 | F53: 1 | G53: 1 | H53: 1 | I53: 1 | J53: 1 | K53: =J53*(1+K52) -> 1.014 | L53: =K53*(1+L52) -> 1.018056 | M53: =L53*(1+M52) -> 1.021110168 | N53: =M53*(1+N52) -> 1.03132127
C54: zdroj: Prováděcí pokyny pro hodnocení efektivnosti investic železničních staveb (č. 26/2013-910-IZD/3), MD 2013 - příloha A.2; ČNB (Zpráva o inflaci I/2016)
C56: Index cen stavebních prací
C58: rok | D58: 2006 | E58: 2007 | F58: 2008 | G58: 2009 | H58: 2010 | I58: 2011 | J58: 2012 | K58: 2013 | L58: 2014 | M58: 2015 | N58: 2016
C59: inflace | D59: 0.029 | E59: 0.041 | F59: 0.045 | G59: 0.012 | H59: -0.002 | I59: -0.005 | J59: -0.007 | K59: -0.011 | L59: 0.005 | M59: 0 | N59: 0
D60: 1 | E60: 1 | F60: 1 | G60: 1 | H60: 1 | I60: 1 | J60: 1 | K60: 1 | L60: =K60*(1+L59) -> 1.005 | M60: =L60*(1+M59) -> 1.005 | N60: =M60*(1+N59) -> 1.005
C61: zdroj: aktuálně platné opatření SFDI (č.j. 3029/SFDI/320079/8567/2015); ČSÚ
C63: *** pro další roky platí v souladu s Prováděcími pokyny hodnota 2,00%
C65: HDP na hlavu
C67: rok | D67: 2005 | E67: 2006 | F67: 2007 | G67: 2008 | H67: 2009 | I67: 2010 | J67: 2011 | K67: 2012 | L67: 2013 | M67: 2014 | N67: 2015
C68: HDP na hlavu | D68: 0.062 | E68: 0.065 | F68: 0.05 | G68: 0.017 | H68: -0.054 | I68: 0.02 | J68: 0.022 | K68: -0.01 | L68: -0.005 | M68: 0.018 | N68: 0.047
C70: rok | D70: 2016 | E70: 2017 | F70: 2018 | G70: 2019 | H70: 2020 | I70: 2030 | J70: 2050
C71: HDP na hlavu | D71: 0.028 | E71: 0.029 | F71: 0.03 | G71: 0.03 | H71: 0.02 | I71: 0.01 | J71: 0.01
C73: zdroj: Prováděcí pokyny pro hodnocení efektivnosti investic železničních staveb (č. 26/2013-910-IZD/3), MD 2013 - příloha A.2; ČSÚ; ČNB (Zpráva o inflaci I/2016)
C77: Růst reálných mezd
C79: rok | D79: 2012 | E79: 2013 | F79: 2014 | G79: 2015 | H79: 2016 | I79: 2017 | J79: 2018 | K79: 2019 | L79: 2020 | M79: 2030 | N79: 2050
C80: růst mezd | D80: -0.008 | E80: -0.015 | F80: 0.019 | G80: 0.028 | H80: 0.03 | I80: 0.025 | J80: 0.03 | K80: 0.03 | L80: 0.025 | M80: 0.02 | N80: 0.02
D81: 1 | E81: =D81*(1+E80*'3 Provozní náklady'!$D$71) -> 0.985 | F81: =E81*(1+F80*'3 Provozní náklady'!$D$71) -> 1.003715 | G81: =F81*(1+G80*'3 Provozní náklady'!$D$71) -> 1.03181902 | H81: =G81*(1+H80*'3 Provozní náklady'!$D$71) -> 1.062773591 | I81: =H81*(1+I80*'3 Provozní náklady'!$D$71) -> 1.08934293 | J81: =I81*(1+J80*'3 Provozní náklady'!$D$71) -> 1.122023218 | K81: =J81*(1+K80*'3 Provozní náklady'!$D$71) -> 1.155683915 | L81: =K81*(1+L80*'3 Provozní náklady'!$D$71) -> 1.184576013 | M81: =L81*(1+M80*'3 Provozní náklady'!$D$71)^(M79-L79) -> 1.44399155 | N81: =M81*(1+N80*'3 Provozní náklady'!$D$71)^(N79-M79) -> 2.145695483
C82: zdroj: do r. 2016 vč. ČNB (Zpráva o inflaci I/2016); od r. 2017 vč. Prováděcí pokyny pro hodnocení efektivnosti investic železničních staveb (č. 26/2013-910-IZD/3), MD 2013 - příloha A.2
C87: Vyplnit pouze žlutě podbarvené buňky!

Sheet 1 Celkové investiční náklady
B2: 1.1. | C2: Celkové investiční náklady (CZK) * | G2: V roce
B3: a | C3: (konstantní ceny) | F3: Celk. projekt. náklady | G3: ='0 Úvod'!G19 -> 2009 | H3: =G3+1 -> 2010 | I3: =H3+1 -> 2011 | J3: 2012 | K3: 2013 | L3: 2014 | M3: 2015 | N3: 2016 | O3: 2017 | P3: 2018 | Q3: 2019 | R3: 2020 | S3: 2021 | T3: 2022 | U3: 2023
C4: ='0 Úvod'!D19 -> 2016
C5: Přípravná a projektová dokumentace | F5: =SUM(G5:U5,G20:U20) -> 1565531475 | G5: 570945863.5 | H5: 23589792.82 | I5: 30897155.14 | J5: 31621200.42 | K5: 23553169.94 | L5: 74835585.3 | M5: 59028115.41 | N5: 76031557.91 | O5: 94579432.05 | P5: 60314544.5 | Q5: 98721231.96 | R5: 113293045.7 | S5: 106047592.8 | T5: 112262032.7 | U5: 89811154.48
C6: Zábory a nákupy pozemků | F6: =SUM(G6:U6,G21:U21) -> 283213449.8 | G6: 30688270.77 | H6: 57836241.91 | I6: 19302360.7 | J6: 6720858.572 | K6: 13006784 | L6: 418892 | M6: 6334799 | N6: 27257313.56 | O6: 51241781.74 | P6: 56573701.82 | Q6: 9843795.13 | R6: 868150.6303 | S6: 624000 | T6: 2439500 | U6: 57000
C7: Stavby a konstrukce (stavební náklady) | F7: 2.369562828e+10 | G7: 1163616890 | H7: 2795256572 | I7: 2523812875 | J7: 1437534610 | K7: 590190411.4 | L7: 582670272.6 | M7: 1235619067 | N7: 1087936557 | O7: 2464790415 | P7: 1916961770 | Q7: 2698170995 | R7: 1955691218 | S7: 1116290450 | T7: 1181705608 | U7: 945380573.5
C8: Stroje a zařízení | F8: 0 | G8: 0 | H8: 0 | I8: 0 | J8: 0 | K8: 0 | L8: 0 | M8: 0 | N8: 0 | O8: 0 | P8: 0 | Q8: 0 | R8: 0 | S8: 0 | T8: 0 | U8: 0
C9: Technická asistence, propagace | F9: 254244010.9 | G9: 19511989.05 | H9: 7587465.718 | I9: 9975260.831 | J9: 3757090.305 | K9: 9240705.908 | L9: 10986927.56 | M9: 16201844.09 | N9: 22298217.38 | O9: 46501658.15 | P9: 49399883.89 | Q9: 11846700.99 | R9: 14502500.69 | S9: 11162904.5 | T9: 11817056.08 | U9: 9453805.735
C10: Technický dozor | F10: 581841449.3 | G10: 37037569.23 | H10: 27011137.48 | I10: 26967619.82 | J10: 22419850.28 | K10: 19402944.44 | L10: 26410967.44 | M10: 28588065.93 | N10: 34983562.98 | O10: 53897878.49 | P10: 44805575.56 | Q10: 54496115.32 | R10: 59868213.95 | S10: 50233070.25 | T10: 53176752.34 | U10: 42542125.81
C11: Celkové investiční náklady bez rezervy (konstantní ceny) | F11: 2.638045867e+10 | G11: =SUM(G5:G10) -> 1821800583 | H11: 2911281210 | I11: 2610955272 | J11: 1502053610 | K11: 655394015.6 | L11: 695322644.9 | M11: 1345771892 | N11: 1248507209 | O11: 2711011166 | P11: 2128055476 | Q11: 2873078838 | R11: 2144223129 | S11: 1284358018 | T11: 1361400949 | U11: 1087244660
C12: Rezerva | F12: 1752085535 | N12: 39657011.18 | O12: 612635960.8 | P12: 310619909.1 | Q12: 269765223.6 | R12: 195069767.2 | S12: 111629045 | T12: 118170560.8 | U12: 94538057.35
C13: Celkové investiční náklady včetně rezervy (konstantní ceny) | F13: 2.81325442e+10 | G13: =SUM(G11:G12) -> 1821800583 | H13: =SUM(H11:H12) -> 2911281210 | I13: =SUM(I11:I12) -> 2610955272 | J13: 1502053610 | K13: 655394015.6 | L13: 695322644.9 | M13: 1345771892 | N13: 1288164220 | O13: 3323647126 | P13: 2438675385 | Q13: 3142844062 | R13: 2339292896 | S13: 1395987062 | T13: 1479571509 | U13: =SUM(U11:U12) -> 1181782717
C14: ='0 Úvod'!$N$21*1000 -> 210 | F14: 5907834283 | G14: =G13*$C14/1000 -> 382578122.4 | H14: =H13*$C14/1000 -> 611369054.1 | I14: =I13*$C14/1000 -> 548300607.1 | J14: 315431258.1 | K14: 137632743.3 | L14: 146017755.4 | M14: 282612097.2 | N14: 270514486.2 | O14: 697965896.5 | P14: 512121830.9 | Q14: 659997252.9 | R14: 491251508.2 | S14: 293157283.1 | T14: 310710017 | U14: =U13*$C14/1000 -> 248174370.5
C15: Celkové investiční náklady včetně DPH (konstantní ceny) | F15: 3.404037849e+10 | G15: =G14+G13 -> 2204378705 | H15: =H14+H13 -> 3522650264 | I15: =I14+I13 -> 3159255879 | J15: 1817484868 | K15: 793026758.9 | L15: 841340400.3 | M15: 1628383989 | N15: 1558678706 | O15: 4021613023 | P15: 2950797216 | Q15: 3802841315 | R15: 2830544404 | S15: 1689144346 | T15: 1790281526 | U15: =U14+U13 -> 1429957087
B17: 1.1. | C17: Celkové investiční náklady (CZK) *
B18: b | C18: (konstantní ceny) | G18: =U3+1 -> 2024 | H18: =G18+1 -> 2025 | I18: =H18+1 -> 2026 | J18: 2027 | K18: 2028 | L18: 2029 | M18: 2030 | N18: 2031 | O18: 2032 | P18: 2033 | Q18: 2034 | R18: 2035 | S18: 2036 | T18: 2037 | U18: 2038
C19: ='0 Úvod'!D19 -> 2016
C20: =C5 -> Přípravná a projektová dokumentace
C21: Zábory a nákupy pozemků
C22: Stavby a konstrukce (stavební náklady)
C23: Stroje a zařízení
C24: Technická asistence, propagace
C25: Technický dozor
C26: Celkové investiční náklady bez rezervy (konstantní ceny) | G26: =SUM(G20:G25) -> 0 | H26: 0 | I26: 0 | J26: 0 | K26: 0 | L26: 0 | M26: 0 | N26: 0 | O26: 0 | P26: 0 | Q26: 0 | R26: 0 | S26: 0 | T26: 0 | U26: 0
C27: Rezerva
C28: Celkové investiční náklady včetně rezervy (konstantní ceny) | G28: =SUM(G26:G27) -> 0 | H28: 0 | I28: 0 | J28: 0 | K28: 0 | L28: 0 | M28: 0 | N28: 0 | O28: 0 | P28: 0 | Q28: 0 | R28: 0 | S28: 0 | T28: 0 | U28: 0
C29: ='0 Úvod'!$N$21*1000 -> 210 | G29: =G28*$C29/1000 -> 0 | H29: =H28*$C29/1000 -> 0 | I29: =I28*$C29/1000 -> 0 | J29: 0 | K29: 0 | L29: 0 | M29: 0 | N29: 0 | O29: 0 | P29: 0 | Q29: 0 | R29: 0 | S29: 0 | T29: 0 | U29: =U28*$C29/1000 -> 0
C30: Celkové investiční náklady včetně DPH (konstantní ceny) | G30: =G29+G28 -> 0 | H30: 0 | I30: 0 | J30: 0 | K30: 0 | L30: 0 | M30: 0 | N30: 0 | O30: 0 | P30: 0 | Q30: 0 | R30: 0 | S30: 0 | T30: 0 | U30: 0
B33: 1.2. | C33: Celkové investiční náklady (CZK)
B34: a | C34: (běžné ceny) | D34: Nezpůsobilé náklady | E34: Způsobilé náklady | F34: Celk. projekt. náklady | G34: =G3 -> 2009 | H34: =G34+1 -> 2010 | I34: =H34+1 -> 2011 | J34: 2012 | K34: 2013 | L34: 2014 | M34: 2015 | N34: 2016 | O34: 2017 | P34: 2018 | Q34: 2019 | R34: 2020 | S34: 2021 | T34: 2022 | U34: 2023
C35: Způsobilost nákladů **
C36: Poplatky za plány/stavební projekt | D36: =F36-E36 -> 0 | F36: =SUM(G36:U36,G52:U52) -> 0
C37: Nákup pozemků | D37: 0 | F37: =SUM(G37:U37,G53:U53) -> 0
C38: Výstavba | D38: 0 | F38: 0
C39: Prostory a strojní zařízení nebo vybavení | D39: 0 | F39: 0
C40: Nepředvídané události | D40: 0 | F40: 0
C41: Úprava ceny (v příslušném případě) | D41: 0 | F41: 0
C42: Propagace | D42: 0 | F42: 0
C43: Dozor v průběhu provádění výstavby | D43: 0 | F43: 0
C44: Technická pomoc | D44: 0 | F44: 0
C45: Celkové investiční náklady (běžné ceny) | D45: =SUM(D36:D44) -> 0 | E45: =SUM(E36:E44) -> 0 | F45: 0 | G45: =SUM(G36:G44) -> 0 | H45: 0 | I45: 0 | J45: 0 | K45: 0 | L45: 0 | M45: 0 | N45: 0 | O45: 0 | P45: 0 | Q45: 0 | R45: 0 | S45: 0 | T45: 0 | U45: 0
C46: ='0 Úvod'!$N$21*1000 -> 210 | D46: =D45*$C46/1000 -> 0 | E46: =E45*$C46/1000 -> 0 | F46: 0 | G46: =G45*$C46/1000 -> 0 | H46: =H45*$C46/1000 -> 0 | I46: =I45*$C46/1000 -> 0 | J46: 0 | K46: 0 | L46: 0 | M46: 0 | N46: 0 | O46: 0 | P46: 0 | Q46: 0 | R46: 0 | S46: 0 | T46: 0 | U46: =U45*$C46/1000 -> 0
C47: Celkové investiční náklady vč. DPH (běžné ceny) | D47: =SUM(D45:D46) -> 0 | E47: =SUM(E45:E46) -> 0 | F47: 0 | G47: =G46+G45 -> 0 | H47: 0 | I47: 0 | J47: 0 | K47: 0 | L47: 0 | M47: 0 | N47: 0 | O47: 0 | P47: 0 | Q47: 0 | R47: 0 | S47: 0 | T47: 0 | U47: 0
B49: 1.2. | C49: Celkové investiční náklady (CZK)
B50: b | C50: (běžné ceny) | G50: =U34+1 -> 2024 | H50: =G50+1 -> 2025 | I50: =H50+1 -> 2026 | J50: 2027 | K50: 2028 | L50: 2029 | M50: 2030 | N50: 2031 | O50: 2032 | P50: 2033 | Q50: 2034 | R50: 2035 | S50: 2036 | T50: 2037 | U50: 2038
C51: Způsobilost nákladů **
C52: Poplatky za plány/stavební projekt
C53: Nákup pozemků
C54: Výstavba
C55: Prostory a strojní zařízení nebo vybavení
C56: Nepředvídané události
C57: Úprava ceny (v příslušném případě)
C58: Propagace
C59: Dozor v průběhu provádění výstavby
C60: Technická pomoc
C61: Celkové investiční náklady (běžné ceny) | G61: =SUM(G52:G60) -> 0 | H61: 0 | I61: 0 | J61: 0 | K61: 0 | L61: 0 | M61: 0 | N61: 0 | O61: 0 | P61: 0 | Q61: 0 | R61: 0 | S61: 0 | T61: 0 | U61: 0
C62: ='0 Úvod'!$N$21*1000 -> 210 | G62: =G61*$C62/1000 -> 0 | H62: =H61*$C62/1000 -> 0 | I62: =I61*$C62/1000 -> 0 | J62: 0 | K62: 0 | L62: 0 | M62: 0 | N62: 0 | O62: 0 | P62: 0 | Q62: 0 | R62: 0 | S62: 0 | T62: 0 | U62: =U61*$C62/1000 -> 0
C63: Celkové investiční náklady vč. DPH (běžné ceny) | G63: =G62+G61 -> 0 | H63: 0 | I63: 0 | J63: 0 | K63: 0 | L63: 0 | M63: 0 | N63: 0 | O63: 0 | P63: 0 | Q63: 0 | R63: 0 | S63: 0 | T63: 0 | U63: 0
B66: Komentáře
B68: * v případě "souboru staveb" (např. tranzitní železniční koridor) - celkové náklady se vztahují na celý projekt
B69: ** jednotlivé položky odpovídají definici dle prováděcího Nařízení komise (EU) 2015/207 přílohy II, části C.1

Sheet 2 Zůstatková hodnota
B2: 2.1. | C2: Životnost investice (roky) | D2: Náklady (CZK) | E2: Vážení | G2: 2.3. | H2: Výpočet zůstatkové hodnoty
C3: Zabezpečovací zařízení | D3: 2340953769 | E3: =D3*D20 -> 4.681907537e+10 | H3: Celková životnost investice | I3: =$E$16 -> 44
C4: Sdělovací zařízení | D4: 714866679.9 | E4: =D4*D21 -> 1.42973336e+10 | H4: Délka provozní fáze hodnotícího období | I4: ='0 Úvod'!$J$19-('0 Úvod'!$G$21-'0 Úvod'!$G$19) -> 15
C5: Silnoproudé rozvody a zařízení | D5: 1134427176 | E5: 2.268854351e+10 | H5: Životnost investice po skončení hodnotícího období | I5: =IF((I3-I4)<0,0,I3-I4) -> 29
C6: Železniční svršek | D6: 5851400189 | E6: 1.755420057e+11 | H6: Průměrný nákladový peněžní tok (nediskontovaný) | I6: =SUM('5 Finanční analýza (FRR_C)'!E13:S13,'5 Finanční analýza (FRR_C)'!E25:S25)/('0 Úvod'!J19-('0 Úvod'!$G$21-'0 Úvod'!G19)) -> 425049147.6
C7: Železniční spodek | D7: 3347452757 | E7: 2.008471654e+11 | H7: ZŮSTATKOVÁ HODNOTA | I7: =IF((I6*(1/(1+'0 Úvod'!D21))*(((1/(1+'0 Úvod'!D21))^I5-1)/((1/(1+'0 Úvod'!D21))-1)))<0,0,I6*(1/(1+'0 Úvod'!D21))*(((1/(1+'0 Úvod'!D21))^I5-1)/((1/(1+'0 Úvod'!D21))-1))) -> 7218913428
C8: Mosty, propustky, zdi | D8: 2692905928 | E8: 2.019679446e+11
C9: Tunely | D9: 2322301867 | E9: 2.09007168e+11
C10: Komunikace a zpevněné plochy | D10: 463156921.6 | E10: 9263138432
C11: Trakce | D11: 2214598063 | E11: 6.643794189e+10
C12: Inženýrské sítě (trubní vedení, kabelovody) | D12: 271681179.3 | E12: 5433623587
C13: Pozemní stavby, nástupiště a přístřešky | D13: 1055513670 | E13: 4.222054679e+10
C14: Objekty ochrany životního prostředí | D14: 676774677.1 | E14: 2.030324031e+10
C15: CELKEM | D15: =SUM(D3:D14) -> 2.308603288e+10 | E15: =SUM(E3:E14) -> 1.014827727e+12
B16: Celková životnost investice (roky) | E16: =ROUND(E15/D15,0) -> 44
B19: 2.2. | C19: Životnost jednotlivých prvků | D19: roky | G19: 2.4. | H19: Diskont. zůstatková hodnota investic pro FA | I19: =I7*(1/(1+'0 Úvod'!D21)^('0 Úvod'!J19-1)) -> 2314754803
C20: Zabezpečovací zařízení | D20: =100/5 -> 20 | H20: Diskontovaná zůstatková hodnota investic v EUR | I20: =I19/'0 Úvod'!N19 -> 90208682.9
C21: Sdělovací zařízení | D21: 20
C22: Silnoproudé rozvody a zařízení | D22: 20
C23: Železniční svršek | D23: 30
C24: Železniční spodek | D24: 60
C25: Mosty, propustky, zdi | D25: 75
C26: Tunely | D26: 90
C27: Komunikace a zpevněné plochy | D27: 20
C28: Trakce | D28: 30
C29: Inženýrské sítě (trubní vedení, kabelovody) | D29: 20
C30: Pozemní stavby, nástupiště a přístřešky | D30: 40
C31: Objekty ochrany životního prostředí | D31: 30

Sheet 3 Provozní náklady
B2: 3.1. | C2: Celkové provozní náklady (CZK) | E2: ='1 Celkové investiční náklady'!G3 -> 2009 | F2: =E2+1 -> 2010 | G2: 2011 | H2: 2012 | I2: 2013 | J2: 2014 | K2: 2015 | L2: 2016 | M2: 2017 | N2: 2018 | O2: 2019 | P2: 2020 | Q2: 2021 | R2: 2022 | S2: 2023
B3: a | C3: Scénář s projektem | D3: Celkem
C4: Náklady na údržbu a provoz infrastruktury | D4: =SUM(E4:S4,E11:S11) -> 4975016441 | E4: 154438210.2 | F4: 160580374.1 | G4: 194821024.9 | H4: 136047405.6 | I4: 126146188 | J4: 164309269.2 | K4: 159701253.1 | L4: 156577675 | M4: 156577675 | N4: 156577675 | O4: 167443295.1 | P4: 167497623.2 | Q4: 167552223 | R4: 167607095.7 | S4: 167662242.8
C5: Periodické provozní náklady / opravy | D5: =SUM(E5:S5,E12:S12) -> 0
C6: Náklady na řízení provozu | D6: 2292207907 | E6: 104197297 | F6: 104394240.5 | G6: 114276447.9 | H6: 92856289.38 | I6: 90865527.88 | J6: 92310934.42 | K6: 99301727.47 | L6: 99743209.22 | M6: 99743209.22 | N6: 99743209.22 | O6: =IF(O2<=('0 Úvod'!$G$19+'0 Úvod'!$J$19-1),SUMPRODUCT(O72:O84,O106:O118)+O120,0) -> 78880018.91 | P6: =IF(P2<=('0 Úvod'!$G$19+'0 Úvod'!$J$19-1),SUMPRODUCT(P72:P84,P106:P118)+P120,0) -> 80852019.38 | Q6: =IF(Q2<=('0 Úvod'!$G$19+'0 Úvod'!$J$19-1),SUMPRODUCT(Q72:Q84,Q106:Q118)+Q120,0) -> 82873319.86 | R6: =IF(R2<=('0 Úvod'!$G$19+'0 Úvod'!$J$19-1),SUMPRODUCT(R72:R84,R106:R118)+R120,0) -> 84945152.86 | S6: =IF(S2<=('0 Úvod'!$G$19+'0 Úvod'!$J$19-1),SUMPRODUCT(S72:S84,S106:S118)+S120,0) -> 94104417.33
C7: Celkové provozní náklady | D7: 7267224348 | E7: =SUM(E4:E6) -> 258635507.2 | F7: =SUM(F4:F6) -> 264974614.7 | G7: 309097472.8 | H7: 228903695 | I7: 217011715.9 | J7: 256620203.6 | K7: 259002980.6 | L7: 256320884.3 | M7: 256320884.3 | N7: 256320884.3 | O7: 246323314 | P7: 248349642.6 | Q7: 250425542.8 | R7: 252552248.6 | S7: 261766660.1
B9: 3.1. | C9: Celkové provozní náklady (CZK) | E9: =S2+1 -> 2024 | F9: =E9+1 -> 2025 | G9: 2026 | H9: 2027 | I9: 2028 | J9: 2029 | K9: 2030 | L9: 2031 | M9: 2032 | N9: 2033 | O9: 2034 | P9: 2035 | Q9: 2036 | R9: 2037 | S9: 2038
B10: b | C10: Scenář s projektem
C11: =C4 -> Náklady na údržbu a provoz infrastruktury | E11: 165171195.5 | F11: 165997051.5 | G11: 166827036.7 | H11: 167661171.9 | I11: 168499477.8 | J11: 169341975.1 | K11: 170188685 | L11: 171039628.4 | M11: 171894826.6 | N11: 172754300.7 | O11: 173618072.2 | P11: 174486162.6 | Q11: 176231024.2 | R11: 177993334.5 | S11: 179773267.8
C12: =C5 -> Periodické provozní náklady / opravy
C13: =C6 -> Náklady na řízení provozu | E13: =IF(E9<=('0 Úvod'!$G$19+'0 Úvod'!$J$19-1),SUMPRODUCT(E89:E101,E124:E136)+E138,0) -> 49482811.72 | F13: =IF(F9<=('0 Úvod'!$G$19+'0 Úvod'!$J$19-1),SUMPRODUCT(F89:F101,F124:F136)+F138,0) -> 50719882.01 | G13: =IF(G9<=('0 Úvod'!$G$19+'0 Úvod'!$J$19-1),SUMPRODUCT(G89:G101,G124:G136)+G138,0) -> 51987879.06 | H13: =IF(H9<=('0 Úvod'!$G$19+'0 Úvod'!$J$19-1),SUMPRODUCT(H89:H101,H124:H136)+H138,0) -> 53287576.04 | I13: =IF(I9<=('0 Úvod'!$G$19+'0 Úvod'!$J$19-1),SUMPRODUCT(I89:I101,I124:I136)+I138,0) -> 54619765.44 | J13: =IF(J9<=('0 Úvod'!$G$19+'0 Úvod'!$J$19-1),SUMPRODUCT(J89:J101,J124:J136)+J138,0) -> 55985259.58 | K13: =IF(K9<=('0 Úvod'!$G$19+'0 Úvod'!$J$19-1),SUMPRODUCT(K89:K101,K124:K136)+K138,0) -> 57104964.77 | L13: =IF(L9<=('0 Úvod'!$G$19+'0 Úvod'!$J$19-1),SUMPRODUCT(L89:L101,L124:L136)+L138,0) -> 58247064.06 | M13: =IF(M9<=('0 Úvod'!$G$19+'0 Úvod'!$J$19-1),SUMPRODUCT(M89:M101,M124:M136)+M138,0) -> 59412005.34 | N13: =IF(N9<=('0 Úvod'!$G$19+'0 Úvod'!$J$19-1),SUMPRODUCT(N89:N101,N124:N136)+N138,0) -> 60600245.45 | O13: =IF(O9<=('0 Úvod'!$G$19+'0 Úvod'!$J$19-1),SUMPRODUCT(O89:O101,O124:O136)+O138,0) -> 61812250.36 | P13: =IF(P9<=('0 Úvod'!$G$19+'0 Úvod'!$J$19-1),SUMPRODUCT(P89:P101,P124:P136)+P138,0) -> 63048495.37 | Q13: =IF(Q9<=('0 Úvod'!$G$19+'0 Úvod'!$J$19-1),SUMPRODUCT(Q89:Q101,Q124:Q136)+Q138,0) -> 64309465.27 | R13: =IF(R9<=('0 Úvod'!$G$19+'0 Úvod'!$J$19-1),SUMPRODUCT(R89:R101,R124:R136)+R138,0) -> 65595654.58 | S13: =IF(S9<=('0 Úvod'!$G$19+'0 Úvod'!$J$19-1),SUMPRODUCT(S89:S101,S124:S136)+S138,0) -> 66907567.67
C14: =C7 -> Celkové provozní náklady | E14: =SUM(E11:E13) -> 214654007.2 | F14: 216716933.5 | G14: 218814915.8 | H14: 220948747.9 | I14: 223119243.2 | J14: 225327234.7 | K14: 227293649.8 | L14: 229286692.5 | M14: 231306831.9 | N14: 233354546.2 | O14: 235430322.6 | P14: 237534657.9 | Q14: 240540489.5 | R14: 243588989 | S14: 246680835.5
B17: 3.2. | C17: Celkové provozní náklady (CZK) | E17: =E2 -> 2009 | F17: =E17+1 -> 2010 | G17: 2011 | H17: 2012 | I17: 2013 | J17: 2014 | K17: 2015 | L17: 2016 | M17: 2017 | N17: 2018 | O17: 2019 | P17: 2020 | Q17: 2021 | R17: 2022 | S17: 2023
B18: a | C18: Scénář bez projektu | D18: Celkem
C19: Náklady na údržbu a provoz infrastruktury | D19: =SUM(E19:S19,E26:S26) -> 7187040033 | E19: 239395425.5 | F19: 240803321.2 | G19: 244319159.1 | H19: 243166068.3 | I19: 239595291.7 | J19: 238470782.2 | K19: 237390498.3 | L19: 237721172.8 | M19: 236624888.9 | N19: 235312243.1 | O19: 236951179 | P19: 233829354.7 | Q19: 233666914.9 | R19: 235156818.5 | S19: 238707884.3
C20: Periodické provozní náklady / opravy | D20: =SUM(E20:S20,E27:S27) -> 5858692381 | E20: 171832568.9 | F20: 11104665.95 | G20: 72140932.38 | H20: 1106628635 | I20: 103947705 | J20: 168072131 | K20: 26814883.44 | L20: 88063381.41 | M20: 125076816.5 | N20: 171183165.8 | O20: 286821397.5 | P20: 196790744.1 | Q20: 246906617.5 | R20: 301420894.2 | S20: 37235833.4
C21: Náklady na řízení provozu | D21: 4272964589 | E21: =IF(E17<=('0 Úvod'!$G$19+'0 Úvod'!$J$19-1),SUMPRODUCT(E72:E84,E142:E154)+E156,0) -> 100746101.8 | F21: =IF(F17<=('0 Úvod'!$G$19+'0 Úvod'!$J$19-1),SUMPRODUCT(F72:F84,F142:F154)+F156,0) -> 103191395.5 | G21: =IF(G17<=('0 Úvod'!$G$19+'0 Úvod'!$J$19-1),SUMPRODUCT(G72:G84,G142:G154)+G156,0) -> 102986039.5 | H21: =IF(H17<=('0 Úvod'!$G$19+'0 Úvod'!$J$19-1),SUMPRODUCT(H72:H84,H142:H154)+H156,0) -> 102162151.2 | I21: =IF(I17<=('0 Úvod'!$G$19+'0 Úvod'!$J$19-1),SUMPRODUCT(I72:I84,I142:I154)+I156,0) -> 100629718.9 | J21: =IF(J17<=('0 Úvod'!$G$19+'0 Úvod'!$J$19-1),SUMPRODUCT(J72:J84,J142:J154)+J156,0) -> 102541683.6 | K21: =IF(K17<=('0 Úvod'!$G$19+'0 Úvod'!$J$19-1),SUMPRODUCT(K72:K84,K142:K154)+K156,0) -> 105412850.7 | L21: =IF(L17<=('0 Úvod'!$G$19+'0 Úvod'!$J$19-1),SUMPRODUCT(L72:L84,L142:L154)+L156,0) -> 108575236.2 | M21: =IF(M17<=('0 Úvod'!$G$19+'0 Úvod'!$J$19-1),SUMPRODUCT(M72:M84,M142:M154)+M156,0) -> 111289617.1 | N21: =IF(N17<=('0 Úvod'!$G$19+'0 Úvod'!$J$19-1),SUMPRODUCT(N72:N84,N142:N154)+N156,0) -> 114628305.6 | O21: =IF(O17<=('0 Úvod'!$G$19+'0 Úvod'!$J$19-1),SUMPRODUCT(O72:O84,O142:O154)+O156,0) -> 118067154.8 | P21: =IF(P17<=('0 Úvod'!$G$19+'0 Úvod'!$J$19-1),SUMPRODUCT(P72:P84,P142:P154)+P156,0) -> 121018833.7 | Q21: =IF(Q17<=('0 Úvod'!$G$19+'0 Úvod'!$J$19-1),SUMPRODUCT(Q72:Q84,Q142:Q154)+Q156,0) -> 124044304.5 | R21: =IF(R17<=('0 Úvod'!$G$19+'0 Úvod'!$J$19-1),SUMPRODUCT(R72:R84,R142:R154)+R156,0) -> 129719597.9 | S21: =IF(S17<=('0 Úvod'!$G$19+'0 Úvod'!$J$19-1),SUMPRODUCT(S72:S84,S142:S154)+S156,0) -> 115693054.6
C22: Celkové provozní náklady | D22: 1.7318697e+10 | E22: =SUM(E19:E21) -> 511974096.2 | F22: 355099382.7 | G22: 419446131 | H22: 1451956855 | I22: 444172715.6 | J22: 509084596.8 | K22: 369618232.4 | L22: 434359790.4 | M22: 472991322.5 | N22: 521123714.6 | O22: 641839731.3 | P22: 551638932.4 | Q22: 604617836.9 | R22: 666297310.6 | S22: 391636772.2
B24: 3.2. | C24: Celkové provozní náklady (CZK) | E24: =S17+1 -> 2024 | F24: =E24+1 -> 2025 | G24: 2026 | H24: 2027 | I24: 2028 | J24: 2029 | K24: 2030 | L24: 2031 | M24: 2032 | N24: 2033 | O24: 2034 | P24: 2035 | Q24: 2036 | R24: 2037 | S24: 2038
B25: b | C25: Scénář bez projektu | E25: =S18+1 -> 1
C26: =C19 -> Náklady na údržbu a provoz infrastruktury | E26: 244292306.1 | F26: 240800779.6 | G26: 238468571 | H26: 238971458 | I26: 240192335.9 | J26: 244280563.5 | K26: 243345016.4 | L26: 245745050.1 | M26: 244406415.5 | N26: 241530792.5 | O26: 240052987.4 | P26: 239127746.9 | Q26: 239017437.3 | R26: 238584535.8 | S26: 237113034.1
C27: =C20 -> Periodické provozní náklady / opravy | E27: 858443544.9 | F27: 562159416.5 | G27: 19825221.88 | H27: 34586116.24 | I27: 18903857.4 | J27: 202003760.8 | K27: 47711429.81 | L27: 94409994.11 | M27: 196561991.5 | N27: 120863956.8 | O27: 103988372.1 | P27: 55035324.27 | Q27: 72588270.72 | R27: 160524567.4 | S27: 197046184.4
C28: =C21 -> Náklady na řízení provozu | E28: =IF(E24<=('0 Úvod'!$G$19+'0 Úvod'!$J$19-1),SUMPRODUCT(E89:E101,E160:E172)+E174,0) -> 118585380.9 | F28: =IF(F24<=('0 Úvod'!$G$19+'0 Úvod'!$J$19-1),SUMPRODUCT(F89:F101,F160:F172)+F174,0) -> 121550015.5 | G28: =IF(G24<=('0 Úvod'!$G$19+'0 Úvod'!$J$19-1),SUMPRODUCT(G89:G101,G160:G172)+G174,0) -> 124588765.8 | H28: =IF(H24<=('0 Úvod'!$G$19+'0 Úvod'!$J$19-1),SUMPRODUCT(H89:H101,H160:H172)+H174,0) -> 166126540.8 | I28: =IF(I24<=('0 Úvod'!$G$19+'0 Úvod'!$J$19-1),SUMPRODUCT(I89:I101,I160:I172)+I174,0) -> 170279704.3 | J28: =IF(J24<=('0 Úvod'!$G$19+'0 Úvod'!$J$19-1),SUMPRODUCT(J89:J101,J160:J172)+J174,0) -> 174536697 | K28: =IF(K24<=('0 Úvod'!$G$19+'0 Úvod'!$J$19-1),SUMPRODUCT(K89:K101,K160:K172)+K174,0) -> 178027430.9 | L28: =IF(L24<=('0 Úvod'!$G$19+'0 Úvod'!$J$19-1),SUMPRODUCT(L89:L101,L160:L172)+L174,0) -> 181587979.5 | M28: =IF(M24<=('0 Úvod'!$G$19+'0 Úvod'!$J$19-1),SUMPRODUCT(M89:M101,M160:M172)+M174,0) -> 185219739.1 | N28: =IF(N24<=('0 Úvod'!$G$19+'0 Úvod'!$J$19-1),SUMPRODUCT(N89:N101,N160:N172)+N174,0) -> 188924133.9 | O28: =IF(O24<=('0 Úvod'!$G$19+'0 Úvod'!$J$19-1),SUMPRODUCT(O89:O101,O160:O172)+O174,0) -> 192702616.6 | P28: =IF(P24<=('0 Úvod'!$G$19+'0 Úvod'!$J$19-1),SUMPRODUCT(P89:P101,P160:P172)+P174,0) -> 196556668.9 | Q28: =IF(Q24<=('0 Úvod'!$G$19+'0 Úvod'!$J$19-1),SUMPRODUCT(Q89:Q101,Q160:Q172)+Q174,0) -> 200487802.3 | R28: =IF(R24<=('0 Úvod'!$G$19+'0 Úvod'!$J$19-1),SUMPRODUCT(R89:R101,R160:R172)+R174,0) -> 204497558.3 | S28: =IF(S24<=('0 Úvod'!$G$19+'0 Úvod'!$J$19-1),SUMPRODUCT(S89:S101,S160:S172)+S174,0) -> 208587509.5
C29: =C22 -> Celkové provozní náklady | E29: =SUM(E26:E28) -> 1221321232 | F29: 924510211.5 | G29: 382882558.7 | H29: 439684115.1 | I29: 429375897.6 | J29: 620821021.2 | K29: 469083877.1 | L29: 521743023.7 | M29: 626188146.2 | N29: 551318883.2 | O29: 536743976.1 | P29: 490719740 | Q29: 512093510.3 | R29: 603606661.5 | S29: 642746728.1
B32: 3.3. | C32: Přírůstkové celkové provozní náklady (CZK) | E32: =E2 -> 2009 | F32: =E32+1 -> 2010 | G32: 2011 | H32: 2012 | I32: 2013 | J32: 2014 | K32: 2015 | L32: 2016 | M32: 2017 | N32: 2018 | O32: 2019 | P32: 2020 | Q32: 2021 | R32: 2022 | S32: 2023
B33: a | D33: Celkem
C34: =C4 -> Náklady na údržbu a provoz infrastruktury | D34: =SUM(E34:S34,E41:S41) -> -2212023592 | E34: =E4-E19 -> -84957215.27 | F34: -80222947.11 | G34: -49498134.19 | H34: -107118662.7 | I34: -113449103.6 | J34: -74161513.02 | K34: -77689245.16 | L34: -81143497.75 | M34: -80047213.82 | N34: -78734568.09 | O34: -69507883.86 | P34: -66331731.45 | Q34: -66114691.97 | R34: -67549722.78 | S34: -71045641.46
C35: =C5 -> Periodické provozní náklady / opravy | D35: =SUM(E35:S35,E42:S42) -> -5858692381 | E35: =E5-E20 -> -171832568.9 | F35: -11104665.95 | G35: -72140932.38 | H35: -1106628635 | I35: -103947705 | J35: -168072131 | K35: -26814883.44 | L35: -88063381.41 | M35: -125076816.5 | N35: -171183165.8 | O35: -286821397.5 | P35: -196790744.1 | Q35: -246906617.5 | R35: -301420894.2 | S35: -37235833.4
C36: =C6 -> Náklady na řízení provozu | D36: -1980756681 | E36: =E6-E21 -> 3451195.237 | F36: 1202845.026 | G36: 11290408.43 | H36: -9305861.778 | I36: -9764191.012 | J36: -10230749.13 | K36: -6111123.223 | L36: -8832026.99 | M36: -11546407.9 | N36: -14885096.41 | O36: -39187135.9 | P36: -40166814.29 | Q36: -41170984.65 | R36: -44774445.05 | S36: -21588637.24
C37: Přírůstkové celkové provozní náklady | D37: -1.005147265e+10 | E37: =E7-E22 -> -253338589 | F37: -90124768.03 | G37: -110348658.1 | H37: -1223053160 | I37: -227160999.7 | J37: -252464393.2 | K37: -110615251.8 | L37: -178038906.2 | M37: -216670438.2 | N37: -264802830.3 | O37: -395516417.3 | P37: -303289289.8 | Q37: -354192294.1 | R37: -413745062.1 | S37: -129870112.1
B39: 3.3. | C39: Přírůstkové celkové provozní náklady (CZK) | E39: =S32+1 -> 2024 | F39: =E39+1 -> 2025 | G39: 2026 | H39: 2027 | I39: 2028 | J39: 2029 | K39: 2030 | L39: 2031 | M39: 2032 | N39: 2033 | O39: 2034 | P39: 2035 | Q39: 2036 | R39: 2037 | S39: 2038
B40: b | E40: =S33+1 -> 1
C41: =C34 -> Náklady na údržbu a provoz infrastruktury | E41: =E11-E26 -> -79121110.66 | F41: -74803728.1 | G41: -71641534.24 | H41: -71310286.15 | I41: -71692858.12 | J41: -74938588.36 | K41: -73156331.34 | L41: -74705421.66 | M41: -72511588.95 | N41: -68776491.8 | O41: -66434915.21 | P41: -64641584.29 | Q41: -62786413.1 | R41: -60591201.34 | S41: -57339766.32
C42: =C35 -> Periodické provozní náklady / opravy | E42: =E12-E27 -> -858443544.9 | F42: -562159416.5 | G42: -19825221.88 | H42: -34586116.24 | I42: -18903857.4 | J42: -202003760.8 | K42: -47711429.81 | L42: -94409994.11 | M42: -196561991.5 | N42: -120863956.8 | O42: -103988372.1 | P42: -55035324.27 | Q42: -72588270.72 | R42: -160524567.4 | S42: -197046184.4
C43: =C36 -> Náklady na řízení provozu | E43: =E13-E28 -> -69102569.22 | F43: -70830133.45 | G43: -72600886.78 | H43: -112838964.8 | I43: -115659938.9 | J43: -118551437.4 | K43: -120922466.1 | L43: -123340915.5 | M43: -125807733.8 | N43: -128323888.4 | O43: -130890366.2 | P43: -133508173.5 | Q43: -136178337 | R43: -138901903.7 | S43: -141679941.8
C44: Přírůstkové celkové provozní náklady | E44: =E14-E29 -> -1006667225 | F44: -707793278.1 | G44: -164067642.9 | H44: -218735367.2 | I44: -206256654.4 | J44: -395493786.5 | K44: -241790227.3 | L44: -292456331.2 | M44: -394881314.2 | N44: -317964337.1 | O44: -301313653.6 | P44: -253185082.1 | Q44: -271553020.8 | R44: -360017672.5 | S44: -396065892.6
C47: Scénář s projektem (CZK) | D47: =D7 -> 7267224348
C48: Scénář bez projektu (CZK) | D48: =D22 -> 1.7318697e+10
C49: Přírůstkové cash-flow (CZK) | D49: =D37 -> -1.005147265e+10
B52: 3.4. | C52: Náklady na řízení provozu | D52: Celk. náklady | E52: Hrubá mzda
C53: CÚ | D53: 2012 | E53: 2012
C54: Měrné ohodnocení | D54: CZK/rok | E54: CZK/rok
B55: 13167 | C55: Dozorčí provozu | D55: 700935 | E55: 515444
B56: 31606 | C56: Výpravčí | D56: 469759 | E56: 343235
B57: 31608 | C57: Dozorčí provozu - vedoucí směny | D57: 537552 | E57: 394011
B58: 41333 | C58: Operátor železniční dopravy | D58: 335996 | E58: 243243
B59: 83135 | C59: Signalista | D59: 371990 | E59: 270199
B60: 83137 | C60: Výhybkář | D60: 308844 | E60: 222345
B61: 83141 | C61: Staniční dozorce | D61: 352233 | E61: 254766
B62: 83142 | C62: Dozorce výhybek | D62: 328384 | E62: 237467
B63: 83143 | C63: Závorář | D63: 288974 | E63: 207450
B64: 83144 | C64: Závorář s prodejem jízdenek | D64: 312352 | E64: 225554
B65: 83145 | C65: Hradlář - hláskař | D65: 305523 | E65: 220391
B66: 83146 | C66: Hradlář - hláskař s prodejem jízdenek | D66: 300697 | E66: 216798
B67: 93398 | C67: Dělník v dopravě - staniční dělník | D67: 226581 | E67: 162461
B69: 3.5. | C69: Růst nákladů na řízení provozu | E69: =E32 -> 2009 | F69: =F32 -> 2010 | G69: 2011 | H69: 2012 | I69: 2013 | J69: 2014 | K69: 2015 | L69: 2016 | M69: 2017 | N69: 2018 | O69: 2019 | P69: 2020 | Q69: 2021 | R69: 2022 | S69: 2023
B70: a | D70: Elasticita
C71: Růst reálné mzdy v dopravě | D71: 1 | E71: 0 | F71: 0.02427184466 | G71: -0.001990049751 | H71: =$D$71*HLOOKUP(H$69,'0 Úvod'!$D$79:$N$81,2,TRUE) -> -0.008 | I71: =$D$71*HLOOKUP(I$69,'0 Úvod'!$D$79:$N$81,2,TRUE) -> -0.015 | J71: =$D$71*HLOOKUP(J$69,'0 Úvod'!$D$79:$N$81,2,TRUE) -> 0.019 | K71: =$D$71*HLOOKUP(K$69,'0 Úvod'!$D$79:$N$81,2,TRUE) -> 0.028 | L71: =$D$71*HLOOKUP(L$69,'0 Úvod'!$D$79:$N$81,2,TRUE) -> 0.03 | M71: =$D$71*HLOOKUP(M$69,'0 Úvod'!$D$79:$N$81,2,TRUE) -> 0.025 | N71: =$D$71*HLOOKUP(N$69,'0 Úvod'!$D$79:$N$81,2,TRUE) -> 0.03 | O71: =$D$71*HLOOKUP(O$69,'0 Úvod'!$D$79:$N$81,2,TRUE) -> 0.03 | P71: =$D$71*HLOOKUP(P$69,'0 Úvod'!$D$79:$N$81,2,TRUE) -> 0.025 | Q71: =$D$71*HLOOKUP(Q$69,'0 Úvod'!$D$79:$N$81,2,TRUE) -> 0.025 | R71: =$D$71*HLOOKUP(R$69,'0 Úvod'!$D$79:$N$81,2,TRUE) -> 0.025 | S71: =$D$71*HLOOKUP(S$69,'0 Úvod'!$D$79:$N$81,2,TRUE) -> 0.025
B72: =B55 -> 13167 | C72: Dozorčí provozu | E72: =F72/(1+F$71) -> 712869.3501 | F72: 730172.0042 | G72: =H72/(1+H$71) -> 728718.9256 | H72: =D55*(1+'0 Úvod'!$K$52)*(1+'0 Úvod'!$L$52)*(1+'0 Úvod'!$M$52)*(1+'0 Úvod'!$N$52) -> 722889.1742 | I72: =H72*(1+I$71) -> 712045.8366 | J72: 725574.7074 | K72: 745890.7993 | L72: 768267.5232 | M72: 787474.2113 | N72: 811098.4377 | O72: 835431.3908 | P72: 856317.1756 | Q72: 877725.1049 | R72: 899668.2326 | S72: 922159.9384
B73: 31606 | C73: Výpravčí | E73: =F73/(1+F$71) -> 477757.2714 | F73: 489353.3217 | G73: =H73/(1+H$71) -> 488379.4842 | H73: =D56*(1+'0 Úvod'!$K$52)*(1+'0 Úvod'!$L$52)*(1+'0 Úvod'!$M$52)*(1+'0 Úvod'!$N$52) -> 484472.4483 | I73: =H73*(1+I$71) -> 477205.3616 | J73: 486272.2635 | K73: 499887.8868 | L73: 514884.5235 | M73: 527756.6365 | N73: 543589.3356 | O73: 559897.0157 | P73: 573894.4411 | Q73: 588241.8021 | R73: 602947.8472 | S73: 618021.5434
B74: 31608 | C74: Dozorčí provozu - vedoucí směny | E74: =F74/(1+F$71) -> 546704.5373 | F74: 559974.0649 | G74: 558859.6887 | H74: =D57*(1+'0 Úvod'!$K$52)*(1+'0 Úvod'!$L$52)*(1+'0 Úvod'!$M$52)*(1+'0 Úvod'!$N$52) -> 554388.8112 | I74: =H74*(1+I$71) -> 546072.979 | J74: 556448.3656 | K74: 572028.9198 | L74: 589189.7874 | M74: 603919.5321 | N74: 622037.1181 | O74: 640698.2316 | P74: 656715.6874 | Q74: 673133.5796 | R74: 689961.9191 | S74: 707210.9671
B75: 41333 | C75: Operátor železniční dopravy | E75: =F75/(1+F$71) -> 341716.7785 | F75: 350010.8751 | G75: 349314.336 | H75: =D58*(1+'0 Úvod'!$K$52)*(1+'0 Úvod'!$L$52)*(1+'0 Úvod'!$M$52)*(1+'0 Úvod'!$N$52) -> 346519.8213 | I75: =H75*(1+I$71) -> 341322.024 | J75: 347807.1425 | K75: 357545.7425 | L75: 368272.1147 | M75: 377478.9176 | N75: 388803.2851 | O75: 400467.3837 | P75: 410479.0683 | Q75: 420741.045 | R75: 431259.5711 | S75: 442041.0604
B76: 83135 | C76: Signalista | E76: =F76/(1+F$71) -> 378323.6242 | F76: 387506.2364 | G76: 386735.0797 | H76: =D59*(1+'0 Úvod'!$K$52)*(1+'0 Úvod'!$L$52)*(1+'0 Úvod'!$M$52)*(1+'0 Úvod'!$N$52) -> 383641.1991 | I76: =H76*(1+I$71) -> 377886.5811 | J76: 385066.4262 | K76: 395848.2861 | L76: 407723.7347 | M76: 417916.828 | N76: 430454.3329 | O76: 443367.9629 | P76: 454452.1619 | Q76: 465813.466 | R76: 477458.8026 | S76: 489395.2727
B77: 83137 | C77: Výhybkář | E77: =F77/(1+F$71) -> 314102.4796 | F77: 321726.3262 | G77: 321086.0748 | H77: =D60*(1+'0 Úvod'!$K$52)*(1+'0 Úvod'!$L$52)*(1+'0 Úvod'!$M$52)*(1+'0 Úvod'!$N$52) -> 318517.3862 | I77: =H77*(1+I$71) -> 313739.6254 | J77: 319700.6783 | K77: 328652.2973 | L77: 338511.8662 | M77: 346974.6629 | N77: 357383.9028 | O77: 368105.4198 | P77: 377308.0553 | Q77: 386740.7567 | R77: 396409.2756 | S77: 406319.5075
B78: 83141 | C78: Staniční dozorce | E78: =F78/(1+F$71) -> 358230.235 | F78: 366925.1436 | G78: 366194.9443 | H78: =D61*(1+'0 Úvod'!$K$52)*(1+'0 Úvod'!$L$52)*(1+'0 Úvod'!$M$52)*(1+'0 Úvod'!$N$52) -> 363265.3848 | I78: =H78*(1+I$71) -> 357816.404 | J78: 364614.9157 | K78: 374824.1333 | L78: 386068.8573 | M78: 395720.5788 | N78: 407592.1961 | O78: 419819.962 | P78: 430315.4611 | Q78: 441073.3476 | R78: 452100.1813 | S78: 463402.6858
B79: 83142 | C79: Dozorce výhybek | E79: =F79/(1+F$71) -> 333975.1741 | F79: 342081.3676 | G79: 341400.6087 | H79: =D62*(1+'0 Úvod'!$K$52)*(1+'0 Úvod'!$L$52)*(1+'0 Úvod'!$M$52)*(1+'0 Úvod'!$N$52) -> 338669.4038 | I79: =H79*(1+I$71) -> 333589.3628 | J79: 339927.5607 | K79: 349445.5324 | L79: 359928.8983 | M79: 368927.1208 | N79: 379994.9344 | O79: 391394.7824 | P79: 401179.652 | Q79: 411209.1433 | R79: 421489.3719 | S79: 432026.6062
B80: 83143 | C80: Závorář | E80: =F80/(1+F$71) -> 293894.1665 | F80: 301027.52 | G80: 300428.4603 | H80: =D63*(1+'0 Úvod'!$K$52)*(1+'0 Úvod'!$L$52)*(1+'0 Úvod'!$M$52)*(1+'0 Úvod'!$N$52) -> 298025.0326 | I80: =H80*(1+I$71) -> 293554.6571 | J80: 299132.1956 | K80: 307507.8971 | L80: 316733.134 | M80: 324651.4623 | N80: 334391.0062 | O80: 344422.7364 | P80: 353033.3048 | Q80: 361859.1374 | R80: 370905.6158 | S80: 380178.2562
B81: 83144 | C81: Závorář s prodejem jízdenek | E81: =F81/(1+F$71) -> 317670.208 | F81: 325380.6499 | G81: 324733.1262 | H81: =D64*(1+'0 Úvod'!$K$52)*(1+'0 Úvod'!$L$52)*(1+'0 Úvod'!$M$52)*(1+'0 Úvod'!$N$52) -> 322135.2612 | I81: =H81*(1+I$71) -> 317303.2323 | J81: 323331.9937 | K81: 332385.2895 | L81: 342356.8482 | M81: 350915.7694 | N81: 361443.2425 | O81: 372286.5398 | P81: 381593.7033 | Q81: 391133.5459 | R81: 400911.8845 | S81: 410934.6816
B82: 83145 | C82: Hradlář - hláskař | E82: =F82/(1+F$71) -> 310724.9352 | F82: 318266.8025 | G82: 317633.4358 | H82: =D65*(1+'0 Úvod'!$K$52)*(1+'0 Úvod'!$L$52)*(1+'0 Úvod'!$M$52)*(1+'0 Úvod'!$N$52) -> 315092.3683 | I82: =H82*(1+I$71) -> 310365.9828 | J82: 316262.9364 | K82: 325118.2986 | L82: 334871.8476 | M82: 343243.6438 | N82: 353540.9531 | O82: 364147.1817 | P82: 373250.8612 | Q82: 382582.1328 | R82: 392146.6861 | S82: 401950.3532
B83: 83146 | C83: Hradlář - hláskař s prodejem jízdenek | E83: =F83/(1+F$71) -> 305816.7661 | F83: 313239.5032 | G83: 312616.141 | H83: =D66*(1+'0 Úvod'!$K$52)*(1+'0 Úvod'!$L$52)*(1+'0 Úvod'!$M$52)*(1+'0 Úvod'!$N$52) -> 310115.2118 | I83: =H83*(1+I$71) -> 305463.4837 | J83: 311267.2898 | K83: 319982.774 | L83: 329582.2572 | M83: 337821.8136 | N83: 347956.468 | O83: 358395.1621 | P83: 367355.0411 | Q83: 376538.9171 | R83: 385952.3901 | S83: 395601.1998
B84: 93398 | C84: Dělník v dopravě - staniční dělník | E84: =F84/(1+F$71) -> 230438.8427 | F84: 236032.0185 | G84: 235562.303 | H84: =D67*(1+'0 Úvod'!$K$52)*(1+'0 Úvod'!$L$52)*(1+'0 Úvod'!$M$52)*(1+'0 Úvod'!$N$52) -> 233677.8046 | I84: =H84*(1+I$71) -> 230172.6375 | J84: 234545.9176 | K84: 241113.2033 | L84: 248346.5994 | M84: 254555.2644 | N84: 262191.9224 | O84: 270057.68 | P84: 276809.122 | Q84: 283729.3501 | R84: 290822.5838 | S84: 298093.1484
B86: =B69 -> 3.5. | C86: =C69 -> Růst nákladů na řízení provozu | E86: =E39 -> 2024 | F86: 2025 | G86: 2026 | H86: 2027 | I86: 2028 | J86: 2029 | K86: 2030 | L86: 2031 | M86: 2032 | N86: 2033 | O86: 2034 | P86: 2035 | Q86: 2036 | R86: 2037 | S86: 2038
B87: b | D87: Elasticita
C88: =C71 -> Růst reálné mzdy v dopravě | D88: =D71 -> 1 | E88: =$D$71*HLOOKUP(E$86,'0 Úvod'!$D$79:$N$81,2,TRUE) -> 0.025 | F88: =$D$71*HLOOKUP(F$86,'0 Úvod'!$D$79:$N$81,2,TRUE) -> 0.025 | G88: =$D$71*HLOOKUP(G$86,'0 Úvod'!$D$79:$N$81,2,TRUE) -> 0.025 | H88: =$D$71*HLOOKUP(H$86,'0 Úvod'!$D$79:$N$81,2,TRUE) -> 0.025 | I88: =$D$71*HLOOKUP(I$86,'0 Úvod'!$D$79:$N$81,2,TRUE) -> 0.025 | J88: =$D$71*HLOOKUP(J$86,'0 Úvod'!$D$79:$N$81,2,TRUE) -> 0.025 | K88: =$D$71*HLOOKUP(K$86,'0 Úvod'!$D$79:$N$81,2,TRUE) -> 0.02 | L88: =$D$71*HLOOKUP(L$86,'0 Úvod'!$D$79:$N$81,2,TRUE) -> 0.02 | M88: =$D$71*HLOOKUP(M$86,'0 Úvod'!$D$79:$N$81,2,TRUE) -> 0.02 | N88: =$D$71*HLOOKUP(N$86,'0 Úvod'!$D$79:$N$81,2,TRUE) -> 0.02 | O88: =$D$71*HLOOKUP(O$86,'0 Úvod'!$D$79:$N$81,2,TRUE) -> 0.02 | P88: =$D$71*HLOOKUP(P$86,'0 Úvod'!$D$79:$N$81,2,TRUE) -> 0.02 | Q88: =$D$71*HLOOKUP(Q$86,'0 Úvod'!$D$79:$N$81,2,TRUE) -> 0.02 | R88: =$D$71*HLOOKUP(R$86,'0 Úvod'!$D$79:$N$81,2,TRUE) -> 0.02 | S88: =$D$71*HLOOKUP(S$86,'0 Úvod'!$D$79:$N$81,2,TRUE) -> 0.02
B89: =B72 -> 13167 | C89: Dozorčí provozu | E89: =S72*(1+E$88) -> 945213.9368 | F89: =E89*(1+F$88) -> 968844.2853 | G89: =F89*(1+G$88) -> 993065.3924 | H89: 1017892.027 | I89: 1043339.328 | J89: 1069422.811 | K89: 1090811.267 | L89: 1112627.493 | M89: 1134880.042 | N89: 1157577.643 | O89: 1180729.196 | P89: 1204343.78 | Q89: 1228430.656 | R89: 1252999.269 | S89: 1278059.254
B90: 31606 | C90: Výpravčí | E90: =S73*(1+E$88) -> 633472.0819 | F90: =E90*(1+F$88) -> 649308.884 | G90: =F90*(1+G$88) -> 665541.6061 | H90: 682180.1462 | I90: 699234.6499 | J90: 716715.5161 | K90: 731049.8265 | L90: 745670.823 | M90: 760584.2395 | N90: 775795.9242 | O90: 791311.8427 | P90: 807138.0796 | Q90: 823280.8412 | R90: 839746.458 | S90: 856541.3872
B91: 31608 | C91: Dozorčí provozu - vedoucí směny | E91: 724891.2412 | F91: 743013.5223 | G91: =F91*(1+G$88) -> 761588.8603 | H91: 780628.5818 | I91: 800144.2964 | J91: 820147.9038 | K91: 836550.8619 | L91: 853281.8791 | M91: 870347.5167 | N91: 887754.467 | O91: 905509.5564 | P91: 923619.7475 | Q91: 942092.1424 | R91: 960933.9853 | S91: 980152.665
B92: 41333 | C92: Operátor železniční dopravy | E92: 453092.0869 | F92: 464419.3891 | G92: =F92*(1+G$88) -> 476029.8738 | H92: 487930.6206 | I92: 500128.8861 | J92: 512632.1083 | K92: 522884.7505 | L92: 533342.4455 | M92: 544009.2944 | N92: 554889.4803 | O92: 565987.2699 | P92: 577307.0153 | Q92: 588853.1556 | R92: 600630.2187 | S92: 612642.8231
B93: 83135 | C93: Signalista | E93: 501630.1545 | F93: 514170.9084 | G93: =F93*(1+G$88) -> 527025.1811 | H93: 540200.8106 | I93: 553705.8309 | J93: 567548.4767 | K93: 578899.4462 | L93: 590477.4351 | M93: 602286.9838 | N93: 614332.7235 | O93: 626619.378 | P93: 639151.7655 | Q93: 651934.8008 | R93: 664973.4969 | S93: 678272.9668
B94: 83137 | C94: Výhybkář | E94: 416477.4952 | F94: 426889.4326 | G94: =F94*(1+G$88) -> 437561.6684 | H94: 448500.7101 | I94: 459713.2279 | J94: 471206.0586 | K94: 480630.1797 | L94: 490242.7833 | M94: 500047.639 | N94: 510048.5918 | O94: 520249.5636 | P94: 530654.5549 | Q94: 541267.646 | R94: 552092.9989 | S94: 563134.8589
B95: 83141 | C95: Staniční dozorce | E95: 474987.7529 | F95: 486862.4468 | G95: =F95*(1+G$88) -> 499034.0079 | H95: 511509.8581 | I95: 524297.6046 | J95: 537405.0447 | K95: 548153.1456 | L95: 559116.2085 | M95: 570298.5327 | N95: 581704.5033 | O95: 593338.5934 | P95: 605205.3653 | Q95: 617309.4726 | R95: 629655.662 | S95: 642248.7753
B96: 83142 | C96: Dozorce výhybek | E96: 442827.2713 | F96: 453897.9531 | G96: =F96*(1+G$88) -> 465245.4019 | H96: 476876.537 | I96: 488798.4504 | J96: 501018.4117 | K96: 511038.7799 | L96: 521259.5555 | M96: 531684.7466 | N96: 542318.4416 | O96: 553164.8104 | P96: 564228.1066 | Q96: 575512.6687 | R96: 587022.9221 | S96: 598763.3805
B97: 83143 | C97: Závorář | E97: 389682.7126 | F97: 399424.7805 | G97: =F97*(1+G$88) -> 409410.4 | H97: 419645.66 | I97: 430136.8015 | J97: 440890.2215 | K97: 449708.0259 | L97: 458702.1864 | M97: 467876.2302 | N97: 477233.7548 | O97: 486778.4299 | P97: 496513.9985 | Q97: 506444.2784 | R97: 516573.164 | S97: 526904.6273
B98: 83144 | C98: Závorář s prodejem jízdenek | E98: 421208.0487 | F98: 431738.2499 | G98: =F98*(1+G$88) -> 442531.7061 | H98: 453594.9988 | I98: 464934.8738 | J98: 476558.2456 | K98: 486089.4105 | L98: 495811.1987 | M98: 505727.4227 | N98: 515841.9712 | O98: 526158.8106 | P98: 536681.9868 | Q98: 547415.6265 | R98: 558363.9391 | S98: 569531.2178
B99: 83145 | C99: Hradlář - hláskař | E99: 411999.1121 | F99: 422299.0899 | G99: =F99*(1+G$88) -> 432856.5671 | H99: 443677.9813 | I99: 454769.9308 | J99: 466139.1791 | K99: 475461.9627 | L99: 484971.2019 | M99: 494670.626 | N99: 504564.0385 | O99: 514655.3193 | P99: 524948.4257 | Q99: 535447.3942 | R99: 546156.3421 | S99: 557079.4689
B100: 83146 | C100: Hradlář - hláskař s prodejem jízdenek | E100: 405491.2298 | F100: 415628.5106 | G100: =F100*(1+G$88) -> 426019.2233 | H100: 436669.7039 | I100: 447586.4465 | J100: 458776.1077 | K100: 467951.6298 | L100: 477310.6624 | M100: 486856.8757 | N100: 496594.0132 | O100: 506525.8934 | P100: 516656.4113 | Q100: 526989.5395 | R100: 537529.3303 | S100: 548279.9169
B101: 93398 | C101: Dělník v dopravě - staniční dělník | E101: 305545.4771 | F101: 313184.1141 | G101: =F101*(1+G$88) -> 321013.7169 | H101: 329039.0598 | I101: 337265.0363 | J101: 345696.6623 | K101: 352610.5955 | L101: 359662.8074 | M101: 366856.0636 | N101: 374193.1848 | O101: 381677.0485 | P101: 389310.5895 | Q101: 397096.8013 | R101: 405038.7373 | S101: 413139.5121
B104: 3.6. | C104: Počty zaměstnanců | E104: =E69 -> 2009 | F104: 2010 | G104: 2011 | H104: 2012 | I104: 2013 | J104: 2014 | K104: 2015 | L104: 2016 | M104: 2017 | N104: 2018 | O104: 2019 | P104: 2020 | Q104: 2021 | R104: 2022 | S104: 2023
B105: a | C105: Scénář s projektem
B106: =B89 -> 13167 | C106: Dozorčí provozu
B107: 31606 | C107: Výpravčí | E107: 103.3 | F107: 103.3 | G107: 103.3 | H107: 103.3 | I107: 103.3 | J107: 103.3 | K107: 103.3 | L107: 103.3 | M107: 103.3 | N107: 103.3 | O107: 72.98 | P107: 72.98 | Q107: 72.98 | R107: 72.98 | S107: 72.98
B108: 31608 | C108: Dozorčí provozu - vedoucí směny
B109: 41333 | C109: Operátor železniční dopravy
B110: 83135 | C110: Signalista | E110: 105.95 | F110: 105.95 | G110: 105.95 | H110: 105.95 | I110: 105.95 | J110: 105.95 | K110: 105.95 | L110: 105.95 | M110: 105.95 | N110: 105.95 | O110: 42.55 | P110: 42.55 | Q110: 42.55 | R110: 42.55 | S110: 42.55
B111: 83137 | C111: Výhybkář
B112: 83141 | C112: Staniční dozorce | O112: 14.05 | P112: 14.05 | Q112: 14.05 | R112: 14.05 | S112: 14.05
B113: 83142 | C113: Dozorce výhybek
B114: 83143 | C114: Závorář
B115: 83144 | C115: Závorář s prodejem jízdenek
B116: 83145 | C116: Hradlář - hláskař | E116: 36.4 | F116: 36.4 | G116: 36.4 | H116: 36.4 | I116: 36.4 | J116: 36.4 | K116: 36.4 | L116: 36.4 | M116: 36.4 | N116: 36.4 | O116: 36.4 | P116: 36.4 | Q116: 36.4 | R116: 36.4 | S116: 36.4
B117: 83146 | C117: Hradlář - hláskař s prodejem jízdenek
B118: 93398 | C118: Dělník v dopravě - staniční dělník
C119: Celkem | E119: =SUM(E106:E118) -> 245.65 | F119: 245.65 | G119: 245.65 | H119: 245.65 | I119: 245.65 | J119: 245.65 | K119: 245.65 | L119: 245.65 | M119: 245.65 | N119: 245.65 | O119: 165.98 | P119: 165.98 | Q119: 165.98 | R119: 165.98 | S119: 165.98
C120: Odstupné | E120: =SUMPRODUCT($E$55:$E$67*(E$72/$D$55)/4,E106:E118-F106:F118) -> 0 | F120: =SUMPRODUCT($E$55:$E$67*(F$72/$D$55)/4,F106:F118-G106:G118) -> 0 | G120: 0 | H120: 0 | I120: 0 | J120: 0 | K120: 0 | L120: 0 | M120: 0 | N120: 6930859.64 | O120: =SUMPRODUCT($E$55:$E$67*(O$72/$D$55)/4,O106:O118-P106:P118) -> 0 | P120: 0 | Q120: 0 | R120: 0 | S120: =SUMPRODUCT($E$55:$E$67*(S$72/$D$55)/4,S106:S118-E124:E136) -> 7035635.649
B122: =B104 -> 3.6. | C122: =C104 -> Počty zaměstnanců | E122: =E86 -> 2024 | F122: 2025 | G122: 2026 | H122: 2027 | I122: 2028 | J122: 2029 | K122: 2030 | L122: 2031 | M122: 2032 | N122: 2033 | O122: 2034 | P122: 2035 | Q122: 2036 | R122: 2037 | S122: 2038
B123: b | C123: Scénář s projektem
B124: =B106 -> 13167 | C124: Dozorčí provozu
B125: 31606 | C125: Výpravčí | E125: 62.36 | F125: 62.36 | G125: 62.36 | H125: 62.36 | I125: 62.36 | J125: 62.36 | K125: 62.36 | L125: 62.36 | M125: 62.36 | N125: 62.36 | O125: 62.36 | P125: 62.36 | Q125: 62.36 | R125: 62.36 | S125: 62.36
B126: 31608 | C126: Dozorčí provozu - vedoucí směny
B127: 41333 | C127: Operátor železniční dopravy
B128: 83135 | C128: Signalista
B129: 83137 | C129: Výhybkář
B130: 83141 | C130: Staniční dozorce | E130: 21.01 | F130: 21.01 | G130: 21.01 | H130: 21.01 | I130: 21.01 | J130: 21.01 | K130: 21.01 | L130: 21.01 | M130: 21.01 | N130: 21.01 | O130: 21.01 | P130: 21.01 | Q130: 21.01 | R130: 21.01 | S130: 21.01
B131: 83142 | C131: Dozorce výhybek
B132: 83143 | C132: Závorář
B133: 83144 | C133: Závorář s prodejem jízdenek
B134: 83145 | C134: Hradlář - hláskař
B135: 83146 | C135: Hradlář - hláskař s prodejem jízdenek
B136: 93398 | C136: Dělník v dopravě - staniční dělník
C137: Celkem | E137: =SUM(E124:E136) -> 83.37 | F137: =SUM(F124:F136) -> 83.37 | G137: 83.37 | H137: 83.37 | I137: 83.37 | J137: 83.37 | K137: 83.37 | L137: 83.37 | M137: 83.37 | N137: 83.37 | O137: 83.37 | P137: 83.37 | Q137: 83.37 | R137: 83.37 | S137: 83.37
C138: Odstupné | E138: =SUMPRODUCT($E$55:$E$67*(E$89/$D$55)/4,E124:E136-F124:F136) -> 0 | F138: =SUMPRODUCT($E$55:$E$67*(F$89/$D$55)/4,F124:F136-G124:G136) -> 0 | G138: 0 | H138: 0 | I138: 0 | J138: 0 | K138: 0 | L138: 0 | M138: 0 | N138: 0 | O138: 0 | P138: 0 | Q138: 0 | R138: 0 | S138: 0
B140: 3.7. | C140: =C122 -> Počty zaměstnanců | E140: =E104 -> 2009 | F140: 2010 | G140: 2011 | H140: 2012 | I140: 2013 | J140: 2014 | K140: 2015 | L140: 2016 | M140: 2017 | N140: 2018 | O140: 2019 | P140: 2020 | Q140: 2021 | R140: 2022 | S140: 2023
B141: a | C141: Scénář bez projektu
B142: =B124 -> 13167 | C142: Dozorčí provozu
B143: 31606 | C143: Výpravčí | E143: 103.3 | F143: 103.3 | G143: 103.3 | H143: 103.3 | I143: 103.3 | J143: 103.3 | K143: 103.3 | L143: 103.3 | M143: 103.3 | N143: 103.3 | O143: 103.3 | P143: 103.3 | Q143: 103.3 | R143: 103.3 | S143: 103.3
B144: 31608 | C144: Dozorčí provozu - vedoucí směny
B145: 41333 | C145: Operátor železniční dopravy
B146: 83135 | C146: Signalista | E146: 105.95 | F146: 105.95 | G146: 105.95 | H146: 105.95 | I146: 105.95 | J146: 105.95 | K146: 105.95 | L146: 105.95 | M146: 105.95 | N146: 105.95 | O146: 105.95 | P146: 105.95 | Q146: 105.95 | R146: 105.95 | S146: 105.95
B147: 83137 | C147: Výhybkář
B148: 83141 | C148: Staniční dozorce
B149: 83142 | C149: Dozorce výhybek
B150: 83143 | C150: Závorář
B151: 83144 | C151: Závorář s prodejem jízdenek
B152: 83145 | C152: Hradlář - hláskař | E152: 36.4 | F152: 36.4 | G152: 36.4 | H152: 36.4 | I152: 36.4 | J152: 36.4 | K152: 36.4 | L152: 36.4 | M152: 36.4 | N152: 36.4 | O152: 36.4 | P152: 36.4 | Q152: 36.4 | R152: 36.4 | S152: 0
B153: 83146 | C153: Hradlář - hláskař s prodejem jízdenek
B154: 93398 | C154: Dělník v dopravě - staniční dělník
C155: Celkem | E155: =SUM(E142:E154) -> 245.65 | F155: =SUM(F142:F154) -> 245.65 | G155: 245.65 | H155: 245.65 | I155: 245.65 | J155: 245.65 | K155: 245.65 | L155: 245.65 | M155: 245.65 | N155: 245.65 | O155: 245.65 | P155: 245.65 | Q155: 245.65 | R155: 245.65 | S155: 209.25
C156: Odstupné | E156: =SUMPRODUCT($E$55:$E$67*(E$72/$D$55)/4,E142:E154-F142:F154) -> 0 | F156: =SUMPRODUCT($E$55:$E$67*(F$72/$D$55)/4,F142:F154-G142:G154) -> 0 | G156: 0 | H156: 0 | I156: 0 | J156: 0 | K156: 0 | L156: 0 | M156: 0 | N156: 0 | O156: =SUMPRODUCT($E$55:$E$67*(O$72/$D$55)/4,O142:O154-P142:P154) -> 0 | P156: 0 | Q156: 0 | R156: 2574185.782 | S156: =SUMPRODUCT($E$55:$E$67*(S$72/$D$55)/4,S142:S154-E160:E172) -> 0
B158: =B140 -> 3.7. | C158: =C122 -> Počty zaměstnanců | E158: =E122 -> 2024 | F158: 2025 | G158: 2026 | H158: 2027 | I158: 2028 | J158: 2029 | K158: 2030 | L158: 2031 | M158: 2032 | N158: 2033 | O158: 2034 | P158: 2035 | Q158: 2036 | R158: 2037 | S158: 2038
B159: b | C159: Scénář bez projektu | E159: 1 | F159: 2 | G159: 3 | H159: 4 | I159: 5 | J159: 6 | K159: 7 | L159: 8 | M159: 9 | N159: 10 | O159: 11 | P159: 12 | Q159: 13 | R159: 14 | S159: 15
B160: =B142 -> 13167 | C160: Dozorčí provozu
B161: 31606 | C161: Výpravčí | E161: 103.3 | F161: 103.3 | G161: 103.3 | H161: 103.3 | I161: 103.3 | J161: 103.3 | K161: 103.3 | L161: 103.3 | M161: 103.3 | N161: 103.3 | O161: 103.3 | P161: 103.3 | Q161: 103.3 | R161: 103.3 | S161: 103.3
B162: 31608 | C162: Dozorčí provozu - vedoucí směny
B163: 41333 | C163: Operátor železniční dopravy
B164: 83135 | C164: Signalista | E164: 105.95 | F164: 105.95 | G164: 105.95 | H164: 105.95 | I164: 105.95 | J164: 105.95 | K164: 105.95 | L164: 105.95 | M164: 105.95 | N164: 105.95 | O164: 105.95 | P164: 105.95 | Q164: 105.95 | R164: 105.95 | S164: 105.95
B165: 83137 | C165: Výhybkář | H165: 85.67 | I165: 85.67 | J165: 85.67 | K165: 85.67 | L165: 85.67 | M165: 85.67 | N165: 85.67 | O165: 85.67 | P165: 85.67 | Q165: 85.67 | R165: 85.67 | S165: 85.67
B166: 83141 | C166: Staniční dozorce
B167: 83142 | C167: Dozorce výhybek
B168: 83143 | C168: Závorář
B169: 83144 | C169: Závorář s prodejem jízdenek
B170: 83145 | C170: Hradlář - hláskař | E170: 0 | F170: 0 | G170: 0 | H170: 0 | I170: 0 | J170: 0 | K170: 0 | L170: 0 | M170: 0 | N170: 0 | O170: 0 | P170: 0 | Q170: 0 | R170: 0 | S170: 0
B171: 83146 | C171: Hradlář - hláskař s prodejem jízdenek
B172: 93398 | C172: Dělník v dopravě - staniční dělník
C173: Celkem | E173: =SUM(E160:E172) -> 209.25 | F173: =SUM(F160:F172) -> 209.25 | G173: 209.25 | H173: 294.92 | I173: 294.92 | J173: 294.92 | K173: 294.92 | L173: 294.92 | M173: 294.92 | N173: 294.92 | O173: 294.92 | P173: 294.92 | Q173: 294.92 | R173: 294.92 | S173: 294.92
C174: Odstupné | E174: =SUMPRODUCT($E$55:$E$67*(E$89/$D$55)/4,E160:E172-F160:F172) -> 0 | F174: =SUMPRODUCT($E$55:$E$67*(F$89/$D$55)/4,F160:F172-G160:G172) -> 0 | G174: 0 | H174: 0 | I174: 0 | J174: 0 | K174: 0 | L174: 0 | M174: 0 | N174: 0 | O174: 0 | P174: 0 | Q174: 0 | R174: 0 | S174: 0
B177: Komentáře
B179: V tabulkách 3.1 a 3.2 zpracovatel přímo dopočítává a vyplňuje pouze provozní náklady na údržbu a opravy infrastruktury.
B180: Pro vyčíslení provozních nákladů na řízení dopravy se využije přednastavených vzorců v tabulkách 3.1, 3.2 a 3.5. Zpracovatel vyplňuje pouze tabulky 3.6 a 3.7 a ověřuje správnost výpočtu odstupného.

Sheet 4 Tržby
B2: 4.1. | C2: Celkové provozní příjmy (CZK) | E2: ='0 Úvod'!G19 -> 2009 | F2: =E2+1 -> 2010 | G2: 2011 | H2: 2012 | I2: 2013 | J2: 2014 | K2: 2015 | L2: 2016 | M2: 2017 | N2: 2018 | O2: 2019 | P2: 2020 | Q2: 2021 | R2: 2022 | S2: 2023
B3: a | C3: Scénář s projektem | D3: Celkem
C4: Příjmy z poplatků za dopravní cestu - osobní doprava | D4: =SUM(E4:S4,E11:S11) -> 3106277986 | E4: 45137387.14 | F4: 43176209.54 | G4: 55974439.33 | H4: 56049586.62 | I4: 62460681.23 | J4: 72688782.42 | K4: 72617481.45 | L4: =L61*$E$54+L62*$F$54+L63*$G$54+(L64*$E$55+L65*$F$55+L66*$G$55)/1000 -> 87958955.54 | M4: 90232654.41 | N4: 90232654.41 | O4: 95483984.81 | P4: 95483984.81 | Q4: 95483984.81 | R4: 95483984.81 | S4: 95483984.81
C5: Příjmy z poplatků za dopravní cestu - nákladní doprava | D5: =SUM(E5:S5,E12:S12) -> 1819199990 | E5: 47777455.65 | F5: 48719871.06 | G5: 47357681.28 | H5: 36401624.18 | I5: 42023133.42 | J5: 35836044.85 | K5: 32357796.23 | L5: =$H$54*L67+$I$54*L68+$J$54*L69+($H$55*L70+$I$55*L71+$J$55*L72)/1000 -> 61520894.63 | M5: 62490466.73 | N5: 63460038.83 | O5: 60995395.46 | P5: 61908597.88 | Q5: 62821800.3 | R5: 63735002.73 | S5: 64648205.15
C6: Ostatní příjmy | D6: =SUM(E6:S6,E13:S13) -> 0
C7: Celkové provozní příjmy (CZK) | D7: =SUM(E7:S7,E14:S14) -> 4925477977 | E7: =SUM(E4:E6) -> 92914842.79 | F7: =SUM(F4:F6) -> 91896080.6 | G7: 103332120.6 | H7: =SUM(H4:H6) -> 92451210.81 | I7: 104483814.6 | J7: 108524827.3 | K7: 104975277.7 | L7: 149479850.2 | M7: 152723121.1 | N7: 153692693.2 | O7: 156479380.3 | P7: 157392582.7 | Q7: 158305785.1 | R7: 159218987.5 | S7: 160132190
B9: 4.1. | C9: Celkové provozní příjmy (CZK) | E9: =S2+1 -> 2024 | F9: =E9+1 -> 2025 | G9: 2026 | H9: 2027 | I9: 2028 | J9: 2029 | K9: 2030 | L9: 2031 | M9: 2032 | N9: 2033 | O9: 2034 | P9: 2035 | Q9: 2036 | R9: 2037 | S9: 2038
B10: b | C10: Scénář s projektem
C11: Příjmy z poplatků za dopravní cestu - osobní doprava | E11: =E77*$E$54+E78*$F$54+E79*$G$54+(E80*$E$55+E81*$F$55+E82*$G$55)/1000 -> 130155282 | F11: =F77*$E$54+F78*$F$54+F79*$G$54+(F80*$E$55+F81*$F$55+F82*$G$55)/1000 -> 130155282 | G11: 130155282 | H11: 130155282 | I11: 130155282 | J11: 130155282 | K11: 130155282 | L11: 130155282 | M11: 130155282 | N11: 130155282 | O11: 130155282 | P11: 130155282 | Q11: 130155282 | R11: 130155282 | S11: 130155282
C12: Příjmy z poplatků za dopravní cestu - nákladní doprava | E12: =$H$54*E83+$I$54*E84+$J$54*E85+($H$55*E86+$I$55*E87+$J$55*E88)/1000 -> 65561407.57 | F12: =$H$54*F83+$I$54*F84+$J$54*F85+($H$55*F86+$I$55*F87+$J$55*F88)/1000 -> 65977834.88 | G12: 66394262.2 | H12: 66810689.52 | I12: 67227116.84 | J12: 67643544.15 | K12: 68059971.47 | L12: 68476398.79 | M12: 68892826.11 | N12: 69309253.42 | O12: 69725680.74 | P12: 70142108.06 | Q12: 70558535.37 | R12: 70974962.69 | S12: 71391390.01
C13: Ostatní příjmy
C14: Celkové provozní příjmy (CZK) | E14: =SUM(E11:E13) -> 195716689.6 | F14: 196133116.9 | G14: 196549544.2 | H14: 196965971.5 | I14: 197382398.9 | J14: 197798826.2 | K14: 198215253.5 | L14: 198631680.8 | M14: 199048108.1 | N14: 199464535.4 | O14: 199880962.8 | P14: 200297390.1 | Q14: 200713817.4 | R14: 201130244.7 | S14: 201546672
B17: 4.2. | C17: Celkové provozní příjmy (CZK) | E17: =E2 -> 2009 | F17: =E17+1 -> 2010 | G17: 2011 | H17: 2012 | I17: 2013 | J17: 2014 | K17: 2015 | L17: 2016 | M17: 2017 | N17: 2018 | O17: 2019 | P17: 2020 | Q17: 2021 | R17: 2022 | S17: 2023
B18: a | C18: Scénář bez projektu | D18: Celkem
C19: Příjmy z poplatků za dopravní cestu - osobní doprava | D19: =SUM(E19:S19,E26:S26) -> 2651107976 | E19: =E94*$E$54+E95*$F$54+E96*$G$54+(E97*$E$55+E98*$F$55+E99*$G$55)/1000 -> 90460730.71 | F19: =F94*$E$54+F95*$F$54+F96*$G$54+(F97*$E$55+F98*$F$55+F99*$G$55)/1000 -> 88253290.05 | G19: 87197869.56 | H19: 85687081.93 | I19: 85687081.93 | J19: 87703741.83 | K19: 87901353.74 | L19: 88362448.21 | M19: 95814655.91 | N19: 95814655.91 | O19: 95814655.91 | P19: 95814655.91 | Q19: 95814655.91 | R19: 95814655.91 | S19: 95814655.91
C20: Příjmy z poplatků za dopravní cestu - nákladní doprava | D20: =SUM(E20:S20,E27:S27) -> 1785372755 | E20: =$H$54*E100+$I$54*E101+$J$54*E102+($H$55*E103+$I$55*E104+$J$55*E105)/1000 -> 60937026.63 | F20: =$H$54*F100+$I$54*F101+$J$54*F102+($H$55*F103+$I$55*F104+$J$55*F105)/1000 -> 60937026.63 | G20: 60937026.63 | H20: 60937026.63 | I20: 60937026.63 | J20: 60937026.63 | K20: 60937026.63 | L20: 61450628.28 | M20: 61964229.94 | N20: 62477831.59 | O20: 62991433.24 | P20: 63505034.9 | Q20: 64018636.55 | R20: 64532238.21 | S20: 65045839.86
C21: Ostatní příjmy | D21: =SUM(E21:S21,E28:S28) -> 0
C22: Celkové provozní příjmy (CZK) | D22: =SUM(E22:S22,E29:S29) -> 4436480731 | E22: =SUM(E19:E21) -> 151397757.3 | F22: 149190316.7 | G22: 148134896.2 | H22: 146624108.6 | I22: 146624108.6 | J22: 148640768.5 | K22: 148838380.4 | L22: 149813076.5 | M22: 157778885.8 | N22: 158292487.5 | O22: 158806089.2 | P22: 159319690.8 | Q22: 159833292.5 | R22: 160346894.1 | S22: 160860495.8
B24: 4.2. | C24: Celkové provozní příjmy (CZK) | E24: =S17+1 -> 2024 | F24: =E24+1 -> 2025 | G24: 2026 | H24: 2027 | I24: 2028 | J24: 2029 | K24: 2030 | L24: 2031 | M24: 2032 | N24: 2033 | O24: 2034 | P24: 2035 | Q24: 2036 | R24: 2037 | S24: 2038
B25: b | C25: Scénář bez projektu
C26: Příjmy z poplatků za dopravní cestu - osobní doprava | E26: =E110*$E$54+E111*$F$54+E112*$G$54+(E113*$E$55+E114*$F$55+E115*$G$55)/1000 -> 86823313.82 | F26: =F110*$E$54+F111*$F$54+F112*$G$54+(F113*$E$55+F114*$F$55+F115*$G$55)/1000 -> 86823313.82 | G26: 86823313.82 | H26: 84890153.79 | I26: 84890153.79 | J26: 84890153.79 | K26: 84890153.79 | L26: 84890153.79 | M26: 84890153.79 | N26: 84890153.79 | O26: 84890153.79 | P26: 84890153.79 | Q26: 84890153.79 | R26: 84890153.79 | S26: 84890153.79
C27: Příjmy z poplatků za dopravní cestu - nákladní doprava | E27: =$H$54*E116+$I$54*E117+$J$54*E118+($H$55*E119+$I$55*E120+$J$55*E121)/1000 -> 56036163.72 | F27: =$H$54*F116+$I$54*F117+$J$54*F118+($H$55*F119+$I$55*F120+$J$55*F121)/1000 -> 56153166.01 | G27: 56270168.3 | H27: 56387170.59 | I27: 56504172.88 | J27: 56621175.17 | K27: 56738177.46 | L27: 56855179.75 | M27: 56972182.04 | N27: 57089184.33 | O27: 57206186.62 | P27: 57323188.91 | Q27: 57440191.2 | R27: 57557193.49 | S27: 57674195.78
C28: Ostatní příjmy
C29: Celkové provozní příjmy (CZK) | E29: =SUM(E26:E28) -> 142859477.5 | F29: 142976479.8 | G29: 143093482.1 | H29: 141277324.4 | I29: 141394326.7 | J29: 141511329 | K29: 141628331.2 | L29: 141745333.5 | M29: 141862335.8 | N29: 141979338.1 | O29: 142096340.4 | P29: 142213342.7 | Q29: 142330345 | R29: 142447347.3 | S29: 142564349.6
B32: 4.3. | C32: Celkové přírůstkové provozní příjmy (CZK) | E32: =E2 -> 2009 | F32: =E32+1 -> 2010 | G32: 2011 | H32: 2012 | I32: 2013 | J32: 2014 | K32: 2015 | L32: 2016 | M32: 2017 | N32: 2018 | O32: 2019 | P32: 2020 | Q32: 2021 | R32: 2022 | S32: 2023
B33: a | C33: Přírůstek cash-flow | D33: Celkem
C34: Příjmy z poplatků za dopravní cestu - osobní doprava | D34: =SUM(E34:S34,E41:S41) -> 455170010.2 | E34: =E4-E19 -> -45323343.56 | F34: =F4-F19 -> -45077080.51 | G34: -31223430.24 | H34: -29637495.3 | I34: -23226400.69 | J34: -15014959.41 | K34: -15283872.29 | L34: -403492.6704 | M34: -5582001.498 | N34: -5582001.498 | O34: -330671.0974 | P34: -330671.0974 | Q34: -330671.0974 | R34: -330671.0974 | S34: -330671.0974
C35: Příjmy z poplatků za dopravní cestu - nákladní doprava | D35: =SUM(E35:S35,E42:S42) -> 33827235.03 | E35: =E5-E20 -> -13159570.98 | F35: =F5-F20 -> -12217155.56 | G35: -13579345.35 | H35: -24535402.45 | I35: -18913893.21 | J35: -25100981.78 | K35: -28579230.4 | L35: 70266.34472 | M35: 526236.7914 | N35: 982207.2381 | O35: -1996037.783 | P35: -1596437.016 | Q35: -1196836.248 | R35: -797235.4807 | S35: -397634.7132
C36: Ostatní příjmy | D36: =SUM(E36:S36,E43:S43) -> 0 | E36: =E6-E21 -> 0 | F36: =F6-F21 -> 0 | G36: 0 | H36: 0 | I36: 0 | J36: 0 | K36: 0 | L36: 0 | M36: 0 | N36: 0 | O36: 0 | P36: 0 | Q36: 0 | R36: 0 | S36: 0
C37: Celkové přírůstkové provozní příjmy (CZK) | D37: =SUM(E37:S37,E44:S44) -> 488997245.3 | E37: =E7-E22 -> -58482914.55 | F37: =F7-F22 -> -57294236.07 | G37: -44802775.59 | H37: -54172897.75 | I37: -42140293.91 | J37: -40115941.19 | K37: -43863102.69 | L37: -333226.3257 | M37: -5055764.707 | N37: -4599794.26 | O37: -2326708.881 | P37: -1927108.113 | Q37: -1527507.346 | R37: -1127906.578 | S37: -728305.8106
B39: 4.3. | C39: Celkové přírůstkové provozní příjmy (CZK) | E39: =S32+1 -> 2024 | F39: =E39+1 -> 2025 | G39: 2026 | H39: 2027 | I39: 2028 | J39: 2029 | K39: 2030 | L39: 2031 | M39: 2032 | N39: 2033 | O39: 2034 | P39: 2035 | Q39: 2036 | R39: 2037 | S39: 2038
B40: b | C40: Přírůstek cash-flow
C41: Příjmy z poplatků za dopravní cestu - osobní doprava | E41: =E11-E26 -> 43331968.2 | F41: 43331968.2 | G41: 43331968.2 | H41: 45265128.23 | I41: 45265128.23 | J41: 45265128.23 | K41: 45265128.23 | L41: 45265128.23 | M41: 45265128.23 | N41: 45265128.23 | O41: 45265128.23 | P41: 45265128.23 | Q41: 45265128.23 | R41: 45265128.23 | S41: =S11-S26 -> 45265128.23
C42: Příjmy z poplatků za dopravní cestu - nákladní doprava | E42: 9525243.851 | F42: 9824668.878 | G42: 10124093.91 | H42: 10423518.93 | I42: 10722943.96 | J42: 11022368.99 | K42: 11321794.01 | L42: 11621219.04 | M42: 11920644.07 | N42: 12220069.1 | O42: 12519494.12 | P42: 12818919.15 | Q42: 13118344.18 | R42: 13417769.21 | S42: 13717194.23
C43: Ostatní příjmy | E43: =E13-E28 -> 0 | F43: 0 | G43: 0 | H43: 0 | I43: 0 | J43: 0 | K43: 0 | L43: 0 | M43: 0 | N43: 0 | O43: 0 | P43: 0 | Q43: 0 | R43: 0 | S43: =S13-S28 -> 0
C44: Celkové přírůstkové provozní příjmy (CZK) | E44: =E14-E29 -> 52857212.05 | F44: 53156637.08 | G44: 53456062.11 | H44: 55688647.17 | I44: 55988072.19 | J44: 56287497.22 | K44: 56586922.25 | L44: 56886347.27 | M44: 57185772.3 | N44: 57485197.33 | O44: 57784622.36 | P44: 58084047.38 | Q44: 58383472.41 | R44: 58682897.44 | S44: =S14-S29 -> 58982322.47
C47: Scénář s projektem (CZK) | D47: =D7 -> 4925477977
C48: Scénář bez projektu (CZK) | D48: =D22 -> 4436480731
C49: Přírůstek cash-flow (CZK) | D49: =D37 -> 488997245.3
E52: Osobní | H52: Nákladní
B53: 4.4. | C53: Příjmy z poplatků za dopravní cestu | E53: TEN-T | F53: celostátní | G53: regionální | H53: TEN-T | I53: celostátní | J53: regionální
C54: Poplatek za provozování dopravní cesty | D54: Kč/vlkm | E54: 7.81 | F54: 6.49 | G54: 5.5 | H54: 36.1 | I54: 35.33 | J54: 33.19
C55: Poplatek za zajištění provozuschopnosti DC | D55: Kč/1000 hrtkm | E55: 44.77 | F55: 35.59 | G55: 30.16 | H55: 49.23 | I55: 43.88 | J55: 33.6
C56: Zdroj: „Prohlášení o dráze celostátní a regionální platné pro jízdní řád 2016 a 2017“ (příloha C, část C)
B59: 4.5. | C59: Celkové výkony | E59: =E2 -> 2009 | F59: =E59+1 -> 2010 | G59: 2011 | H59: 2012 | I59: 2013 | J59: 2014 | K59: 2015 | L59: 2016 | M59: 2017 | N59: 2018 | O59: 2019 | P59: 2020 | Q59: 2021 | R59: 2022 | S59: 2023
B60: a | C60: Scénář s projektem | D60: Celkem
B61: S1E | C61: vlkm - osobní doprava - dráhy TEN-T | D61: =SUM(E61:S61,E77:S77) -> 144239933.5 | E61: 3945321.5 | F61: 3861700 | G61: 3836807 | H61: 3781181 | I61: 3781181 | J61: 3842501 | K61: 3835712 | L61: 3859218 | M61: 3937401 | N61: 3937401 | O61: 4238307 | P61: 4238307 | Q61: 4238307 | R61: 4238307 | S61: 4238307
B62: S1C | C62: vlkm - osobní doprava - celostátní | D62: =SUM(E62:S62,E78:S78) -> 0
B63: S1R | C63: vlkm - osobní doprava - regionální | D63: 0
B64: S2E | C64: hrtkm - osobní doprava - dráhy TEN-T | D64: 4.878595477e+10 | E64: 1332315608 | F64: 1297596896 | G64: 1278365131 | H64: 1254323393 | I64: 1254323393 | J64: 1288671186 | K64: 1285256876 | L64: 1291455505 | M64: 1328602917 | N64: 1328602917 | O64: 1393406458 | P64: 1393406458 | Q64: 1393406458 | R64: 1393406458 | S64: 1393406458
B65: S2C | C65: hrtkm - osobní doprava - celostátní | D65: 0
B66: S2R | C66: hrtkm - osobní doprava - regionální | D66: 0
B67: S1E | C67: vlkm - nákladní doprava - dráhy TEN-T | D67: 22672715.73 | E67: 706740.998 | F67: 706740.998 | G67: 706740.998 | H67: 706740.998 | I67: 706740.998 | J67: 706740.998 | K67: 702267.6438 | L67: 713512.6355 | M67: 724757.6271 | N67: 736002.6187 | O67: 707417.9534 | P67: 718009.1756 | Q67: 728600.3978 | R67: 739191.62 | S67: 749782.8423
B68: S1C | C68: vlkm - nákladní doprava - celostátní | D68: 0
B69: S1R | C69: vlkm - nákladní doprava - regionální | D69: 0
B70: S2E | C70: hrtkm - nákladní doprava - dráhy TEN-T | D70: 2.308378688e+10 | E70: 719554674 | F70: 719554674 | G70: 719554674 | H70: 719554674 | I70: 719554674 | J70: 719554674 | K70: 715000215 | L70: 726449085.7 | M70: 737897956.3 | N70: 749346827 | O70: 720243903 | P70: 731027151 | Q70: 741810399 | R70: 752593647 | S70: 763376895
B71: S2C | C71: hrtkm - nákladní doprava - celostátní | D71: 0
B72: S2R | C72: hrtkm - nákladní doprava - regionální | D72: 0
B75: =B59 -> 4.5. | C75: =C59 -> Celkové výkony | E75: =S59+1 -> 2024 | F75: =E75+1 -> 2025 | G75: 2026 | H75: 2027 | I75: 2028 | J75: 2029 | K75: 2030 | L75: 2031 | M75: 2032 | N75: 2033 | O75: 2034 | P75: 2035 | Q75: 2036 | R75: 2037 | S75: 2038
B76: b | C76: Scénář s projektem
B77: =B61 -> S1E | C77: vlkm - osobní doprava - dráhy TEN-T | E77: 5628665 | F77: 5628665 | G77: 5628665 | H77: 5628665 | I77: 5628665 | J77: 5628665 | K77: 5628665 | L77: 5628665 | M77: 5628665 | N77: 5628665 | O77: 5628665 | P77: 5628665 | Q77: 5628665 | R77: 5628665 | S77: 5628665
B78: S1C | C78: vlkm - osobní doprava - celostátní
B79: S1R | C79: vlkm - osobní doprava - regionální
B80: S2E | C80: hrtkm - osobní doprava - dráhy TEN-T | E80: 1925293910 | F80: 1925293910 | G80: 1925293910 | H80: 1925293910 | I80: 1925293910 | J80: 1925293910 | K80: 1925293910 | L80: 1925293910 | M80: 1925293910 | N80: 1925293910 | O80: 1925293910 | P80: 1925293910 | Q80: 1925293910 | R80: 1925293910 | S80: 1925293910
B81: S2C | C81: hrtkm - osobní doprava - celostátní
B82: S2R | C82: hrtkm - osobní doprava - regionální
B83: S1E | C83: vlkm - nákladní doprava - dráhy TEN-T | E83: 760374.0645 | F83: 765203.7432 | G83: 770033.4218 | H83: 774863.1005 | I83: 779692.7792 | J83: 784522.4578 | K83: 789352.1365 | L83: 794181.8152 | M83: 799011.4938 | N83: 803841.1725 | O83: 808670.8512 | P83: 813500.5299 | Q83: 818330.2085 | R83: 823159.8872 | S83: 827989.5659
B84: S1C | C84: vlkm - nákladní doprava - celostátní
B85: S1R | C85: vlkm - nákladní doprava - regionální
B86: S2E | C86: hrtkm - nákladní doprava - dráhy TEN-T | E86: 774160143 | F86: 779077386.9 | G86: 783994630.8 | H86: 788911874.7 | I86: 793829118.6 | J86: 798746362.5 | K86: 803663606.4 | L86: 808580850.3 | M86: 813498094.2 | N86: 818415338.1 | O86: 823332582 | P86: 828249825.9 | Q86: 833167069.8 | R86: 838084313.7 | S86: 843001557.6
B87: S2C | C87: hrtkm - nákladní doprava - celostátní
B88: S2R | C88: hrtkm - nákladní doprava - regionální
B92: 4.6. | C92: Celkové výkony | E92: =E59 -> 2009 | F92: =E92+1 -> 2010 | G92: 2011 | H92: 2012 | I92: 2013 | J92: 2014 | K92: 2015 | L92: 2016 | M92: 2017 | N92: 2018 | O92: 2019 | P92: 2020 | Q92: 2021 | R92: 2022 | S92: 2023
B93: a | C93: Scénář bez projektu | D93: Celkem
B94: =B77 -> S1E | C94: vlkm - osobní doprava - dráhy TEN-T | D94: =SUM(E94:S94,E110:S110) -> 113972162.5 | E94: 3945321.5 | F94: 3861700 | G94: 3836807 | H94: 3781181 | I94: 3781181 | J94: 3842501 | K94: 3852575 | L94: 3876081 | M94: 4147860 | N94: 4147860 | O94: 4147860 | P94: 4147860 | Q94: 4147860 | R94: 4147860 | S94: 4147860
B95: S1C | C95: vlkm - osobní doprava - celostátní | D95: =SUM(E95:S95,E111:S111) -> 0
B96: S1R | C96: vlkm - osobní doprava - regionální | D96: 0
B97: S2E | C97: hrtkm - osobní doprava - dráhy TEN-T | D97: 3.93340493e+10 | E97: 1332315608 | F97: 1297596896 | G97: 1278365131 | H97: 1254323393 | I97: 1254323393 | J97: 1288671186 | K97: 1291327742 | L97: 1297526370 | M97: 1416570679 | N97: 1416570679 | O97: 1416570679 | P97: 1416570679 | Q97: 1416570679 | R97: 1416570679 | S97: 1416570679
B98: S2C | C98: hrtkm - osobní doprava - celostátní | D98: 0
B99: S2R | C99: hrtkm - osobní doprava - regionální | D99: 0
B100: S1E | C100: vlkm - nákladní doprava - dráhy TEN-T | D100: 20706558.76 | E100: 706740.998 | F100: 706740.998 | G100: 706740.998 | H100: 706740.998 | I100: 706740.998 | J100: 706740.998 | K100: 706740.998 | L100: 712697.6941 | M100: 718654.3901 | N100: 724611.0861 | O100: 730567.7822 | P100: 736524.4782 | Q100: 742481.1743 | R100: 748437.8703 | S100: 754394.5664
B101: S1C | C101: vlkm - nákladní doprava - celostátní | D101: 0
B102: S1R | C102: vlkm - nákladní doprava - regionální | D102: 0
B103: S2E | C103: hrtkm - nákladní doprava - dráhy TEN-T | D103: 2.10819822e+10 | E103: 719554674 | F103: 719554674 | G103: 719554674 | H103: 719554674 | I103: 719554674 | J103: 719554674 | K103: 719554674 | L103: 725619368.8 | M103: 731684063.7 | N103: 737748758.5 | O103: 743813453.3 | P103: 749878148.2 | Q103: 755942843 | R103: 762007537.8 | S103: 768072232.7
B104: S2C | C104: hrtkm - nákladní doprava - celostátní | D104: 0
B105: S2R | C105: hrtkm - nákladní doprava - regionální | D105: 0
B108: =B92 -> 4.6. | C108: =C92 -> Celkové výkony | E108: =S92+1 -> 2024 | F108: =E108+1 -> 2025 | G108: 2026 | H108: 2027 | I108: 2028 | J108: 2029 | K108: 2030 | L108: 2031 | M108: 2032 | N108: 2033 | O108: 2034 | P108: 2035 | Q108: 2036 | R108: 2037 | S108: 2038
B109: b | C109: Scénář bez projektu
B110: =B94 -> S1E | C110: vlkm - osobní doprava - dráhy TEN-T | E110: 3689493 | F110: 3689493 | G110: 3689493 | H110: 3590943 | I110: 3590943 | J110: 3590943 | K110: 3590943 | L110: 3590943 | M110: 3590943 | N110: 3590943 | O110: 3590943 | P110: 3590943 | Q110: 3590943 | R110: 3590943 | S110: 3590943
B111: S1C | C111: vlkm - osobní doprava - celostátní
B112: S1R | C112: vlkm - osobní doprava - regionální
B113: S2E | C113: hrtkm - osobní doprava - dráhy TEN-T | E113: 1295697420 | F113: 1295697420 | G113: 1295697420 | H113: 1269709380 | I113: 1269709380 | J113: 1269709380 | K113: 1269709380 | L113: 1269709380 | M113: 1269709380 | N113: 1269709380 | O113: 1269709380 | P113: 1269709380 | Q113: 1269709380 | R113: 1269709380 | S113: 1269709380
B114: S2C | C114: hrtkm - osobní doprava - celostátní
B115: S2R | C115: hrtkm - osobní doprava - regionální
B116: S1E | C116: vlkm - nákladní doprava - dráhy TEN-T | E116: 649901.3237 | F116: 651258.3035 | G116: 652615.2834 | H116: 653972.2632 | I116: 655329.243 | J116: 656686.2228 | K116: 658043.2026 | L116: 659400.1824 | M116: 660757.1623 | N116: 662114.1421 | O116: 663471.1219 | P116: 664828.1017 | Q116: 666185.0815 | R116: 667542.0613 | S116: 668899.0411
B117: S1C | C117: vlkm - nákladní doprava - celostátní
B118: S1R | C118: vlkm - nákladní doprava - regionální
B119: S2E | C119: hrtkm - nákladní doprava - dráhy TEN-T | E119: 661684459.3 | F119: 663066042 | G119: 664447624.8 | H119: 665829207.5 | I119: 667210790.3 | J119: 668592373 | K119: 669973955.8 | L119: 671355538.5 | M119: 672737121.3 | N119: 674118704 | O119: 675500286.7 | P119: 676881869.5 | Q119: 678263452.2 | R119: 679645035 | S119: 681026617.7
B120: S2C | C120: hrtkm - nákladní doprava - celostátní
B121: S2R | C121: hrtkm - nákladní doprava - regionální
B124: Komentáře
B126: Zpracovatel uvede konkrétní hodnoty výstupů z dopravního prognózování použité při výpočtu příjmů z poplatku za dopravní cestu. Tabulky 4.5. a 4.6. je možné přizpůsobit konkrétnímu projektu.
C129: Průměrná hrubá hmotnost vlaků:
C130: osobní příměstská | D130: 263.7041046 | E130: hrt/vlak
C131: osobní dálková | D131: 422.6104651 | E131: hrt/vlak
C132: nákladní místní | D132: 361.8 | E132: hrt/vlak
C133: nákladní dálková | D133: 1125.6 | E133: hrt/vlak

Sheet 5 Finanční analýza (FRR_C)
B2: 5.1. | C2: Kalkulace finančního vnitřního výnosového procenta | E2: ='0 Úvod'!G19 -> 2009 | F2: =E2+1 -> 2010 | G2: 2011 | H2: 2012 | I2: 2013 | J2: 2014 | K2: 2015 | L2: 2016 | M2: 2017 | N2: 2018 | O2: 2019 | P2: 2020 | Q2: 2021 | R2: 2022 | S2: 2023
B3: a | D3: Celkem
C4: Celkové přírůstkové provozní příjmy | D4: =SUM(E4:S4,E16:S16) -> 488997245.3 | E4: =IF(E2<=('0 Úvod'!$G$19+'0 Úvod'!$J$19-1),'4 Tržby'!E37,0) -> -58482914.55 | F4: =IF(F2<=('0 Úvod'!$G$19+'0 Úvod'!$J$19-1),'4 Tržby'!F37,0) -> -57294236.07 | G4: =IF(G2<=('0 Úvod'!$G$19+'0 Úvod'!$J$19-1),'4 Tržby'!G37,0) -> -44802775.59 | H4: =IF(H2<=('0 Úvod'!$G$19+'0 Úvod'!$J$19-1),'4 Tržby'!H37,0) -> -54172897.75 | I4: =IF(I2<=('0 Úvod'!$G$19+'0 Úvod'!$J$19-1),'4 Tržby'!I37,0) -> -42140293.91 | J4: =IF(J2<=('0 Úvod'!$G$19+'0 Úvod'!$J$19-1),'4 Tržby'!J37,0) -> -40115941.19 | K4: =IF(K2<=('0 Úvod'!$G$19+'0 Úvod'!$J$19-1),'4 Tržby'!K37,0) -> -43863102.69 | L4: =IF(L2<=('0 Úvod'!$G$19+'0 Úvod'!$J$19-1),'4 Tržby'!L37,0) -> -333226.3257 | M4: =IF(M2<=('0 Úvod'!$G$19+'0 Úvod'!$J$19-1),'4 Tržby'!M37,0) -> -5055764.707 | N4: =IF(N2<=('0 Úvod'!$G$19+'0 Úvod'!$J$19-1),'4 Tržby'!N37,0) -> -4599794.26 | O4: =IF(O2<=('0 Úvod'!$G$19+'0 Úvod'!$J$19-1),'4 Tržby'!O37,0) -> -2326708.881 | P4: =IF(P2<=('0 Úvod'!$G$19+'0 Úvod'!$J$19-1),'4 Tržby'!P37,0) -> -1927108.113 | Q4: =IF(Q2<=('0 Úvod'!$G$19+'0 Úvod'!$J$19-1),'4 Tržby'!Q37,0) -> -1527507.346 | R4: =IF(R2<=('0 Úvod'!$G$19+'0 Úvod'!$J$19-1),'4 Tržby'!R37,0) -> -1127906.578 | S4: =IF(S2<=('0 Úvod'!$G$19+'0 Úvod'!$J$19-1),'4 Tržby'!S37,0) -> -728305.8106
C5: Celkové výnosy | D5: =SUM(D4) -> 488997245.3 | E5: =SUM(E4) -> -58482914.55 | F5: =SUM(F4) -> -57294236.07 | G5: -44802775.59 | H5: -54172897.75 | I5: -42140293.91 | J5: -40115941.19 | K5: -43863102.69 | L5: -333226.3257 | M5: -5055764.707 | N5: -4599794.26 | O5: -2326708.881 | P5: -1927108.113 | Q5: -1527507.346 | R5: -1127906.578 | S5: -728305.8106
C6: Celkové přírůstkové provozní náklady | D6: =SUM(E6:S6,E18:S18) -> -1.005147265e+10 | E6: =IF(E2<=('0 Úvod'!$G$19+'0 Úvod'!$J$19-1),'3 Provozní náklady'!E37,0) -> -253338589 | F6: =IF(F2<=('0 Úvod'!$G$19+'0 Úvod'!$J$19-1),'3 Provozní náklady'!F37,0) -> -90124768.03 | G6: =IF(G2<=('0 Úvod'!$G$19+'0 Úvod'!$J$19-1),'3 Provozní náklady'!G37,0) -> -110348658.1 | H6: =IF(H2<=('0 Úvod'!$G$19+'0 Úvod'!$J$19-1),'3 Provozní náklady'!H37,0) -> -1223053160 | I6: =IF(I2<=('0 Úvod'!$G$19+'0 Úvod'!$J$19-1),'3 Provozní náklady'!I37,0) -> -227160999.7 | J6: =IF(J2<=('0 Úvod'!$G$19+'0 Úvod'!$J$19-1),'3 Provozní náklady'!J37,0) -> -252464393.2 | K6: =IF(K2<=('0 Úvod'!$G$19+'0 Úvod'!$J$19-1),'3 Provozní náklady'!K37,0) -> -110615251.8 | L6: =IF(L2<=('0 Úvod'!$G$19+'0 Úvod'!$J$19-1),'3 Provozní náklady'!L37,0) -> -178038906.2 | M6: =IF(M2<=('0 Úvod'!$G$19+'0 Úvod'!$J$19-1),'3 Provozní náklady'!M37,0) -> -216670438.2 | N6: =IF(N2<=('0 Úvod'!$G$19+'0 Úvod'!$J$19-1),'3 Provozní náklady'!N37,0) -> -264802830.3 | O6: =IF(O2<=('0 Úvod'!$G$19+'0 Úvod'!$J$19-1),'3 Provozní náklady'!O37,0) -> -395516417.3 | P6: =IF(P2<=('0 Úvod'!$G$19+'0 Úvod'!$J$19-1),'3 Provozní náklady'!P37,0) -> -303289289.8 | Q6: =IF(Q2<=('0 Úvod'!$G$19+'0 Úvod'!$J$19-1),'3 Provozní náklady'!Q37,0) -> -354192294.1 | R6: =IF(R2<=('0 Úvod'!$G$19+'0 Úvod'!$J$19-1),'3 Provozní náklady'!R37,0) -> -413745062.1 | S6: =IF(S2<=('0 Úvod'!$G$19+'0 Úvod'!$J$19-1),'3 Provozní náklady'!S37,0) -> -129870112.1
C7: Celkové invest. náklady bez rezervy | D7: =SUM(E7:S7,E19:S19) -> 2.638045867e+10 | E7: ='1 Celkové investiční náklady'!G11 -> 1821800583 | F7: ='1 Celkové investiční náklady'!H11 -> 2911281210 | G7: ='1 Celkové investiční náklady'!I11 -> 2610955272 | H7: ='1 Celkové investiční náklady'!J11 -> 1502053610 | I7: ='1 Celkové investiční náklady'!K11 -> 655394015.6 | J7: ='1 Celkové investiční náklady'!L11 -> 695322644.9 | K7: ='1 Celkové investiční náklady'!M11 -> 1345771892 | L7: ='1 Celkové investiční náklady'!N11 -> 1248507209 | M7: ='1 Celkové investiční náklady'!O11 -> 2711011166 | N7: ='1 Celkové investiční náklady'!P11 -> 2128055476 | O7: ='1 Celkové investiční náklady'!Q11 -> 2873078838 | P7: ='1 Celkové investiční náklady'!R11 -> 2144223129 | Q7: ='1 Celkové investiční náklady'!S11 -> 1284358018 | R7: ='1 Celkové investiční náklady'!T11 -> 1361400949 | S7: ='1 Celkové investiční náklady'!U11 -> 1087244660
C8: Zůstatková hodnota (záporná) | D8: -7218913428 | E8: =IF(E2='0 Úvod'!$G$19+'0 Úvod'!$J$19-1,-1*'2 Zůstatková hodnota'!$I$7,0) -> 0 | F8: =IF(F2='0 Úvod'!$G$19+'0 Úvod'!$J$19-1,-1*'2 Zůstatková hodnota'!$I$7,0) -> 0 | G8: =IF(G2='0 Úvod'!$G$19+'0 Úvod'!$J$19-1,-1*'2 Zůstatková hodnota'!$I$7,0) -> 0 | H8: =IF(H2='0 Úvod'!$G$19+'0 Úvod'!$J$19-1,-1*'2 Zůstatková hodnota'!$I$7,0) -> 0 | I8: =IF(I2='0 Úvod'!$G$19+'0 Úvod'!$J$19-1,-1*'2 Zůstatková hodnota'!$I$7,0) -> 0 | J8: =IF(J2='0 Úvod'!$G$19+'0 Úvod'!$J$19-1,-1*'2 Zůstatková hodnota'!$I$7,0) -> 0 | K8: =IF(K2='0 Úvod'!$G$19+'0 Úvod'!$J$19-1,-1*'2 Zůstatková hodnota'!$I$7,0) -> 0 | L8: =IF(L2='0 Úvod'!$G$19+'0 Úvod'!$J$19-1,-1*'2 Zůstatková hodnota'!$I$7,0) -> 0 | M8: =IF(M2='0 Úvod'!$G$19+'0 Úvod'!$J$19-1,-1*'2 Zůstatková hodnota'!$I$7,0) -> 0 | N8: =IF(N2='0 Úvod'!$G$19+'0 Úvod'!$J$19-1,-1*'2 Zůstatková hodnota'!$I$7,0) -> 0 | O8: =IF(O2='0 Úvod'!$G$19+'0 Úvod'!$J$19-1,-1*'2 Zůstatková hodnota'!$I$7,0) -> 0 | P8: =IF(P2='0 Úvod'!$G$19+'0 Úvod'!$J$19-1,-1*'2 Zůstatková hodnota'!$I$7,0) -> 0 | Q8: =IF(Q2='0 Úvod'!$G$19+'0 Úvod'!$J$19-1,-1*'2 Zůstatková hodnota'!$I$7,0) -> 0 | R8: =IF(R2='0 Úvod'!$G$19+'0 Úvod'!$J$19-1,-1*'2 Zůstatková hodnota'!$I$7,0) -> 0 | S8: =IF(S2='0 Úvod'!$G$19+'0 Úvod'!$J$19-1,-1*'2 Zůstatková hodnota'!$I$7,0) -> 0
C9: Celkové náklady | D9: =SUM(D6:D8) -> 9110072586 | E9: =SUM(E6:E8) -> 1568461994 | F9: =SUM(F6:F8) -> 2821156442 | G9: 2500606614 | H9: 279000450.3 | I9: 428233016 | J9: 442858251.7 | K9: 1235156640 | L9: 1070468302 | M9: 2494340727 | N9: 1863252646 | O9: 2477562421 | P9: 1840933839 | Q9: 930165723.4 | R9: 947655886.5 | S9: 957374547.4
C10: Cash Flow | E10: =E5-E9 -> -1626944908 | F10: -2878450678 | G10: -2545409389 | H10: -333173348 | I10: -470373309.9 | J10: -482974192.9 | K10: -1279019742 | L10: -1070801529 | M10: -2499396492 | N10: -1867852440 | O10: -2479889130 | P10: -1842860947 | Q10: -931693230.8 | R10: -948783793.1 | S10: -958102853.2
C11: Diskontní sazba | D11: ='0 Úvod'!D21 -> 0.04 | E11: 1 | F11: =E11/(1+$D$11) -> 0.9615384615 | G11: =F11/(1+$D$11) -> 0.924556213 | H11: =G11*1/(1+$D$11) -> 0.8889963587 | I11: =H11*1/(1+$D$11) -> 0.854804191 | J11: =I11*1/(1+$D$11) -> 0.8219271068 | K11: 0.7903145257 | L11: 0.7599178132 | M11: 0.730690205 | N11: 0.7025867356 | O11: 0.6755641688 | P11: 0.6495809316 | Q11: 0.6245970496 | R11: 0.6005740861 | S11: 0.5774750828
C12: Diskontované cash flow | D12: =SUM(E12:S12,E24:S24) -> -1.224158295e+10 | E12: =E10*E11 -> -1626944908 | F12: =F10*F11 -> -2767741037 | G12: -2353374065 | H12: -296189893.2 | I12: -402077076.6 | J12: -396969581 | K12: -1010827881 | L12: -813721156.1 | M12: -1826284535 | N12: -1312328348 | O12: -1675324239 | P12: -1197087331 | Q12: -581932843 | R12: -569814959.5 | S12: -553280524.5
E13: =IF(E2>='0 Úvod'!$G$21,E4-E6,0) -> 0 | F13: =IF(F2>='0 Úvod'!$G$21,F4-F6,0) -> 0 | G13: =IF(G2>='0 Úvod'!$G$21,G4-G6,0) -> 0 | H13: =IF(H2>='0 Úvod'!$G$21,H4-H6,0) -> 0 | I13: =IF(I2>='0 Úvod'!$G$21,I4-I6,0) -> 0 | J13: =IF(J2>='0 Úvod'!$G$21,J4-J6,0) -> 0 | K13: =IF(K2>='0 Úvod'!$G$21,K4-K6,0) -> 0 | L13: =IF(L2>='0 Úvod'!$G$21,L4-L6,0) -> 0 | M13: =IF(M2>='0 Úvod'!$G$21,M4-M6,0) -> 0 | N13: =IF(N2>='0 Úvod'!$G$21,N4-N6,0) -> 0 | O13: =IF(O2>='0 Úvod'!$G$21,O4-O6,0) -> 0 | P13: =IF(P2>='0 Úvod'!$G$21,P4-P6,0) -> 0 | Q13: =IF(Q2>='0 Úvod'!$G$21,Q4-Q6,0) -> 0 | R13: =IF(R2>='0 Úvod'!$G$21,R4-R6,0) -> 0 | S13: =IF(S2>='0 Úvod'!$G$21,S4-S6,0) -> 0
B14: 5.1. | C14: Kalkulace finančního vnitřního výnosového procenta | E14: =S2+1 -> 2024 | F14: =E14+1 -> 2025 | G14: 2026 | H14: 2027 | I14: 2028 | J14: 2029 | K14: 2030 | L14: 2031 | M14: 2032 | N14: 2033 | O14: 2034 | P14: 2035 | Q14: 2036 | R14: 2037 | S14: 2038
B15: b
C16: =C4 -> Celkové přírůstkové provozní příjmy | E16: =IF(E14<=('0 Úvod'!$G$19+'0 Úvod'!$J$19-1),'4 Tržby'!E44,0) -> 52857212.05 | F16: =IF(F14<=('0 Úvod'!$G$19+'0 Úvod'!$J$19-1),'4 Tržby'!F44,0) -> 53156637.08 | G16: =IF(G14<=('0 Úvod'!$G$19+'0 Úvod'!$J$19-1),'4 Tržby'!G44,0) -> 53456062.11 | H16: =IF(H14<=('0 Úvod'!$G$19+'0 Úvod'!$J$19-1),'4 Tržby'!H44,0) -> 55688647.17 | I16: =IF(I14<=('0 Úvod'!$G$19+'0 Úvod'!$J$19-1),'4 Tržby'!I44,0) -> 55988072.19 | J16: =IF(J14<=('0 Úvod'!$G$19+'0 Úvod'!$J$19-1),'4 Tržby'!J44,0) -> 56287497.22 | K16: =IF(K14<=('0 Úvod'!$G$19+'0 Úvod'!$J$19-1),'4 Tržby'!K44,0) -> 56586922.25 | L16: =IF(L14<=('0 Úvod'!$G$19+'0 Úvod'!$J$19-1),'4 Tržby'!L44,0) -> 56886347.27 | M16: =IF(M14<=('0 Úvod'!$G$19+'0 Úvod'!$J$19-1),'4 Tržby'!M44,0) -> 57185772.3 | N16: =IF(N14<=('0 Úvod'!$G$19+'0 Úvod'!$J$19-1),'4 Tržby'!N44,0) -> 57485197.33 | O16: =IF(O14<=('0 Úvod'!$G$19+'0 Úvod'!$J$19-1),'4 Tržby'!O44,0) -> 57784622.36 | P16: =IF(P14<=('0 Úvod'!$G$19+'0 Úvod'!$J$19-1),'4 Tržby'!P44,0) -> 58084047.38 | Q16: =IF(Q14<=('0 Úvod'!$G$19+'0 Úvod'!$J$19-1),'4 Tržby'!Q44,0) -> 58383472.41 | R16: =IF(R14<=('0 Úvod'!$G$19+'0 Úvod'!$J$19-1),'4 Tržby'!R44,0) -> 58682897.44 | S16: =IF(S14<=('0 Úvod'!$G$19+'0 Úvod'!$J$19-1),'4 Tržby'!S44,0) -> 58982322.47
C17: Celkové výnosy | E17: =SUM(E16) -> 52857212.05 | F17: =SUM(F16) -> 53156637.08 | G17: 53456062.11 | H17: 55688647.17 | I17: 55988072.19 | J17: 56287497.22 | K17: 56586922.25 | L17: 56886347.27 | M17: 57185772.3 | N17: 57485197.33 | O17: 57784622.36 | P17: 58084047.38 | Q17: 58383472.41 | R17: 58682897.44 | S17: 58982322.47
C18: Celkové přírůstkové provozní náklady | E18: =IF(E14<=('0 Úvod'!$G$19+'0 Úvod'!$J$19-1),'3 Provozní náklady'!E44,0) -> -1006667225 | F18: =IF(F14<=('0 Úvod'!$G$19+'0 Úvod'!$J$19-1),'3 Provozní náklady'!F44,0) -> -707793278.1 | G18: =IF(G14<=('0 Úvod'!$G$19+'0 Úvod'!$J$19-1),'3 Provozní náklady'!G44,0) -> -164067642.9 | H18: =IF(H14<=('0 Úvod'!$G$19+'0 Úvod'!$J$19-1),'3 Provozní náklady'!H44,0) -> -218735367.2 | I18: =IF(I14<=('0 Úvod'!$G$19+'0 Úvod'!$J$19-1),'3 Provozní náklady'!I44,0) -> -206256654.4 | J18: =IF(J14<=('0 Úvod'!$G$19+'0 Úvod'!$J$19-1),'3 Provozní náklady'!J44,0) -> -395493786.5 | K18: =IF(K14<=('0 Úvod'!$G$19+'0 Úvod'!$J$19-1),'3 Provozní náklady'!K44,0) -> -241790227.3 | L18: =IF(L14<=('0 Úvod'!$G$19+'0 Úvod'!$J$19-1),'3 Provozní náklady'!L44,0) -> -292456331.2 | M18: =IF(M14<=('0 Úvod'!$G$19+'0 Úvod'!$J$19-1),'3 Provozní náklady'!M44,0) -> -394881314.2 | N18: =IF(N14<=('0 Úvod'!$G$19+'0 Úvod'!$J$19-1),'3 Provozní náklady'!N44,0) -> -317964337.1 | O18: =IF(O14<=('0 Úvod'!$G$19+'0 Úvod'!$J$19-1),'3 Provozní náklady'!O44,0) -> -301313653.6 | P18: =IF(P14<=('0 Úvod'!$G$19+'0 Úvod'!$J$19-1),'3 Provozní náklady'!P44,0) -> -253185082.1 | Q18: =IF(Q14<=('0 Úvod'!$G$19+'0 Úvod'!$J$19-1),'3 Provozní náklady'!Q44,0) -> -271553020.8 | R18: =IF(R14<=('0 Úvod'!$G$19+'0 Úvod'!$J$19-1),'3 Provozní náklady'!R44,0) -> -360017672.5 | S18: =IF(S14<=('0 Úvod'!$G$19+'0 Úvod'!$J$19-1),'3 Provozní náklady'!S44,0) -> -396065892.6
C19: Celkové invest. náklady bez rezervy | E19: ='1 Celkové investiční náklady'!G26 -> 0 | F19: ='1 Celkové investiční náklady'!H26 -> 0 | G19: ='1 Celkové investiční náklady'!I26 -> 0 | H19: ='1 Celkové investiční náklady'!J26 -> 0 | I19: ='1 Celkové investiční náklady'!K26 -> 0 | J19: ='1 Celkové investiční náklady'!L26 -> 0 | K19: ='1 Celkové investiční náklady'!M26 -> 0 | L19: ='1 Celkové investiční náklady'!N26 -> 0 | M19: ='1 Celkové investiční náklady'!O26 -> 0 | N19: ='1 Celkové investiční náklady'!P26 -> 0 | O19: ='1 Celkové investiční náklady'!Q26 -> 0 | P19: ='1 Celkové investiční náklady'!R26 -> 0 | Q19: ='1 Celkové investiční náklady'!S26 -> 0 | R19: ='1 Celkové investiční náklady'!T26 -> 0 | S19: ='1 Celkové investiční náklady'!U26 -> 0
C20: Zůstatková hodnota (záporná) | E20: =IF(E14='0 Úvod'!$G$19+'0 Úvod'!$J$19-1,-1*'2 Zůstatková hodnota'!$I$7,0) -> 0 | F20: =IF(F14='0 Úvod'!$G$19+'0 Úvod'!$J$19-1,-1*'2 Zůstatková hodnota'!$I$7,0) -> 0 | G20: =IF(G14='0 Úvod'!$G$19+'0 Úvod'!$J$19-1,-1*'2 Zůstatková hodnota'!$I$7,0) -> 0 | H20: =IF(H14='0 Úvod'!$G$19+'0 Úvod'!$J$19-1,-1*'2 Zůstatková hodnota'!$I$7,0) -> 0 | I20: =IF(I14='0 Úvod'!$G$19+'0 Úvod'!$J$19-1,-1*'2 Zůstatková hodnota'!$I$7,0) -> 0 | J20: =IF(J14='0 Úvod'!$G$19+'0 Úvod'!$J$19-1,-1*'2 Zůstatková hodnota'!$I$7,0) -> 0 | K20: =IF(K14='0 Úvod'!$G$19+'0 Úvod'!$J$19-1,-1*'2 Zůstatková hodnota'!$I$7,0) -> 0 | L20: =IF(L14='0 Úvod'!$G$19+'0 Úvod'!$J$19-1,-1*'2 Zůstatková hodnota'!$I$7,0) -> 0 | M20: =IF(M14='0 Úvod'!$G$19+'0 Úvod'!$J$19-1,-1*'2 Zůstatková hodnota'!$I$7,0) -> 0 | N20: =IF(N14='0 Úvod'!$G$19+'0 Úvod'!$J$19-1,-1*'2 Zůstatková hodnota'!$I$7,0) -> 0 | O20: =IF(O14='0 Úvod'!$G$19+'0 Úvod'!$J$19-1,-1*'2 Zůstatková hodnota'!$I$7,0) -> 0 | P20: =IF(P14='0 Úvod'!$G$19+'0 Úvod'!$J$19-1,-1*'2 Zůstatková hodnota'!$I$7,0) -> 0 | Q20: =IF(Q14='0 Úvod'!$G$19+'0 Úvod'!$J$19-1,-1*'2 Zůstatková hodnota'!$I$7,0) -> 0 | R20: =IF(R14='0 Úvod'!$G$19+'0 Úvod'!$J$19-1,-1*'2 Zůstatková hodnota'!$I$7,0) -> 0 | S20: =IF(S14='0 Úvod'!$G$19+'0 Úvod'!$J$19-1,-1*'2 Zůstatková hodnota'!$I$7,0) -> -7218913428
C21: Celkové náklady | E21: =SUM(E18:E20) -> -1006667225 | F21: =SUM(F18:F20) -> -707793278.1 | G21: -164067642.9 | H21: -218735367.2 | I21: -206256654.4 | J21: -395493786.5 | K21: -241790227.3 | L21: -292456331.2 | M21: -394881314.2 | N21: -317964337.1 | O21: -301313653.6 | P21: -253185082.1 | Q21: -271553020.8 | R21: -360017672.5 | S21: -7614979321
C22: Cash Flow | E22: =E17-E21 -> 1059524437 | F22: 760949915.2 | G22: 217523705 | H22: 274424014.3 | I22: 262244726.6 | J22: 451781283.7 | K22: 298377149.5 | L22: 349342678.5 | M22: 452067086.5 | N22: 375449534.4 | O22: 359098275.9 | P22: 311269129.5 | Q22: 329936493.2 | R22: 418700569.9 | S22: 7673961643
C23: Diskontní sazba | D23: =D11 -> 0.04 | E23: =S11*1/(1+$D$11) -> 0.5552645027 | F23: =E23*1/(1+$D$11) -> 0.5339081757 | G23: =F23*1/(1+$D$11) -> 0.5133732459 | H23: 0.493628121 | I23: 0.474642424 | J23: 0.4563869462 | K23: 0.4388336021 | L23: 0.4219553867 | M23: 0.4057263333 | N23: 0.3901214743 | O23: 0.3751168023 | P23: 0.3606892329 | Q23: 0.3468165701 | R23: 0.3334774713 | S23: 0.3206514147
C24: Diskontované cash flow | E24: =E22*E23 -> 588316309.6 | F24: 406277381 | G24: 111670850.5 | H24: 135463410.6 | I24: 124472472.7 | J24: 206187080.4 | K24: 130937919.3 | L24: 147407025 | M24: 183415521.4 | N24: 146470925.9 | O24: 134703797 | P24: 112271423.5 | Q24: 114427442.9 | R24: 139627207.3 | S24: 2460666657
E25: =IF(E14>='0 Úvod'!$G$21,E16-E18,0) -> 1059524437 | F25: =IF(F14>='0 Úvod'!$G$21,F16-F18,0) -> 760949915.2 | G25: =IF(G14>='0 Úvod'!$G$21,G16-G18,0) -> 217523705 | H25: =IF(H14>='0 Úvod'!$G$21,H16-H18,0) -> 274424014.3 | I25: =IF(I14>='0 Úvod'!$G$21,I16-I18,0) -> 262244726.6 | J25: =IF(J14>='0 Úvod'!$G$21,J16-J18,0) -> 451781283.7 | K25: =IF(K14>='0 Úvod'!$G$21,K16-K18,0) -> 298377149.5 | L25: =IF(L14>='0 Úvod'!$G$21,L16-L18,0) -> 349342678.5 | M25: =IF(M14>='0 Úvod'!$G$21,M16-M18,0) -> 452067086.5 | N25: =IF(N14>='0 Úvod'!$G$21,N16-N18,0) -> 375449534.4 | O25: =IF(O14>='0 Úvod'!$G$21,O16-O18,0) -> 359098275.9 | P25: =IF(P14>='0 Úvod'!$G$21,P16-P18,0) -> 311269129.5 | Q25: =IF(Q14>='0 Úvod'!$G$21,Q16-Q18,0) -> 329936493.2 | R25: =IF(R14>='0 Úvod'!$G$21,R16-R18,0) -> 418700569.9 | S25: =IF(S14>='0 Úvod'!$G$21,S16-S18,0) -> 455048215
B26: Finanční vnitřní výnosové procento investice FRR/C | E26: =ROUND(IRR((E10:S10,E22:S22),0.05),4) -> -0.0258
B27: Finanční čistá současná hodnota investice FNPV/C (CZK) | E27: =E10+NPV('0 Úvod'!D21,(F10:S10,E22:S22)) -> -1.224158295e+10
B28: Finanční čistá současná hodnota investice FNPV/C (EUR) | E28: =E27/'0 Úvod'!N19 -> -477068704.4

Sheet 6 Kontrola dotací
B2: 6.1. | C2: S projektem | E2: ='0 Úvod'!G19 -> 2009 | F2: =E2+1 -> 2010 | G2: 2011 | H2: 2012 | I2: 2013 | J2: 2014 | K2: 2015 | L2: 2016 | M2: 2017 | N2: 2018 | O2: 2019 | P2: =O2+1 -> 2020 | Q2: 2021 | R2: 2022 | S2: 2023
B3: a | D3: Celkem
B4: A | C4: Náklady na údržbu a opravy | D4: =SUM(E4:S4,E11:S11) -> 4975016441 | E4: ='3 Provozní náklady'!E4+'3 Provozní náklady'!E5 -> 154438210.2 | F4: ='3 Provozní náklady'!F4+'3 Provozní náklady'!F5 -> 160580374.1 | G4: ='3 Provozní náklady'!G4+'3 Provozní náklady'!G5 -> 194821024.9 | H4: ='3 Provozní náklady'!H4+'3 Provozní náklady'!H5 -> 136047405.6 | I4: ='3 Provozní náklady'!I4+'3 Provozní náklady'!I5 -> 126146188 | J4: ='3 Provozní náklady'!J4+'3 Provozní náklady'!J5 -> 164309269.2 | K4: ='3 Provozní náklady'!K4+'3 Provozní náklady'!K5 -> 159701253.1 | L4: ='3 Provozní náklady'!L4+'3 Provozní náklady'!L5 -> 156577675 | M4: ='3 Provozní náklady'!M4+'3 Provozní náklady'!M5 -> 156577675 | N4: ='3 Provozní náklady'!N4+'3 Provozní náklady'!N5 -> 156577675 | O4: ='3 Provozní náklady'!O4+'3 Provozní náklady'!O5 -> 167443295.1 | P4: ='3 Provozní náklady'!P4+'3 Provozní náklady'!P5 -> 167497623.2 | Q4: ='3 Provozní náklady'!Q4+'3 Provozní náklady'!Q5 -> 167552223 | R4: ='3 Provozní náklady'!R4+'3 Provozní náklady'!R5 -> 167607095.7 | S4: ='3 Provozní náklady'!S4+'3 Provozní náklady'!S5 -> 167662242.8
B5: B | C5: Náklady na řízení provozu | D5: =SUM(E5:S5,E12:S12) -> 2292207907 | E5: ='3 Provozní náklady'!E6 -> 104197297 | F5: ='3 Provozní náklady'!F6 -> 104394240.5 | G5: ='3 Provozní náklady'!G6 -> 114276447.9 | H5: ='3 Provozní náklady'!H6 -> 92856289.38 | I5: ='3 Provozní náklady'!I6 -> 90865527.88 | J5: ='3 Provozní náklady'!J6 -> 92310934.42 | K5: ='3 Provozní náklady'!K6 -> 99301727.47 | L5: ='3 Provozní náklady'!L6 -> 99743209.22 | M5: ='3 Provozní náklady'!M6 -> 99743209.22 | N5: ='3 Provozní náklady'!N6 -> 99743209.22 | O5: ='3 Provozní náklady'!O6 -> 78880018.91 | P5: ='3 Provozní náklady'!P6 -> 80852019.38 | Q5: ='3 Provozní náklady'!Q6 -> 82873319.86 | R5: ='3 Provozní náklady'!R6 -> 84945152.86 | S5: ='3 Provozní náklady'!S6 -> 94104417.33
B6: C | C6: Příjmy z poplatků za dopravní cestu* | D6: 4925477977 | E6: ='4 Tržby'!E4+'4 Tržby'!E5 -> 92914842.79 | F6: ='4 Tržby'!F4+'4 Tržby'!F5 -> 91896080.6 | G6: ='4 Tržby'!G4+'4 Tržby'!G5 -> 103332120.6 | H6: ='4 Tržby'!H4+'4 Tržby'!H5 -> 92451210.81 | I6: ='4 Tržby'!I4+'4 Tržby'!I5 -> 104483814.6 | J6: ='4 Tržby'!J4+'4 Tržby'!J5 -> 108524827.3 | K6: ='4 Tržby'!K4+'4 Tržby'!K5 -> 104975277.7 | L6: ='4 Tržby'!L4+'4 Tržby'!L5 -> 149479850.2 | M6: ='4 Tržby'!M4+'4 Tržby'!M5 -> 152723121.1 | N6: ='4 Tržby'!N4+'4 Tržby'!N5 -> 153692693.2 | O6: ='4 Tržby'!O4+'4 Tržby'!O5 -> 156479380.3 | P6: ='4 Tržby'!P4+'4 Tržby'!P5 -> 157392582.7 | Q6: ='4 Tržby'!Q4+'4 Tržby'!Q5 -> 158305785.1 | R6: ='4 Tržby'!R4+'4 Tržby'!R5 -> 159218987.5 | S6: ='4 Tržby'!S4+'4 Tržby'!S5 -> 160132190
B7: D | C7: Provozní dotace | D7: 2341746371 | E7: =IF((E4+E5-E6)>0,E4+E5-E6,0) -> 165720664.4 | F7: =IF((F4+F5-F6)>0,F4+F5-F6,0) -> 173078534.1 | G7: 205765352.2 | H7: 136452484.2 | I7: 112527901.3 | J7: 148095376.4 | K7: 154027702.9 | L7: 106841034.1 | M7: 103597763.1 | N7: 102628191 | O7: 89843933.75 | P7: 90957059.9 | Q7: 92119757.7 | R7: 93333261.02 | S7: 101634470.2
B9: 6.1. | C9: S projektem | E9: =S2+1 -> 2024 | F9: =E9+1 -> 2025 | G9: 2026 | H9: 2027 | I9: 2028 | J9: 2029 | K9: 2030 | L9: 2031 | M9: 2032 | N9: 2033 | O9: 2034 | P9: =O9+1 -> 2035 | Q9: 2036 | R9: 2037 | S9: 2038
B10: b
B11: A | C11: Náklady na údržbu a opravy | E11: ='3 Provozní náklady'!E11+'3 Provozní náklady'!E12 -> 165171195.5 | F11: ='3 Provozní náklady'!F11+'3 Provozní náklady'!F12 -> 165997051.5 | G11: ='3 Provozní náklady'!G11+'3 Provozní náklady'!G12 -> 166827036.7 | H11: ='3 Provozní náklady'!H11+'3 Provozní náklady'!H12 -> 167661171.9 | I11: ='3 Provozní náklady'!I11+'3 Provozní náklady'!I12 -> 168499477.8 | J11: ='3 Provozní náklady'!J11+'3 Provozní náklady'!J12 -> 169341975.1 | K11: ='3 Provozní náklady'!K11+'3 Provozní náklady'!K12 -> 170188685 | L11: ='3 Provozní náklady'!L11+'3 Provozní náklady'!L12 -> 171039628.4 | M11: ='3 Provozní náklady'!M11+'3 Provozní náklady'!M12 -> 171894826.6 | N11: ='3 Provozní náklady'!N11+'3 Provozní náklady'!N12 -> 172754300.7 | O11: ='3 Provozní náklady'!O11+'3 Provozní náklady'!O12 -> 173618072.2 | P11: ='3 Provozní náklady'!P11+'3 Provozní náklady'!P12 -> 174486162.6 | Q11: ='3 Provozní náklady'!Q11+'3 Provozní náklady'!Q12 -> 176231024.2 | R11: ='3 Provozní náklady'!R11+'3 Provozní náklady'!R12 -> 177993334.5 | S11: ='3 Provozní náklady'!S11+'3 Provozní náklady'!S12 -> 179773267.8
B12: B | C12: Náklady na řízení provozu | E12: ='3 Provozní náklady'!E13 -> 49482811.72 | F12: ='3 Provozní náklady'!F13 -> 50719882.01 | G12: ='3 Provozní náklady'!G13 -> 51987879.06 | H12: ='3 Provozní náklady'!H13 -> 53287576.04 | I12: ='3 Provozní náklady'!I13 -> 54619765.44 | J12: ='3 Provozní náklady'!J13 -> 55985259.58 | K12: ='3 Provozní náklady'!K13 -> 57104964.77 | L12: ='3 Provozní náklady'!L13 -> 58247064.06 | M12: ='3 Provozní náklady'!M13 -> 59412005.34 | N12: ='3 Provozní náklady'!N13 -> 60600245.45 | O12: ='3 Provozní náklady'!O13 -> 61812250.36 | P12: ='3 Provozní náklady'!P13 -> 63048495.37 | Q12: ='3 Provozní náklady'!Q13 -> 64309465.27 | R12: ='3 Provozní náklady'!R13 -> 65595654.58 | S12: ='3 Provozní náklady'!S13 -> 66907567.67
B13: C | C13: Příjmy z poplatků za dopravní cestu* | E13: ='4 Tržby'!E11+'4 Tržby'!E12 -> 195716689.6 | F13: ='4 Tržby'!F11+'4 Tržby'!F12 -> 196133116.9 | G13: ='4 Tržby'!G11+'4 Tržby'!G12 -> 196549544.2 | H13: ='4 Tržby'!H11+'4 Tržby'!H12 -> 196965971.5 | I13: ='4 Tržby'!I11+'4 Tržby'!I12 -> 197382398.9 | J13: ='4 Tržby'!J11+'4 Tržby'!J12 -> 197798826.2 | K13: ='4 Tržby'!K11+'4 Tržby'!K12 -> 198215253.5 | L13: ='4 Tržby'!L11+'4 Tržby'!L12 -> 198631680.8 | M13: ='4 Tržby'!M11+'4 Tržby'!M12 -> 199048108.1 | N13: ='4 Tržby'!N11+'4 Tržby'!N12 -> 199464535.4 | O13: ='4 Tržby'!O11+'4 Tržby'!O12 -> 199880962.8 | P13: ='4 Tržby'!P11+'4 Tržby'!P12 -> 200297390.1 | Q13: ='4 Tržby'!Q11+'4 Tržby'!Q12 -> 200713817.4 | R13: ='4 Tržby'!R11+'4 Tržby'!R12 -> 201130244.7 | S13: ='4 Tržby'!S11+'4 Tržby'!S12 -> 201546672
B14: D | C14: Provozní dotace | E14: =IF((E11+E12-E13)>0,E11+E12-E13,0) -> 18937317.6 | F14: =IF((F11+F12-F13)>0,F11+F12-F13,0) -> 20583816.56 | G14: 22265371.55 | H14: 23982776.39 | I14: 25736844.33 | J14: 27528408.54 | K14: 29078396.29 | L14: 30655011.69 | M14: 32258723.8 | N14: 33890010.72 | O14: 35549359.82 | P14: 37237267.87 | Q14: 39826672.09 | R14: 42458744.32 | S14: 45134163.44
B17: 6.2. | C17: Bez projektu | E17: =E2 -> 2009 | F17: =E17+1 -> 2010 | G17: 2011 | H17: 2012 | I17: 2013 | J17: 2014 | K17: 2015 | L17: 2016 | M17: 2017 | N17: 2018 | O17: 2019 | P17: =O17+1 -> 2020 | Q17: 2021 | R17: 2022 | S17: 2023
B18: a | D18: Celkem
B19: E | C19: Náklady na údržbu a opravy | D19: =SUM(E19:S19,E26:S26) -> 1.304573241e+10 | E19: ='3 Provozní náklady'!E19+'3 Provozní náklady'!E20 -> 411227994.4 | F19: ='3 Provozní náklady'!F19+'3 Provozní náklady'!F20 -> 251907987.2 | G19: ='3 Provozní náklady'!G19+'3 Provozní náklady'!G20 -> 316460091.5 | H19: ='3 Provozní náklady'!H19+'3 Provozní náklady'!H20 -> 1349794703 | I19: ='3 Provozní náklady'!I19+'3 Provozní náklady'!I20 -> 343542996.7 | J19: ='3 Provozní náklady'!J19+'3 Provozní náklady'!J20 -> 406542913.2 | K19: ='3 Provozní náklady'!K19+'3 Provozní náklady'!K20 -> 264205381.7 | L19: ='3 Provozní náklady'!L19+'3 Provozní náklady'!L20 -> 325784554.2 | M19: ='3 Provozní náklady'!M19+'3 Provozní náklady'!M20 -> 361701705.4 | N19: ='3 Provozní náklady'!N19+'3 Provozní náklady'!N20 -> 406495409 | O19: ='3 Provozní náklady'!O19+'3 Provozní náklady'!O20 -> 523772576.5 | P19: ='3 Provozní náklady'!P19+'3 Provozní náklady'!P20 -> 430620098.7 | Q19: ='3 Provozní náklady'!Q19+'3 Provozní náklady'!Q20 -> 480573532.4 | R19: ='3 Provozní náklady'!R19+'3 Provozní náklady'!R20 -> 536577712.7 | S19: ='3 Provozní náklady'!S19+'3 Provozní náklady'!S20 -> 275943717.7
B20: F | C20: Náklady na řízení provozu | D20: =SUM(E20:S20,E27:S27) -> 4272964589 | E20: ='3 Provozní náklady'!E21 -> 100746101.8 | F20: ='3 Provozní náklady'!F21 -> 103191395.5 | G20: ='3 Provozní náklady'!G21 -> 102986039.5 | H20: ='3 Provozní náklady'!H21 -> 102162151.2 | I20: ='3 Provozní náklady'!I21 -> 100629718.9 | J20: ='3 Provozní náklady'!J21 -> 102541683.6 | K20: ='3 Provozní náklady'!K21 -> 105412850.7 | L20: ='3 Provozní náklady'!L21 -> 108575236.2 | M20: ='3 Provozní náklady'!M21 -> 111289617.1 | N20: ='3 Provozní náklady'!N21 -> 114628305.6 | O20: ='3 Provozní náklady'!O21 -> 118067154.8 | P20: ='3 Provozní náklady'!P21 -> 121018833.7 | Q20: ='3 Provozní náklady'!Q21 -> 124044304.5 | R20: ='3 Provozní náklady'!R21 -> 129719597.9 | S20: ='3 Provozní náklady'!S21 -> 115693054.6
B21: G | C21: Příjmy z poplatků za dopravní cestu* | D21: 4436480731 | E21: ='4 Tržby'!E19+'4 Tržby'!E20 -> 151397757.3 | F21: ='4 Tržby'!F19+'4 Tržby'!F20 -> 149190316.7 | G21: ='4 Tržby'!G19+'4 Tržby'!G20 -> 148134896.2 | H21: ='4 Tržby'!H19+'4 Tržby'!H20 -> 146624108.6 | I21: ='4 Tržby'!I19+'4 Tržby'!I20 -> 146624108.6 | J21: ='4 Tržby'!J19+'4 Tržby'!J20 -> 148640768.5 | K21: ='4 Tržby'!K19+'4 Tržby'!K20 -> 148838380.4 | L21: ='4 Tržby'!L19+'4 Tržby'!L20 -> 149813076.5 | M21: ='4 Tržby'!M19+'4 Tržby'!M20 -> 157778885.8 | N21: ='4 Tržby'!N19+'4 Tržby'!N20 -> 158292487.5 | O21: ='4 Tržby'!O19+'4 Tržby'!O20 -> 158806089.2 | P21: ='4 Tržby'!P19+'4 Tržby'!P20 -> 159319690.8 | Q21: ='4 Tržby'!Q19+'4 Tržby'!Q20 -> 159833292.5 | R21: ='4 Tržby'!R19+'4 Tržby'!R20 -> 160346894.1 | S21: ='4 Tržby'!S19+'4 Tržby'!S20 -> 160860495.8
B22: H | C22: Provozní dotace | D22: 1.288221627e+10 | E22: =IF((E19+E20-E21)>0,E19+E20-E21,0) -> 360576338.8 | F22: =IF((F19+F20-F21)>0,F19+F20-F21,0) -> 205909066 | G22: 271311234.8 | H22: 1305332746 | I22: 297548607 | J22: 360443828.3 | K22: 220779852 | L22: 284546713.9 | M22: 315212436.6 | N22: 362831227.1 | O22: 483033642.1 | P22: 392319241.6 | Q22: 444784544.5 | R22: 505950416.5 | S22: 230776276.5
B24: 6.2. | C24: Bez projektu | E24: =S17+1 -> 2024 | F24: =E24+1 -> 2025 | G24: 2026 | H24: 2027 | I24: 2028 | J24: 2029 | K24: 2030 | L24: 2031 | M24: 2032 | N24: 2033 | O24: 2034 | P24: =O24+1 -> 2035 | Q24: 2036 | R24: 2037 | S24: 2038
B25: b
B26: E | C26: Náklady na údržbu a opravy | E26: ='3 Provozní náklady'!E26+'3 Provozní náklady'!E27 -> 1102735851 | F26: ='3 Provozní náklady'!F26+'3 Provozní náklady'!F27 -> 802960196.1 | G26: ='3 Provozní náklady'!G26+'3 Provozní náklady'!G27 -> 258293792.8 | H26: ='3 Provozní náklady'!H26+'3 Provozní náklady'!H27 -> 273557574.3 | I26: ='3 Provozní náklady'!I26+'3 Provozní náklady'!I27 -> 259096193.3 | J26: ='3 Provozní náklady'!J26+'3 Provozní náklady'!J27 -> 446284324.3 | K26: ='3 Provozní náklady'!K26+'3 Provozní náklady'!K27 -> 291056446.2 | L26: ='3 Provozní náklady'!L26+'3 Provozní náklady'!L27 -> 340155044.2 | M26: ='3 Provozní náklady'!M26+'3 Provozní náklady'!M27 -> 440968407.1 | N26: ='3 Provozní náklady'!N26+'3 Provozní náklady'!N27 -> 362394749.4 | O26: ='3 Provozní náklady'!O26+'3 Provozní náklady'!O27 -> 344041359.6 | P26: ='3 Provozní náklady'!P26+'3 Provozní náklady'!P27 -> 294163071.1 | Q26: ='3 Provozní náklady'!Q26+'3 Provozní náklady'!Q27 -> 311605708 | R26: ='3 Provozní náklady'!R26+'3 Provozní náklady'!R27 -> 399109103.2 | S26: ='3 Provozní náklady'!S26+'3 Provozní náklady'!S27 -> 434159218.6
B27: F | C27: Náklady na řízení provozu | E27: ='3 Provozní náklady'!E28 -> 118585380.9 | F27: ='3 Provozní náklady'!F28 -> 121550015.5 | G27: ='3 Provozní náklady'!G28 -> 124588765.8 | H27: ='3 Provozní náklady'!H28 -> 166126540.8 | I27: ='3 Provozní náklady'!I28 -> 170279704.3 | J27: ='3 Provozní náklady'!J28 -> 174536697 | K27: ='3 Provozní náklady'!K28 -> 178027430.9 | L27: ='3 Provozní náklady'!L28 -> 181587979.5 | M27: ='3 Provozní náklady'!M28 -> 185219739.1 | N27: ='3 Provozní náklady'!N28 -> 188924133.9 | O27: ='3 Provozní náklady'!O28 -> 192702616.6 | P27: ='3 Provozní náklady'!P28 -> 196556668.9 | Q27: ='3 Provozní náklady'!Q28 -> 200487802.3 | R27: ='3 Provozní náklady'!R28 -> 204497558.3 | S27: ='3 Provozní náklady'!S28 -> 208587509.5
B28: G | C28: Příjmy z poplatků za dopravní cestu* | E28: ='4 Tržby'!E26+'4 Tržby'!E27 -> 142859477.5 | F28: ='4 Tržby'!F26+'4 Tržby'!F27 -> 142976479.8 | G28: ='4 Tržby'!G26+'4 Tržby'!G27 -> 143093482.1 | H28: ='4 Tržby'!H26+'4 Tržby'!H27 -> 141277324.4 | I28: ='4 Tržby'!I26+'4 Tržby'!I27 -> 141394326.7 | J28: ='4 Tržby'!J26+'4 Tržby'!J27 -> 141511329 | K28: ='4 Tržby'!K26+'4 Tržby'!K27 -> 141628331.2 | L28: ='4 Tržby'!L26+'4 Tržby'!L27 -> 141745333.5 | M28: ='4 Tržby'!M26+'4 Tržby'!M27 -> 141862335.8 | N28: ='4 Tržby'!N26+'4 Tržby'!N27 -> 141979338.1 | O28: ='4 Tržby'!O26+'4 Tržby'!O27 -> 142096340.4 | P28: ='4 Tržby'!P26+'4 Tržby'!P27 -> 142213342.7 | Q28: ='4 Tržby'!Q26+'4 Tržby'!Q27 -> 142330345 | R28: ='4 Tržby'!R26+'4 Tržby'!R27 -> 142447347.3 | S28: ='4 Tržby'!S26+'4 Tržby'!S27 -> 142564349.6
B29: H | C29: Provozní dotace | E29: =IF((E26+E27-E28)>0,E26+E27-E28,0) -> 1078461754 | F29: =IF((F26+F27-F28)>0,F26+F27-F28,0) -> 781533731.7 | G29: 239789076.6 | H29: 298406790.7 | I29: 287981571 | J29: 479309692.3 | K29: 327455545.8 | L29: 379997690.2 | M29: 484325810.3 | N29: 409339545.1 | O29: 394647635.7 | P29: 348506397.3 | Q29: 369763165.3 | R29: 461159314.2 | S29: 500182378.5
B32: 6.3. | C32: Redukce dotací | E32: =E2 -> 2009 | F32: =E32+1 -> 2010 | G32: 2011 | H32: 2012 | I32: 2013 | J32: 2014 | K32: 2015 | L32: 2016 | M32: 2017 | N32: 2018 | O32: 2019 | P32: =O32+1 -> 2020 | Q32: 2021 | R32: 2022 | S32: 2023
B33: a | D33: Celkem
B34: I | C34: Redukce přírůstkových provozních nákladů | D34: =SUM(E34:S34,E41:S41) -> 1.005147265e+10 | E34: =IF(E32<='0 Úvod'!$G$19+'0 Úvod'!$J$19-1,(E19+E20)-(E4+E5),0) -> 253338589 | F34: =IF(F32<='0 Úvod'!$G$19+'0 Úvod'!$J$19-1,(F19+F20)-(F4+F5),0) -> 90124768.03 | G34: =IF(G32<='0 Úvod'!$G$19+'0 Úvod'!$J$19-1,(G19+G20)-(G4+G5),0) -> 110348658.1 | H34: =IF(H32<='0 Úvod'!$G$19+'0 Úvod'!$J$19-1,(H19+H20)-(H4+H5),0) -> 1223053160 | I34: =IF(I32<='0 Úvod'!$G$19+'0 Úvod'!$J$19-1,(I19+I20)-(I4+I5),0) -> 227160999.7 | J34: =IF(J32<='0 Úvod'!$G$19+'0 Úvod'!$J$19-1,(J19+J20)-(J4+J5),0) -> 252464393.2 | K34: =IF(K32<='0 Úvod'!$G$19+'0 Úvod'!$J$19-1,(K19+K20)-(K4+K5),0) -> 110615251.8 | L34: =IF(L32<='0 Úvod'!$G$19+'0 Úvod'!$J$19-1,(L19+L20)-(L4+L5),0) -> 178038906.2 | M34: =IF(M32<='0 Úvod'!$G$19+'0 Úvod'!$J$19-1,(M19+M20)-(M4+M5),0) -> 216670438.2 | N34: =IF(N32<='0 Úvod'!$G$19+'0 Úvod'!$J$19-1,(N19+N20)-(N4+N5),0) -> 264802830.3 | O34: =IF(O32<='0 Úvod'!$G$19+'0 Úvod'!$J$19-1,(O19+O20)-(O4+O5),0) -> 395516417.3 | P34: =IF(P32<='0 Úvod'!$G$19+'0 Úvod'!$J$19-1,(P19+P20)-(P4+P5),0) -> 303289289.8 | Q34: =IF(Q32<='0 Úvod'!$G$19+'0 Úvod'!$J$19-1,(Q19+Q20)-(Q4+Q5),0) -> 354192294.1 | R34: =IF(R32<='0 Úvod'!$G$19+'0 Úvod'!$J$19-1,(R19+R20)-(R4+R5),0) -> 413745062.1 | S34: =IF(S32<='0 Úvod'!$G$19+'0 Úvod'!$J$19-1,(S19+S20)-(S4+S5),0) -> 129870112.1
B35: J | C35: Redukce provozních dotací | D35: =SUM(E35:S35,E42:S42) -> 1.05404699e+10 | E35: =IF(E32<='0 Úvod'!$G$19+'0 Úvod'!$J$19-1,E22-E7,0) -> 194855674.4 | F35: =IF(F32<='0 Úvod'!$G$19+'0 Úvod'!$J$19-1,F22-F7,0) -> 32830531.95 | G35: =IF(G32<='0 Úvod'!$G$19+'0 Úvod'!$J$19-1,G22-G7,0) -> 65545882.56 | H35: =IF(H32<='0 Úvod'!$G$19+'0 Úvod'!$J$19-1,H22-H7,0) -> 1168880262 | I35: =IF(I32<='0 Úvod'!$G$19+'0 Úvod'!$J$19-1,I22-I7,0) -> 185020705.8 | J35: =IF(J32<='0 Úvod'!$G$19+'0 Úvod'!$J$19-1,J22-J7,0) -> 212348452 | K35: =IF(K32<='0 Úvod'!$G$19+'0 Úvod'!$J$19-1,K22-K7,0) -> 66752149.13 | L35: =IF(L32<='0 Úvod'!$G$19+'0 Úvod'!$J$19-1,L22-L7,0) -> 177705679.8 | M35: =IF(M32<='0 Úvod'!$G$19+'0 Úvod'!$J$19-1,M22-M7,0) -> 211614673.5 | N35: =IF(N32<='0 Úvod'!$G$19+'0 Úvod'!$J$19-1,N22-N7,0) -> 260203036.1 | O35: =IF(O32<='0 Úvod'!$G$19+'0 Úvod'!$J$19-1,O22-O7,0) -> 393189708.4 | P35: =IF(P32<='0 Úvod'!$G$19+'0 Úvod'!$J$19-1,P22-P7,0) -> 301362181.7 | Q35: =IF(Q32<='0 Úvod'!$G$19+'0 Úvod'!$J$19-1,Q22-Q7,0) -> 352664786.7 | R35: =IF(R32<='0 Úvod'!$G$19+'0 Úvod'!$J$19-1,R22-R7,0) -> 412617155.5 | S35: =IF(S32<='0 Úvod'!$G$19+'0 Úvod'!$J$19-1,S22-S7,0) -> 129141806.3
C36: Je snížení prov. nákladů plně kompenzováno snížením dotací | D36: =IF(D35>=D34,"ANO","NE") -> ANO | E36: =IF(E35>=E34,"ANO","NE") -> NE | F36: =IF(F35>=F34,"ANO","NE") -> NE | G36: =IF(G35>=G34,"ANO","NE") -> NE | H36: NE | I36: NE | J36: NE | K36: NE | L36: NE | M36: NE | N36: NE | O36: NE | P36: NE | Q36: NE | R36: NE | S36: NE
B37: K | C37: Čistá úspora provozních nákladů** | D37: =SUM(E44:S44,E37:S37) -> 488997245.3 | E37: =E35-E34 -> -58482914.55 | F37: -57294236.07 | G37: -44802775.59 | H37: -54172897.75 | I37: -42140293.91 | J37: -40115941.19 | K37: -43863102.69 | L37: -333226.3257 | M37: -5055764.707 | N37: -4599794.26 | O37: -2326708.881 | P37: -1927108.113 | Q37: -1527507.346 | R37: -1127906.578 | S37: -728305.8106
B39: 6.3. | C39: Redukce dotací | E39: =S32+1 -> 2024 | F39: =E39+1 -> 2025 | G39: 2026 | H39: 2027 | I39: 2028 | J39: 2029 | K39: 2030 | L39: 2031 | M39: 2032 | N39: 2033 | O39: 2034 | P39: =O39+1 -> 2035 | Q39: 2036 | R39: 2037 | S39: 2038
B40: b
B41: I | C41: Redukce přírůstkových provozních nákladů | E41: =IF(E39<='0 Úvod'!$G$19+'0 Úvod'!$J$19-1,(E26+E27)-(E11+E12),0) -> 1006667225 | F41: =IF(F39<='0 Úvod'!$G$19+'0 Úvod'!$J$19-1,(F26+F27)-(F11+F12),0) -> 707793278.1 | G41: =IF(G39<='0 Úvod'!$G$19+'0 Úvod'!$J$19-1,(G26+G27)-(G11+G12),0) -> 164067642.9 | H41: =IF(H39<='0 Úvod'!$G$19+'0 Úvod'!$J$19-1,(H26+H27)-(H11+H12),0) -> 218735367.2 | I41: =IF(I39<='0 Úvod'!$G$19+'0 Úvod'!$J$19-1,(I26+I27)-(I11+I12),0) -> 206256654.4 | J41: =IF(J39<='0 Úvod'!$G$19+'0 Úvod'!$J$19-1,(J26+J27)-(J11+J12),0) -> 395493786.5 | K41: =IF(K39<='0 Úvod'!$G$19+'0 Úvod'!$J$19-1,(K26+K27)-(K11+K12),0) -> 241790227.3 | L41: =IF(L39<='0 Úvod'!$G$19+'0 Úvod'!$J$19-1,(L26+L27)-(L11+L12),0) -> 292456331.2 | M41: =IF(M39<='0 Úvod'!$G$19+'0 Úvod'!$J$19-1,(M26+M27)-(M11+M12),0) -> 394881314.2 | N41: =IF(N39<='0 Úvod'!$G$19+'0 Úvod'!$J$19-1,(N26+N27)-(N11+N12),0) -> 317964337.1 | O41: =IF(O39<='0 Úvod'!$G$19+'0 Úvod'!$J$19-1,(O26+O27)-(O11+O12),0) -> 301313653.6 | P41: =IF(P39<='0 Úvod'!$G$19+'0 Úvod'!$J$19-1,(P26+P27)-(P11+P12),0) -> 253185082.1 | Q41: =IF(Q39<='0 Úvod'!$G$19+'0 Úvod'!$J$19-1,(Q26+Q27)-(Q11+Q12),0) -> 271553020.8 | R41: =IF(R39<='0 Úvod'!$G$19+'0 Úvod'!$J$19-1,(R26+R27)-(R11+R12),0) -> 360017672.5 | S41: =IF(S39<='0 Úvod'!$G$19+'0 Úvod'!$J$19-1,(S26+S27)-(S11+S12),0) -> 396065892.6
B42: J | C42: Redukce provozních dotací - koridory | E42: =IF(E39<='0 Úvod'!$G$19+'0 Úvod'!$J$19-1,E29-E14,0) -> 1059524437 | F42: =IF(F39<='0 Úvod'!$G$19+'0 Úvod'!$J$19-1,F29-F14,0) -> 760949915.2 | G42: =IF(G39<='0 Úvod'!$G$19+'0 Úvod'!$J$19-1,G29-G14,0) -> 217523705 | H42: =IF(H39<='0 Úvod'!$G$19+'0 Úvod'!$J$19-1,H29-H14,0) -> 274424014.3 | I42: =IF(I39<='0 Úvod'!$G$19+'0 Úvod'!$J$19-1,I29-I14,0) -> 262244726.6 | J42: =IF(J39<='0 Úvod'!$G$19+'0 Úvod'!$J$19-1,J29-J14,0) -> 451781283.7 | K42: =IF(K39<='0 Úvod'!$G$19+'0 Úvod'!$J$19-1,K29-K14,0) -> 298377149.5 | L42: =IF(L39<='0 Úvod'!$G$19+'0 Úvod'!$J$19-1,L29-L14,0) -> 349342678.5 | M42: =IF(M39<='0 Úvod'!$G$19+'0 Úvod'!$J$19-1,M29-M14,0) -> 452067086.5 | N42: =IF(N39<='0 Úvod'!$G$19+'0 Úvod'!$J$19-1,N29-N14,0) -> 375449534.4 | O42: =IF(O39<='0 Úvod'!$G$19+'0 Úvod'!$J$19-1,O29-O14,0) -> 359098275.9 | P42: =IF(P39<='0 Úvod'!$G$19+'0 Úvod'!$J$19-1,P29-P14,0) -> 311269129.5 | Q42: =IF(Q39<='0 Úvod'!$G$19+'0 Úvod'!$J$19-1,Q29-Q14,0) -> 329936493.2 | R42: =IF(R39<='0 Úvod'!$G$19+'0 Úvod'!$J$19-1,R29-R14,0) -> 418700569.9 | S42: =IF(S39<='0 Úvod'!$G$19+'0 Úvod'!$J$19-1,S29-S14,0) -> 455048215
C43: Je snížení prov. nákladů plně kompenzováno snížením dotací | E43: =IF(E42>=E41,"ANO","NE") -> ANO | F43: =IF(F42>=F41,"ANO","NE") -> ANO | G43: ANO | H43: ANO | I43: ANO | J43: ANO | K43: ANO | L43: ANO | M43: ANO | N43: ANO | O43: ANO | P43: ANO | Q43: ANO | R43: ANO | S43: ANO
B44: K | C44: Čistá úspora provozních nákladů** | E44: =E42-E41 -> 52857212.05 | F44: 53156637.08 | G44: 53456062.11 | H44: 55688647.17 | I44: 55988072.19 | J44: 56287497.22 | K44: 56586922.25 | L44: 56886347.27 | M44: 57185772.3 | N44: 57485197.33 | O44: 57784622.36 | P44: 58084047.38 | Q44: 58383472.41 | R44: 58682897.44 | S44: 58982322.47
B47: Komentáře
B49: * tržby hrazené přímo uživateli, v souladu s čl. 61 (Operace, které po dokončení vytvářejí čistý příjem) Nařízení (EU) č. 1303/2013 a přílohou V Nařízení (EU) č. 1303/2013 a oddílem III Nařízení Komise v přenesené pravomoci (EU) č. 480/2014,
B50: v němž jsou stanovena pravidla pro výpočet diskontovaného čistého příjmu z operací vytvářejících čistý příjem
B51: **rozdíl mezi poklesem provozních nákladů a poklesem provozních dotací

Sheet 7 Mezera ve financování
B2: 7.1. | C2: Kalkulace finanční mezery a přidělení | E2: ='0 Úvod'!G19 -> 2009 | F2: =E2+1 -> 2010 | G2: 2011 | H2: 2012 | I2: 2013 | J2: 2014 | K2: 2015 | L2: 2016 | M2: 2017 | N2: 2018 | O2: 2019 | P2: 2020 | Q2: 2021 | R2: 2022 | S2: 2023
B3: a | C3: grantu EU (CZK) | D3: Celkem (disk.)
B4: A | C4: Investiční náklady (DIC) (z FA) | D4: =E4+NPV(D9,F4:S4,E14:S14) -> 2.057202206e+10 | E4: ='5 Finanční analýza (FRR_C)'!E7 -> 1821800583 | F4: ='5 Finanční analýza (FRR_C)'!F7 -> 2911281210 | G4: ='5 Finanční analýza (FRR_C)'!G7 -> 2610955272 | H4: ='5 Finanční analýza (FRR_C)'!H7 -> 1502053610 | I4: ='5 Finanční analýza (FRR_C)'!I7 -> 655394015.6 | J4: ='5 Finanční analýza (FRR_C)'!J7 -> 695322644.9 | K4: ='5 Finanční analýza (FRR_C)'!K7 -> 1345771892 | L4: ='5 Finanční analýza (FRR_C)'!L7 -> 1248507209 | M4: ='5 Finanční analýza (FRR_C)'!M7 -> 2711011166 | N4: ='5 Finanční analýza (FRR_C)'!N7 -> 2128055476 | O4: ='5 Finanční analýza (FRR_C)'!O7 -> 2873078838 | P4: ='5 Finanční analýza (FRR_C)'!P7 -> 2144223129 | Q4: ='5 Finanční analýza (FRR_C)'!Q7 -> 1284358018 | R4: ='5 Finanční analýza (FRR_C)'!R7 -> 1361400949 | S4: ='5 Finanční analýza (FRR_C)'!S7 -> 1087244660
B5: B | C5: Přírůstkové celkové provozní příjmy** | D5: =E5+NPV(D9,F5:S5,E15:S15) -> 41876306.69 | E5: =IF(E2<='0 Úvod'!$G$19+'0 Úvod'!$J$19-1,('4 Tržby'!E34+'4 Tržby'!E35),0) -> -58482914.55 | F5: =IF(F2<='0 Úvod'!$G$19+'0 Úvod'!$J$19-1,('4 Tržby'!F34+'4 Tržby'!F35),0) -> -57294236.07 | G5: =IF(G2<='0 Úvod'!$G$19+'0 Úvod'!$J$19-1,('4 Tržby'!G34+'4 Tržby'!G35),0) -> -44802775.59 | H5: =IF(H2<='0 Úvod'!$G$19+'0 Úvod'!$J$19-1,('4 Tržby'!H34+'4 Tržby'!H35),0) -> -54172897.75 | I5: =IF(I2<='0 Úvod'!$G$19+'0 Úvod'!$J$19-1,('4 Tržby'!I34+'4 Tržby'!I35),0) -> -42140293.91 | J5: =IF(J2<='0 Úvod'!$G$19+'0 Úvod'!$J$19-1,('4 Tržby'!J34+'4 Tržby'!J35),0) -> -40115941.19 | K5: =IF(K2<='0 Úvod'!$G$19+'0 Úvod'!$J$19-1,('4 Tržby'!K34+'4 Tržby'!K35),0) -> -43863102.69 | L5: =IF(L2<='0 Úvod'!$G$19+'0 Úvod'!$J$19-1,('4 Tržby'!L34+'4 Tržby'!L35),0) -> -333226.3257 | M5: =IF(M2<='0 Úvod'!$G$19+'0 Úvod'!$J$19-1,('4 Tržby'!M34+'4 Tržby'!M35),0) -> -5055764.707 | N5: =IF(N2<='0 Úvod'!$G$19+'0 Úvod'!$J$19-1,('4 Tržby'!N34+'4 Tržby'!N35),0) -> -4599794.26 | O5: =IF(O2<='0 Úvod'!$G$19+'0 Úvod'!$J$19-1,('4 Tržby'!O34+'4 Tržby'!O35),0) -> -2326708.881 | P5: =IF(P2<='0 Úvod'!$G$19+'0 Úvod'!$J$19-1,('4 Tržby'!P34+'4 Tržby'!P35),0) -> -1927108.113 | Q5: =IF(Q2<='0 Úvod'!$G$19+'0 Úvod'!$J$19-1,('4 Tržby'!Q34+'4 Tržby'!Q35),0) -> -1527507.346 | R5: =IF(R2<='0 Úvod'!$G$19+'0 Úvod'!$J$19-1,('4 Tržby'!R34+'4 Tržby'!R35),0) -> -1127906.578 | S5: =IF(S2<='0 Úvod'!$G$19+'0 Úvod'!$J$19-1,('4 Tržby'!S34+'4 Tržby'!S35),0) -> -728305.8106
B6: C | C6: Přírůstkové celkové provozní náklady* | D6: =E6+NPV(D9,F6:S6,E16:S16) -> -5973807993 | E6: ='5 Finanční analýza (FRR_C)'!E6 -> -253338589 | F6: ='5 Finanční analýza (FRR_C)'!F6 -> -90124768.03 | G6: ='5 Finanční analýza (FRR_C)'!G6 -> -110348658.1 | H6: ='5 Finanční analýza (FRR_C)'!H6 -> -1223053160 | I6: ='5 Finanční analýza (FRR_C)'!I6 -> -227160999.7 | J6: ='5 Finanční analýza (FRR_C)'!J6 -> -252464393.2 | K6: ='5 Finanční analýza (FRR_C)'!K6 -> -110615251.8 | L6: ='5 Finanční analýza (FRR_C)'!L6 -> -178038906.2 | M6: ='5 Finanční analýza (FRR_C)'!M6 -> -216670438.2 | N6: ='5 Finanční analýza (FRR_C)'!N6 -> -264802830.3 | O6: ='5 Finanční analýza (FRR_C)'!O6 -> -395516417.3 | P6: ='5 Finanční analýza (FRR_C)'!P6 -> -303289289.8 | Q6: ='5 Finanční analýza (FRR_C)'!Q6 -> -354192294.1 | R6: ='5 Finanční analýza (FRR_C)'!R6 -> -413745062.1 | S6: ='5 Finanční analýza (FRR_C)'!S6 -> -129870112.1
B7: D | C7: Čisté provozní příjmy | D7: =E7+NPV(D9,F7:S7,E17:S17) -> 6015684300 | E7: =E5-E6 -> 194855674.4 | F7: =F5-F6 -> 32830531.95 | G7: 65545882.56 | H7: 1168880262 | I7: 185020705.8 | J7: 212348452 | K7: 66752149.13 | L7: 177705679.8 | M7: 211614673.5 | N7: 260203036.1 | O7: 393189708.4 | P7: 301362181.7 | Q7: 352664786.7 | R7: 412617155.5 | S7: 129141806.3
B8: E | C8: Zůstatková hodnota investice | D8: =E8+NPV(D9,F8:S8,E18:S18) -> -2314754803 | E8: =IF(E2='0 Úvod'!$G$19+'0 Úvod'!$J$19-1,-1*'2 Zůstatková hodnota'!$I$7,0) -> 0 | F8: =IF(F2='0 Úvod'!$G$19+'0 Úvod'!$J$19-1,-1*'2 Zůstatková hodnota'!$I$7,0) -> 0 | G8: =IF(G2='0 Úvod'!$G$19+'0 Úvod'!$J$19-1,-1*'2 Zůstatková hodnota'!$I$7,0) -> 0 | H8: =IF(H2='0 Úvod'!$G$19+'0 Úvod'!$J$19-1,-1*'2 Zůstatková hodnota'!$I$7,0) -> 0 | I8: =IF(I2='0 Úvod'!$G$19+'0 Úvod'!$J$19-1,-1*'2 Zůstatková hodnota'!$I$7,0) -> 0 | J8: =IF(J2='0 Úvod'!$G$19+'0 Úvod'!$J$19-1,-1*'2 Zůstatková hodnota'!$I$7,0) -> 0 | K8: =IF(K2='0 Úvod'!$G$19+'0 Úvod'!$J$19-1,-1*'2 Zůstatková hodnota'!$I$7,0) -> 0 | L8: =IF(L2='0 Úvod'!$G$19+'0 Úvod'!$J$19-1,-1*'2 Zůstatková hodnota'!$I$7,0) -> 0 | M8: =IF(M2='0 Úvod'!$G$19+'0 Úvod'!$J$19-1,-1*'2 Zůstatková hodnota'!$I$7,0) -> 0 | N8: =IF(N2='0 Úvod'!$G$19+'0 Úvod'!$J$19-1,-1*'2 Zůstatková hodnota'!$I$7,0) -> 0 | O8: =IF(O2='0 Úvod'!$G$19+'0 Úvod'!$J$19-1,-1*'2 Zůstatková hodnota'!$I$7,0) -> 0 | P8: =IF(P2='0 Úvod'!$G$19+'0 Úvod'!$J$19-1,-1*'2 Zůstatková hodnota'!$I$7,0) -> 0 | Q8: =IF(Q2='0 Úvod'!$G$19+'0 Úvod'!$J$19-1,-1*'2 Zůstatková hodnota'!$I$7,0) -> 0 | R8: =IF(R2='0 Úvod'!$G$19+'0 Úvod'!$J$19-1,-1*'2 Zůstatková hodnota'!$I$7,0) -> 0 | S8: =IF(S2='0 Úvod'!$G$19+'0 Úvod'!$J$19-1,-1*'2 Zůstatková hodnota'!$I$7,0) -> 0
C9: Diskontní faktor | D9: ='0 Úvod'!D21 -> 0.04 | E9: 1 | F9: =1/(1+$D$9) -> 0.9615384615 | G9: =F9/(1+$D$9) -> 0.924556213 | H9: =G9/(1+$D$9) -> 0.8889963587 | I9: 0.854804191 | J9: 0.8219271068 | K9: 0.7903145257 | L9: 0.7599178132 | M9: 0.730690205 | N9: 0.7025867356 | O9: 0.6755641688 | P9: 0.6495809316 | Q9: 0.6245970496 | R9: 0.6005740861 | S9: 0.5774750828
B10: F | C10: Úspora provozních nákladů* | D10: =IF((E10+NPV(D9,F10:S10,E20:S20))<=0,0,IF(('6 Kontrola dotací'!E35+NPV(D9,'6 Kontrola dotací'!F35:AC35,'6 Kontrola dotací'!E42:AC42))>=(E10+NPV(D9,F10:S10,E20:S20)),0,-(E10+NPV(D9,F10:S10,E20:S20))+('6 Kontrola dotací'!E38+NPV(D9,'6 Kontrola dotací'!F38:AC38,'6 Kontrola dotací'!E45:AC45)))) -> 0 | E10: =IF(E2<='0 Úvod'!$G$19+'0 Úvod'!$J$19-1,'6 Kontrola dotací'!E34,0) -> 253338589 | F10: =IF(F2<='0 Úvod'!$G$19+'0 Úvod'!$J$19-1,'6 Kontrola dotací'!F34,0) -> 90124768.03 | G10: =IF(G2<='0 Úvod'!$G$19+'0 Úvod'!$J$19-1,'6 Kontrola dotací'!G34,0) -> 110348658.1 | H10: =IF(H2<='0 Úvod'!$G$19+'0 Úvod'!$J$19-1,'6 Kontrola dotací'!H34,0) -> 1223053160 | I10: =IF(I2<='0 Úvod'!$G$19+'0 Úvod'!$J$19-1,'6 Kontrola dotací'!I34,0) -> 227160999.7 | J10: =IF(J2<='0 Úvod'!$G$19+'0 Úvod'!$J$19-1,'6 Kontrola dotací'!J34,0) -> 252464393.2 | K10: =IF(K2<='0 Úvod'!$G$19+'0 Úvod'!$J$19-1,'6 Kontrola dotací'!K34,0) -> 110615251.8 | L10: =IF(L2<='0 Úvod'!$G$19+'0 Úvod'!$J$19-1,'6 Kontrola dotací'!L34,0) -> 178038906.2 | M10: =IF(M2<='0 Úvod'!$G$19+'0 Úvod'!$J$19-1,'6 Kontrola dotací'!M34,0) -> 216670438.2 | N10: =IF(N2<='0 Úvod'!$G$19+'0 Úvod'!$J$19-1,'6 Kontrola dotací'!N34,0) -> 264802830.3 | O10: =IF(O2<='0 Úvod'!$G$19+'0 Úvod'!$J$19-1,'6 Kontrola dotací'!O34,0) -> 395516417.3 | P10: =IF(P2<='0 Úvod'!$G$19+'0 Úvod'!$J$19-1,'6 Kontrola dotací'!P34,0) -> 303289289.8 | Q10: =IF(Q2<='0 Úvod'!$G$19+'0 Úvod'!$J$19-1,'6 Kontrola dotací'!Q34,0) -> 354192294.1 | R10: =IF(R2<='0 Úvod'!$G$19+'0 Úvod'!$J$19-1,'6 Kontrola dotací'!R34,0) -> 413745062.1 | S10: =IF(S2<='0 Úvod'!$G$19+'0 Úvod'!$J$19-1,'6 Kontrola dotací'!S34,0) -> 129870112.1
B12: 7.1. | C12: Kalkulace finanční mezery a přidělení | E12: =S2+1 -> 2024 | F12: =E12+1 -> 2025 | G12: 2026 | H12: 2027 | I12: 2028 | J12: 2029 | K12: 2030 | L12: 2031 | M12: 2032 | N12: 2033 | O12: 2034 | P12: 2035 | Q12: 2036 | R12: 2037 | S12: 2038
B13: b | C13: grantu EU (CZK)
B14: A | C14: Investiční náklady (DIC) (z FA) | E14: ='5 Finanční analýza (FRR_C)'!E19 -> 0 | F14: ='5 Finanční analýza (FRR_C)'!F19 -> 0 | G14: ='5 Finanční analýza (FRR_C)'!G19 -> 0 | H14: ='5 Finanční analýza (FRR_C)'!H19 -> 0 | I14: ='5 Finanční analýza (FRR_C)'!I19 -> 0 | J14: ='5 Finanční analýza (FRR_C)'!J19 -> 0 | K14: ='5 Finanční analýza (FRR_C)'!K19 -> 0 | L14: ='5 Finanční analýza (FRR_C)'!L19 -> 0 | M14: ='5 Finanční analýza (FRR_C)'!M19 -> 0 | N14: ='5 Finanční analýza (FRR_C)'!N19 -> 0 | O14: ='5 Finanční analýza (FRR_C)'!O19 -> 0 | P14: ='5 Finanční analýza (FRR_C)'!P19 -> 0 | Q14: ='5 Finanční analýza (FRR_C)'!Q19 -> 0 | R14: ='5 Finanční analýza (FRR_C)'!R19 -> 0 | S14: ='5 Finanční analýza (FRR_C)'!S19 -> 0
B15: B | C15: Přírůstkové celkové provozní příjmy** | E15: =IF(E12<='0 Úvod'!$G$19+'0 Úvod'!$J$19-1,('4 Tržby'!E41+'4 Tržby'!E42),0) -> 52857212.05 | F15: =IF(F12<='0 Úvod'!$G$19+'0 Úvod'!$J$19-1,('4 Tržby'!F41+'4 Tržby'!F42),0) -> 53156637.08 | G15: =IF(G12<='0 Úvod'!$G$19+'0 Úvod'!$J$19-1,('4 Tržby'!G41+'4 Tržby'!G42),0) -> 53456062.11 | H15: =IF(H12<='0 Úvod'!$G$19+'0 Úvod'!$J$19-1,('4 Tržby'!H41+'4 Tržby'!H42),0) -> 55688647.17 | I15: =IF(I12<='0 Úvod'!$G$19+'0 Úvod'!$J$19-1,('4 Tržby'!I41+'4 Tržby'!I42),0) -> 55988072.19 | J15: =IF(J12<='0 Úvod'!$G$19+'0 Úvod'!$J$19-1,('4 Tržby'!J41+'4 Tržby'!J42),0) -> 56287497.22 | K15: =IF(K12<='0 Úvod'!$G$19+'0 Úvod'!$J$19-1,('4 Tržby'!K41+'4 Tržby'!K42),0) -> 56586922.25 | L15: =IF(L12<='0 Úvod'!$G$19+'0 Úvod'!$J$19-1,('4 Tržby'!L41+'4 Tržby'!L42),0) -> 56886347.27 | M15: =IF(M12<='0 Úvod'!$G$19+'0 Úvod'!$J$19-1,('4 Tržby'!M41+'4 Tržby'!M42),0) -> 57185772.3 | N15: =IF(N12<='0 Úvod'!$G$19+'0 Úvod'!$J$19-1,('4 Tržby'!N41+'4 Tržby'!N42),0) -> 57485197.33 | O15: =IF(O12<='0 Úvod'!$G$19+'0 Úvod'!$J$19-1,('4 Tržby'!O41+'4 Tržby'!O42),0) -> 57784622.36 | P15: =IF(P12<='0 Úvod'!$G$19+'0 Úvod'!$J$19-1,('4 Tržby'!P41+'4 Tržby'!P42),0) -> 58084047.38 | Q15: =IF(Q12<='0 Úvod'!$G$19+'0 Úvod'!$J$19-1,('4 Tržby'!Q41+'4 Tržby'!Q42),0) -> 58383472.41 | R15: =IF(R12<='0 Úvod'!$G$19+'0 Úvod'!$J$19-1,('4 Tržby'!R41+'4 Tržby'!R42),0) -> 58682897.44 | S15: =IF(S12<='0 Úvod'!$G$19+'0 Úvod'!$J$19-1,('4 Tržby'!S41+'4 Tržby'!S42),0) -> 58982322.47
B16: C | C16: Přírůstkové celkové provozní náklady* | E16: ='5 Finanční analýza (FRR_C)'!E18 -> -1006667225 | F16: ='5 Finanční analýza (FRR_C)'!F18 -> -707793278.1 | G16: ='5 Finanční analýza (FRR_C)'!G18 -> -164067642.9 | H16: ='5 Finanční analýza (FRR_C)'!H18 -> -218735367.2 | I16: ='5 Finanční analýza (FRR_C)'!I18 -> -206256654.4 | J16: ='5 Finanční analýza (FRR_C)'!J18 -> -395493786.5 | K16: ='5 Finanční analýza (FRR_C)'!K18 -> -241790227.3 | L16: ='5 Finanční analýza (FRR_C)'!L18 -> -292456331.2 | M16: ='5 Finanční analýza (FRR_C)'!M18 -> -394881314.2 | N16: ='5 Finanční analýza (FRR_C)'!N18 -> -317964337.1 | O16: ='5 Finanční analýza (FRR_C)'!O18 -> -301313653.6 | P16: ='5 Finanční analýza (FRR_C)'!P18 -> -253185082.1 | Q16: ='5 Finanční analýza (FRR_C)'!Q18 -> -271553020.8 | R16: ='5 Finanční analýza (FRR_C)'!R18 -> -360017672.5 | S16: ='5 Finanční analýza (FRR_C)'!S18 -> -396065892.6
B17: D | C17: Čisté provozní příjmy | E17: =E15-E16 -> 1059524437 | F17: =F15-F16 -> 760949915.2 | G17: 217523705 | H17: 274424014.3 | I17: 262244726.6 | J17: 451781283.7 | K17: 298377149.5 | L17: 349342678.5 | M17: 452067086.5 | N17: 375449534.4 | O17: 359098275.9 | P17: 311269129.5 | Q17: 329936493.2 | R17: 418700569.9 | S17: 455048215
B18: E | C18: Zůstatková hodnota investice | E18: =IF(E12='0 Úvod'!$G$19+'0 Úvod'!$J$19-1,-1*'2 Zůstatková hodnota'!$I$7,0) -> 0 | F18: =IF(F12='0 Úvod'!$G$19+'0 Úvod'!$J$19-1,-1*'2 Zůstatková hodnota'!$I$7,0) -> 0 | G18: =IF(G12='0 Úvod'!$G$19+'0 Úvod'!$J$19-1,-1*'2 Zůstatková hodnota'!$I$7,0) -> 0 | H18: =IF(H12='0 Úvod'!$G$19+'0 Úvod'!$J$19-1,-1*'2 Zůstatková hodnota'!$I$7,0) -> 0 | I18: =IF(I12='0 Úvod'!$G$19+'0 Úvod'!$J$19-1,-1*'2 Zůstatková hodnota'!$I$7,0) -> 0 | J18: =IF(J12='0 Úvod'!$G$19+'0 Úvod'!$J$19-1,-1*'2 Zůstatková hodnota'!$I$7,0) -> 0 | K18: =IF(K12='0 Úvod'!$G$19+'0 Úvod'!$J$19-1,-1*'2 Zůstatková hodnota'!$I$7,0) -> 0 | L18: =IF(L12='0 Úvod'!$G$19+'0 Úvod'!$J$19-1,-1*'2 Zůstatková hodnota'!$I$7,0) -> 0 | M18: =IF(M12='0 Úvod'!$G$19+'0 Úvod'!$J$19-1,-1*'2 Zůstatková hodnota'!$I$7,0) -> 0 | N18: =IF(N12='0 Úvod'!$G$19+'0 Úvod'!$J$19-1,-1*'2 Zůstatková hodnota'!$I$7,0) -> 0 | O18: =IF(O12='0 Úvod'!$G$19+'0 Úvod'!$J$19-1,-1*'2 Zůstatková hodnota'!$I$7,0) -> 0 | P18: =IF(P12='0 Úvod'!$G$19+'0 Úvod'!$J$19-1,-1*'2 Zůstatková hodnota'!$I$7,0) -> 0 | Q18: =IF(Q12='0 Úvod'!$G$19+'0 Úvod'!$J$19-1,-1*'2 Zůstatková hodnota'!$I$7,0) -> 0 | R18: =IF(R12='0 Úvod'!$G$19+'0 Úvod'!$J$19-1,-1*'2 Zůstatková hodnota'!$I$7,0) -> 0 | S18: =IF(S12='0 Úvod'!$G$19+'0 Úvod'!$J$19-1,-1*'2 Zůstatková hodnota'!$I$7,0) -> -7218913428
C19: Diskontní faktor | D19: =D9 -> 0.04 | E19: =S9/(1+$D$9) -> 0.5552645027 | F19: =E19/(1+$D$9) -> 0.5339081757 | G19: =F19/(1+$D$9) -> 0.5133732459 | H19: 0.493628121 | I19: 0.474642424 | J19: 0.4563869462 | K19: 0.4388336021 | L19: 0.4219553867 | M19: 0.4057263333 | N19: 0.3901214743 | O19: 0.3751168023 | P19: 0.3606892329 | Q19: 0.3468165701 | R19: 0.3334774713 | S19: 0.3206514147
B20: F | C20: Úspora provozních nákladů* | E20: =IF(E12<='0 Úvod'!$G$19+'0 Úvod'!$J$19-1,'6 Kontrola dotací'!E41,0) -> 1006667225 | F20: =IF(F12<='0 Úvod'!$G$19+'0 Úvod'!$J$19-1,'6 Kontrola dotací'!F41,0) -> 707793278.1 | G20: =IF(G12<='0 Úvod'!$G$19+'0 Úvod'!$J$19-1,'6 Kontrola dotací'!G41,0) -> 164067642.9 | H20: =IF(H12<='0 Úvod'!$G$19+'0 Úvod'!$J$19-1,'6 Kontrola dotací'!H41,0) -> 218735367.2 | I20: =IF(I12<='0 Úvod'!$G$19+'0 Úvod'!$J$19-1,'6 Kontrola dotací'!I41,0) -> 206256654.4 | J20: =IF(J12<='0 Úvod'!$G$19+'0 Úvod'!$J$19-1,'6 Kontrola dotací'!J41,0) -> 395493786.5 | K20: =IF(K12<='0 Úvod'!$G$19+'0 Úvod'!$J$19-1,'6 Kontrola dotací'!K41,0) -> 241790227.3 | L20: =IF(L12<='0 Úvod'!$G$19+'0 Úvod'!$J$19-1,'6 Kontrola dotací'!L41,0) -> 292456331.2 | M20: =IF(M12<='0 Úvod'!$G$19+'0 Úvod'!$J$19-1,'6 Kontrola dotací'!M41,0) -> 394881314.2 | N20: =IF(N12<='0 Úvod'!$G$19+'0 Úvod'!$J$19-1,'6 Kontrola dotací'!N41,0) -> 317964337.1 | O20: =IF(O12<='0 Úvod'!$G$19+'0 Úvod'!$J$19-1,'6 Kontrola dotací'!O41,0) -> 301313653.6 | P20: =IF(P12<='0 Úvod'!$G$19+'0 Úvod'!$J$19-1,'6 Kontrola dotací'!P41,0) -> 253185082.1 | Q20: =IF(Q12<='0 Úvod'!$G$19+'0 Úvod'!$J$19-1,'6 Kontrola dotací'!Q41,0) -> 271553020.8 | R20: =IF(R12<='0 Úvod'!$G$19+'0 Úvod'!$J$19-1,'6 Kontrola dotací'!R41,0) -> 360017672.5 | S20: =IF(S12<='0 Úvod'!$G$19+'0 Úvod'!$J$19-1,'6 Kontrola dotací'!S41,0) -> 396065892.6
B23: 7.2. | C23: Kalkulace veřejného příspěvku (CZK) - stálé ceny | G23: CZK | H23: EUR | J23: Komentáře
C24: Způsobilé náklady*** | G24: ='1 Celkové investiční náklady'!F11*('1 Celkové investiční náklady'!E45/'1 Celkové investiční náklady'!F45) ->  | H24: =G24/'0 Úvod'!N19 ->  | J24: * v případě vynechání dle čl. 61 Nařízení (EU) č. 1303/2013, musí být poskytnuta ukázka úměrného snížení dotací na základě shody s hodnotami cash-flow z tabulky "Provozní náklady"
C25: Míra finanční mezery ((DIC bez rezervy- čisté příjmy)/DIC bez rezervy) | G25: =IF(D6>D5,1,IF(D6>0,ROUND((D4-(D5-D6)*('1 Celkové investiční náklady'!$E$45/'1 Celkové investiční náklady'!$F$45)+D8*('1 Celkové investiční náklady'!$E$45/'1 Celkové investiční náklady'!$F$45))/D4,4),IF(ROUND((D4-(D5-D10)*('1 Celkové investiční náklady'!$E$45/'1 Celkové investiční náklady'!$F$45)+D8)*('1 Celkové investiční náklady'!$E$45/'1 Celkové investiční náklady'!$F$45)/D4,4)>1,1,ROUND((D4-(D5-D10)*('1 Celkové investiční náklady'!$E$45/'1 Celkové investiční náklady'!$F$45)+D8*('1 Celkové investiční náklady'!$E$45/'1 Celkové investiční náklady'!$F$45))/D4,4)))) -> 
C26: Rozhodná částka (způsobilé náklady*R) | G26: =ROUND(G24*G25,0) ->  | H26: =G26/'0 Úvod'!N19 ->  | J26: ** tržby hrazené přímo uživateli, čl. 61 Nařízení (EU) č. 1303/2013 a příloha V Nařízení (EU) č. 1303/2013 a oddíl III Nařízení Komise v přenesené pravomoci (EU) č. 480/2014; příjmy jsou sníženy v poměru způsobilých nákladů
C27: Míra spolufinancování prioritních os (%) | G27: 0.85
C28: Příspěvek Společenství | G28: =FLOOR(G26*G27,1) ->  | H28: =G28/'0 Úvod'!N19 ->  | J28: *** jedná se o procentuální odhad způsobilých nákladů ve stálých cenách, který vychází ze skutečného poměru způsobilých a nezpůsobilých nákladů v běžných cenách z tabulky způsobilosti nákladů (list "1 Celkové investiční náklady" tabulka 1.2)
B30: 7.3. | C30: Kalkulace veřejného příspěvku (CZK) - běžné ceny | G30: CZK | H30: EUR
C31: Způsobilé náklady | G31: ='1 Celkové investiční náklady'!E45 -> 0 | H31: =G31/'0 Úvod'!N19 -> 0
C32: Míra finanční mezery ((DIC bez rezervy- čisté příjmy)/DIC bez rezervy) | G32: =G25 -> 
C33: Rozhodná částka (způsobilé náklady*R) | G33: =ROUND(G31*G32,0) ->  | H33: =G33/'0 Úvod'!N19 -> 
C34: Míra spolufinancování prioritních os (%) | G34: =G27 -> 0.85
C35: Příspěvek Společenství | G35: =FLOOR(G33*G34,2) ->  | H35: =G35/'0 Úvod'!N19 -> 

Sheet 8 Finanční struktura
B2: 8.1. | C2: Zdroje financování investičních nákladů (CZK) | D2: ='0 Úvod'!D19 -> 2016 | E2: ='0 Úvod'!G19 -> 2009 | F2: =E2+1 -> 2010 | G2: 2011 | H2: 2012 | I2: =H2+1 -> 2013 | J2: 2014 | K2: 2015 | L2: 2016 | M2: 2017 | N2: 2018 | O2: 2019 | P2: 2020 | Q2: 2021 | R2: 2022 | S2: 2023 | T2: Kontrolní suma*
B3: a | C3: Konstantní ceny | D3: Celkem
C4: Vlastní zdroje | D4: =SUM(E4:S4,E19:S19) -> 0
C5: Ostatní zdroje | D5: =SUM(E5:S5,E20:S20) -> 0
C6: Celkové zdroje žadatele | D6: 0 | E6: =E5+E4 -> 0 | F6: 0 | G6: 0 | H6: 0 | I6: 0 | J6: 0 | K6: 0 | L6: 0 | M6: 0 | N6: 0 | O6: =O5+O4 -> 0 | P6: 0 | Q6: 0 | R6: 0 | S6: =S5+S4 -> 0
C7: Úvěr (poskytnutý státní správou) | D7: 0
C8: Zdroje státního rozpočtu | D8: 0
C9: Národní zdroje | D9: 0 | E9: =E8+E7 -> 0 | F9: 0 | G9: 0 | H9: 0 | I9: 0 | J9: 0 | K9: 0 | L9: 0 | M9: 0 | N9: 0 | O9: 0 | P9: 0 | Q9: 0 | R9: 0 | S9: =S8+S7 -> 0
C10: Granty EU | D10: 0
C11: Celkové finanční zdroje (bez rezervy) | D11: 0 | E11: =E6+E9+E10 -> 0 | F11: =F6+F9+F10 -> 0 | G11: =G6+G9+G10 -> 0 | H11: 0 | I11: 0 | J11: 0 | K11: 0 | L11: 0 | M11: 0 | N11: 0 | O11: 0 | P11: 0 | Q11: 0 | R11: 0 | S11: =S6+S9+S10 -> 0 | T11: =IF(D11='1 Celkové investiční náklady'!F11,"OK","CHYBA!") -> CHYBA!
C12: Rezerva - vlastní zdroje | D12: 0
C13: Rezerva - EU granty | D13: 0
C14: Rezerva celkem | D14: 0 | E14: =E12+E13 -> 0 | F14: =F12+F13 -> 0 | G14: =G12+G13 -> 0 | H14: =H12+H13 -> 0 | I14: =I12+I13 -> 0 | J14: 0 | K14: 0 | L14: 0 | M14: 0 | N14: 0 | O14: 0 | P14: 0 | Q14: 0 | R14: 0 | S14: =S12+S13 -> 0
C15: Celkové finanční zdroje | D15: 0 | E15: =E11+E14 -> 0 | F15: =F11+F14 -> 0 | G15: =G11+G14 -> 0 | H15: =H11+H14 -> 0 | I15: =I11+I14 -> 0 | J15: 0 | K15: 0 | L15: 0 | M15: 0 | N15: 0 | O15: 0 | P15: 0 | Q15: 0 | R15: 0 | S15: =S11+S14 -> 0 | T15: =IF(D15='1 Celkové investiční náklady'!F13,"OK","CHYBA!") -> CHYBA!
B17: 8.1. | C17: Zdroje financování investičních nákladů (CZK) | D17: =D2 -> 2016 | E17: =S2+1 -> 2024 | F17: =E17+1 -> 2025 | G17: 2026 | H17: 2027 | I17: =H17+1 -> 2028 | J17: 2029 | K17: 2030 | L17: 2031 | M17: 2032 | N17: 2033 | O17: 2034 | P17: 2035 | Q17: 2036 | R17: 2037 | S17: 2038
B18: b | C18: Konstantní ceny
C19: Vlastní zdroje
C20: Ostatní zdroje
C21: Celkové zdroje žadatele | E21: =E20+E19 -> 0 | F21: 0 | G21: 0 | H21: 0 | I21: 0 | J21: 0 | K21: 0 | L21: 0 | M21: 0 | N21: 0 | O21: 0 | P21: 0 | Q21: 0 | R21: 0 | S21: =S20+S19 -> 0
C22: Úvěr (poskytnutý státní správou)
C23: Zdroje státního rozpočtu
C24: Národní zdroje | E24: =E23+E22 -> 0 | F24: 0 | G24: 0 | H24: 0 | I24: 0 | J24: 0 | K24: 0 | L24: 0 | M24: 0 | N24: 0 | O24: 0 | P24: 0 | Q24: 0 | R24: 0 | S24: =S23+S22 -> 0
C25: Granty EU
C26: Celkové finanční zdroje (bez rezervy) | E26: =E21+E24+E25 -> 0 | F26: 0 | G26: 0 | H26: 0 | I26: 0 | J26: 0 | K26: 0 | L26: 0 | M26: 0 | N26: 0 | O26: 0 | P26: 0 | Q26: 0 | R26: 0 | S26: =S21+S24+S25 -> 0
C27: Rezerva - vlastní zdroje
C28: Rezerva - EU granty
C29: Rezerva celkem | E29: =E27+E28 -> 0 | F29: =F27+F28 -> 0 | G29: =G27+G28 -> 0 | H29: =H27+H28 -> 0 | I29: =I27+I28 -> 0 | J29: 0 | K29: 0 | L29: 0 | M29: 0 | N29: 0 | O29: 0 | P29: 0 | Q29: 0 | R29: 0 | S29: =S27+S28 -> 0
C30: Celkové finanční zdroje | E30: =E26+E29 -> 0 | F30: =F26+F29 -> 0 | G30: =G26+G29 -> 0 | H30: =H26+H29 -> 0 | I30: =I26+I29 -> 0 | J30: 0 | K30: 0 | L30: 0 | M30: 0 | N30: 0 | O30: 0 | P30: 0 | Q30: 0 | R30: 0 | S30: =S26+S29 -> 0
B33: 8.2. | C33: Zdroje financování investičních nákladů (CZK) | E33: =E2 -> 2009 | F33: =E33+1 -> 2010 | G33: 2011 | H33: 2012 | I33: =H33+1 -> 2013 | J33: 2014 | K33: 2015 | L33: 2016 | M33: 2017 | N33: 2018 | O33: 2019 | P33: 2020 | Q33: 2021 | R33: 2022 | S33: 2023 | T33: Kontrolní suma*
B34: a | C34: Běžné ceny | D34: Celkem
C35: Vlastní zdroje | D35: =SUM(E35:S35,E50:S50) -> 0
C36: Ostatní zdroje | D36: =SUM(E36:S36,E51:S51) -> 0
C37: Celkové zdroje žadatele | D37: 0 | E37: =E36+E35 -> 0 | F37: =F36+F35 -> 0 | G37: =G36+G35 -> 0 | H37: =H36+H35 -> 0 | I37: =I36+I35 -> 0 | J37: 0 | K37: 0 | L37: 0 | M37: 0 | N37: 0 | O37: 0 | P37: 0 | Q37: 0 | R37: 0 | S37: =S36+S35 -> 0
C38: Úvěr (poskytnutý státní správou) | D38: 0
C39: Zdroje státního rozpočtu | D39: 0
C40: Národní zdroje | D40: 0 | E40: =E39+E38 -> 0 | F40: =F39+F38 -> 0 | G40: =G39+G38 -> 0 | H40: =H39+H38 -> 0 | I40: =I39+I38 -> 0 | J40: 0 | K40: 0 | L40: 0 | M40: 0 | N40: 0 | O40: 0 | P40: 0 | Q40: 0 | R40: 0 | S40: =S39+S38 -> 0
C41: Granty EU | D41: 0
C42: Celkové finanční zdroje (bez rezervy) | D42: 0 | E42: =E37+E40+E41 -> 0 | F42: =F37+F40+F41 -> 0 | G42: =G37+G40+G41 -> 0 | H42: =H37+H40+H41 -> 0 | I42: =I37+I40+I41 -> 0 | J42: 0 | K42: 0 | L42: 0 | M42: 0 | N42: 0 | O42: 0 | P42: 0 | Q42: 0 | R42: 0 | S42: =S37+S40+S41 -> 0 | T42: =IF(D42=('1 Celkové investiční náklady'!F45-'1 Celkové investiční náklady'!F40),"OK","CHYBA!") -> OK
C43: Rezerva - vlastní zdroje | D43: 0
C44: Rezerva - EU granty | D44: 0
C45: Rezerva celkem | D45: 0 | E45: =E43+E44 -> 0 | F45: =F43+F44 -> 0 | G45: =G43+G44 -> 0 | H45: =H43+H44 -> 0 | I45: =I43+I44 -> 0 | J45: 0 | K45: 0 | L45: 0 | M45: 0 | N45: 0 | O45: 0 | P45: 0 | Q45: 0 | R45: 0 | S45: =S43+S44 -> 0
C46: Celkové finanční zdroje | D46: 0 | E46: =E42+E45 -> 0 | F46: =F42+F45 -> 0 | G46: =G42+G45 -> 0 | H46: =H42+H45 -> 0 | I46: =I42+I45 -> 0 | J46: 0 | K46: 0 | L46: 0 | M46: 0 | N46: 0 | O46: 0 | P46: 0 | Q46: 0 | R46: 0 | S46: =S42+S45 -> 0 | T46: =IF(D46='1 Celkové investiční náklady'!F45,"OK","CHYBA!") -> OK
B48: 8.2. | C48: Zdroje financování investičních nákladů (CZK) | E48: =E17 -> 2024 | F48: =E48+1 -> 2025 | G48: 2026 | H48: 2027 | I48: =H48+1 -> 2028 | J48: 2029 | K48: 2030 | L48: 2031 | M48: 2032 | N48: 2033 | O48: 2034 | P48: 2035 | Q48: 2036 | R48: 2037 | S48: 2038
B49: b | C49: Běžné ceny
C50: Vlastní zdroje
C51: Ostatní zdroje
C52: Celkové zdroje žadatele | E52: =E51+E50 -> 0 | F52: =F51+F50 -> 0 | G52: =G51+G50 -> 0 | H52: =H51+H50 -> 0 | I52: =I51+I50 -> 0 | J52: 0 | K52: 0 | L52: 0 | M52: 0 | N52: 0 | O52: 0 | P52: 0 | Q52: 0 | R52: 0 | S52: =S51+S50 -> 0
C53: Úvěr (poskytnutý státní správou)
C54: Zdroje státního rozpočtu
C55: Národní zdroje | E55: =E54+E53 -> 0 | F55: =F54+F53 -> 0 | G55: =G54+G53 -> 0 | H55: =H54+H53 -> 0 | I55: =I54+I53 -> 0 | J55: 0 | K55: 0 | L55: 0 | M55: 0 | N55: 0 | O55: 0 | P55: 0 | Q55: 0 | R55: 0 | S55: =S54+S53 -> 0
C56: Granty EU
C57: Celkové finanční zdroje (bez rezervy) | E57: =E52+E55+E56 -> 0 | F57: =F52+F55+F56 -> 0 | G57: =G52+G55+G56 -> 0 | H57: =H52+H55+H56 -> 0 | I57: =I52+I55+I56 -> 0 | J57: 0 | K57: 0 | L57: 0 | M57: 0 | N57: 0 | O57: 0 | P57: 0 | Q57: 0 | R57: 0 | S57: =S52+S55+S56 -> 0
C58: Rezerva - vlastní zdroje
C59: Rezerva - EU granty
C60: Rezerva celkem | E60: =E58+E59 -> 0 | F60: =F58+F59 -> 0 | G60: =G58+G59 -> 0 | H60: =H58+H59 -> 0 | I60: =I58+I59 -> 0 | J60: 0 | K60: 0 | L60: 0 | M60: 0 | N60: 0 | O60: 0 | P60: 0 | Q60: 0 | R60: 0 | S60: =S58+S59 -> 0
C61: Celkové finanční zdroje | E61: =E57+E60 -> 0 | F61: =F57+F60 -> 0 | G61: =G57+G60 -> 0 | H61: =H57+H60 -> 0 | I61: =I57+I60 -> 0 | J61: 0 | K61: 0 | L61: 0 | M61: 0 | N61: 0 | O61: 0 | P61: 0 | Q61: 0 | R61: 0 | S61: =S57+S60 -> 0
B63: Komentáře
B65: * kontrola souladu celk. finančních zdrojů s celk. investičními náklady

Sheet 9 Udržitelnost
B2: 9.1. | C2: Udržitelnost projektu (CZK) | E2: ='0 Úvod'!G19 -> 2009 | F2: =E2+1 -> 2010 | G2: 2011 | H2: 2012 | I2: 2013 | J2: 2014 | K2: 2015 | L2: 2016 | M2: 2017 | N2: 2018 | O2: 2019 | P2: 2020 | Q2: 2021 | R2: 2022 | S2: 2023
B3: a | C3: Stálé ceny | D3: Total
C4: Provozní příjmy | D4: =SUM(E4:S4,E21:S21) -> 4925477977 | E4: ='4 Tržby'!E7 -> 92914842.79 | F4: ='4 Tržby'!F7 -> 91896080.6 | G4: ='4 Tržby'!G7 -> 103332120.6 | H4: ='4 Tržby'!H7 -> 92451210.81 | I4: ='4 Tržby'!I7 -> 104483814.6 | J4: ='4 Tržby'!J7 -> 108524827.3 | K4: ='4 Tržby'!K7 -> 104975277.7 | L4: ='4 Tržby'!L7 -> 149479850.2 | M4: ='4 Tržby'!M7 -> 152723121.1 | N4: ='4 Tržby'!N7 -> 153692693.2 | O4: ='4 Tržby'!O7 -> 156479380.3 | P4: ='4 Tržby'!P7 -> 157392582.7 | Q4: ='4 Tržby'!Q7 -> 158305785.1 | R4: ='4 Tržby'!R7 -> 159218987.5 | S4: ='4 Tržby'!S7 -> 160132190
C5: Úvěry | D5: =SUM(E5:S5,E22:S22) -> 0 | E5: ='8 Finanční struktura'!E7 -> 0 | F5: ='8 Finanční struktura'!F7 -> 0 | G5: ='8 Finanční struktura'!G7 -> 0 | H5: ='8 Finanční struktura'!H7 -> 0 | I5: ='8 Finanční struktura'!I7 -> 0 | J5: ='8 Finanční struktura'!J7 -> 0 | K5: ='8 Finanční struktura'!K7 -> 0 | L5: ='8 Finanční struktura'!L7 -> 0 | M5: ='8 Finanční struktura'!M7 -> 0 | N5: ='8 Finanční struktura'!N7 -> 0 | O5: ='8 Finanční struktura'!O7 -> 0 | P5: ='8 Finanční struktura'!P7 -> 0 | Q5: ='8 Finanční struktura'!Q7 -> 0 | R5: ='8 Finanční struktura'!R7 -> 0 | S5: ='8 Finanční struktura'!S7 -> 0
C6: Celkové zdroje žadatele | D6: 0 | E6: ='8 Finanční struktura'!E6 -> 0 | F6: ='8 Finanční struktura'!F6 -> 0 | G6: ='8 Finanční struktura'!G6 -> 0 | H6: ='8 Finanční struktura'!H6 -> 0 | I6: ='8 Finanční struktura'!I6 -> 0 | J6: ='8 Finanční struktura'!J6 -> 0 | K6: ='8 Finanční struktura'!K6 -> 0 | L6: ='8 Finanční struktura'!L6 -> 0 | M6: ='8 Finanční struktura'!M6 -> 0 | N6: ='8 Finanční struktura'!N6 -> 0 | O6: ='8 Finanční struktura'!O6 -> 0 | P6: ='8 Finanční struktura'!P6 -> 0 | Q6: ='8 Finanční struktura'!Q6 -> 0 | R6: ='8 Finanční struktura'!R6 -> 0 | S6: ='8 Finanční struktura'!S6 -> 0
C7: Zdroje státního rozpočtu | D7: 0 | E7: ='8 Finanční struktura'!E8 -> 0 | F7: ='8 Finanční struktura'!F8 -> 0 | G7: ='8 Finanční struktura'!G8 -> 0 | H7: ='8 Finanční struktura'!H8 -> 0 | I7: ='8 Finanční struktura'!I8 -> 0 | J7: ='8 Finanční struktura'!J8 -> 0 | K7: ='8 Finanční struktura'!K8 -> 0 | L7: ='8 Finanční struktura'!L8 -> 0 | M7: ='8 Finanční struktura'!M8 -> 0 | N7: ='8 Finanční struktura'!N8 -> 0 | O7: ='8 Finanční struktura'!O8 -> 0 | P7: ='8 Finanční struktura'!P8 -> 0 | Q7: ='8 Finanční struktura'!Q8 -> 0 | R7: ='8 Finanční struktura'!R8 -> 0 | S7: ='8 Finanční struktura'!S8 -> 0
C8: Granty EU | D8: 0 | E8: ='8 Finanční struktura'!E10 -> 0 | F8: ='8 Finanční struktura'!F10 -> 0 | G8: ='8 Finanční struktura'!G10 -> 0 | H8: ='8 Finanční struktura'!H10 -> 0 | I8: ='8 Finanční struktura'!I10 -> 0 | J8: ='8 Finanční struktura'!J10 -> 0 | K8: ='8 Finanční struktura'!K10 -> 0 | L8: ='8 Finanční struktura'!L10 -> 0 | M8: ='8 Finanční struktura'!M10 -> 0 | N8: ='8 Finanční struktura'!N10 -> 0 | O8: ='8 Finanční struktura'!O10 -> 0 | P8: ='8 Finanční struktura'!P10 -> 0 | Q8: ='8 Finanční struktura'!Q10 -> 0 | R8: ='8 Finanční struktura'!R10 -> 0 | S8: ='8 Finanční struktura'!S10 -> 0
C9: Dotace | D9: 2341746371 | E9: ='6 Kontrola dotací'!E7 -> 165720664.4 | F9: ='6 Kontrola dotací'!F7 -> 173078534.1 | G9: ='6 Kontrola dotací'!G7 -> 205765352.2 | H9: ='6 Kontrola dotací'!H7 -> 136452484.2 | I9: ='6 Kontrola dotací'!I7 -> 112527901.3 | J9: ='6 Kontrola dotací'!J7 -> 148095376.4 | K9: ='6 Kontrola dotací'!K7 -> 154027702.9 | L9: ='6 Kontrola dotací'!L7 -> 106841034.1 | M9: ='6 Kontrola dotací'!M7 -> 103597763.1 | N9: ='6 Kontrola dotací'!N7 -> 102628191 | O9: ='6 Kontrola dotací'!O7 -> 89843933.75 | P9: ='6 Kontrola dotací'!P7 -> 90957059.9 | Q9: ='6 Kontrola dotací'!Q7 -> 92119757.7 | R9: ='6 Kontrola dotací'!R7 -> 93333261.02 | S9: ='6 Kontrola dotací'!S7 -> 101634470.2
C10: Celkové příjmy | D10: 7267224348 | E10: =SUM(E4:E9) -> 258635507.2 | F10: =SUM(F4:F9) -> 264974614.7 | G10: 309097472.8 | H10: 228903695 | I10: 217011715.9 | J10: 256620203.6 | K10: 259002980.6 | L10: 256320884.3 | M10: 256320884.3 | N10: 256320884.3 | O10: 246323314 | P10: 248349642.6 | Q10: 250425542.8 | R10: 252552248.6 | S10: 261766660.1
C11: Celkové provozní náklady | D11: 7267224348 | E11: ='3 Provozní náklady'!E7 -> 258635507.2 | F11: ='3 Provozní náklady'!F7 -> 264974614.7 | G11: ='3 Provozní náklady'!G7 -> 309097472.8 | H11: ='3 Provozní náklady'!H7 -> 228903695 | I11: ='3 Provozní náklady'!I7 -> 217011715.9 | J11: ='3 Provozní náklady'!J7 -> 256620203.6 | K11: ='3 Provozní náklady'!K7 -> 259002980.6 | L11: ='3 Provozní náklady'!L7 -> 256320884.3 | M11: ='3 Provozní náklady'!M7 -> 256320884.3 | N11: ='3 Provozní náklady'!N7 -> 256320884.3 | O11: ='3 Provozní náklady'!O7 -> 246323314 | P11: ='3 Provozní náklady'!P7 -> 248349642.6 | Q11: ='3 Provozní náklady'!Q7 -> 250425542.8 | R11: ='3 Provozní náklady'!R7 -> 252552248.6 | S11: ='3 Provozní náklady'!S7 -> 261766660.1
C12: Celkové investiční náklady | D12: 2.638045867e+10 | E12: ='1 Celkové investiční náklady'!G11 -> 1821800583 | F12: ='1 Celkové investiční náklady'!H11 -> 2911281210 | G12: ='1 Celkové investiční náklady'!I11 -> 2610955272 | H12: ='1 Celkové investiční náklady'!J11 -> 1502053610 | I12: ='1 Celkové investiční náklady'!K11 -> 655394015.6 | J12: ='1 Celkové investiční náklady'!L11 -> 695322644.9 | K12: ='1 Celkové investiční náklady'!M11 -> 1345771892 | L12: ='1 Celkové investiční náklady'!N11 -> 1248507209 | M12: ='1 Celkové investiční náklady'!O11 -> 2711011166 | N12: ='1 Celkové investiční náklady'!P11 -> 2128055476 | O12: ='1 Celkové investiční náklady'!Q11 -> 2873078838 | P12: ='1 Celkové investiční náklady'!R11 -> 2144223129 | Q12: ='1 Celkové investiční náklady'!S11 -> 1284358018 | R12: ='1 Celkové investiční náklady'!T11 -> 1361400949 | S12: ='1 Celkové investiční náklady'!U11 -> 1087244660
C13: Splácení jistiny úvěru | D13: 0
C14: Splácení úroků z úvěru | D14: 0
C15: Celkové výdaje | D15: 3.364768302e+10 | E15: =SUM(E11:E14) -> 2080436090 | F15: =SUM(F11:F14) -> 3176255825 | G15: 2920052745 | H15: 1730957305 | I15: 872405731.6 | J15: 951942848.5 | K15: 1604774872 | L15: 1504828093 | M15: 2967332050 | N15: 2384376360 | O15: 3119402152 | P15: 2392572772 | Q15: 1534783560 | R15: 1613953197 | S15: 1349011320
C16: Cash Flow pro příslušný rok | D16: -2.638045867e+10 | E16: =E10-E15 -> -1821800583 | F16: -2911281210 | G16: -2610955272 | H16: -1502053610 | I16: -655394015.6 | J16: -695322644.9 | K16: -1345771892 | L16: -1248507209 | M16: -2711011166 | N16: -2128055476 | O16: -2873078838 | P16: -2144223129 | Q16: -1284358018 | R16: -1361400949 | S16: -1087244660
C17: Kumulované Cash Flow | E17: =E16 -> -1821800583 | F17: =F16+E17 -> -4733081793 | G17: =G16+F17 -> -7344037064 | H17: -8846090674 | I17: -9501484690 | J17: -1.019680733e+10 | K17: -1.154257923e+10 | L17: -1.279108643e+10 | M17: -1.55020976e+10 | N17: -1.763015308e+10 | O17: -2.050323191e+10 | P17: -2.264745504e+10 | Q17: -2.393181306e+10 | R17: -2.529321401e+10 | S17: -2.638045867e+10
B19: 9.1. | C19: Udržitelnost projektu (CZK) | E19: =S2+1 -> 2024 | F19: =E19+1 -> 2025 | G19: 2026 | H19: 2027 | I19: 2028 | J19: 2029 | K19: 2030 | L19: 2031 | M19: 2032 | N19: 2033 | O19: 2034 | P19: 2035 | Q19: 2036 | R19: 2037 | S19: 2038
B20: b | C20: Stálé ceny
C21: Provozní příjmy | E21: ='4 Tržby'!E14 -> 195716689.6 | F21: ='4 Tržby'!F14 -> 196133116.9 | G21: ='4 Tržby'!G14 -> 196549544.2 | H21: ='4 Tržby'!H14 -> 196965971.5 | I21: ='4 Tržby'!I14 -> 197382398.9 | J21: ='4 Tržby'!J14 -> 197798826.2 | K21: ='4 Tržby'!K14 -> 198215253.5 | L21: ='4 Tržby'!L14 -> 198631680.8 | M21: ='4 Tržby'!M14 -> 199048108.1 | N21: ='4 Tržby'!N14 -> 199464535.4 | O21: ='4 Tržby'!O14 -> 199880962.8 | P21: ='4 Tržby'!P14 -> 200297390.1 | Q21: ='4 Tržby'!Q14 -> 200713817.4 | R21: ='4 Tržby'!R14 -> 201130244.7 | S21: ='4 Tržby'!S14 -> 201546672
C22: Úvěry | E22: ='8 Finanční struktura'!E22 -> 0 | F22: ='8 Finanční struktura'!F22 -> 0 | G22: ='8 Finanční struktura'!G22 -> 0 | H22: ='8 Finanční struktura'!H22 -> 0 | I22: ='8 Finanční struktura'!I22 -> 0 | J22: ='8 Finanční struktura'!J22 -> 0 | K22: ='8 Finanční struktura'!K22 -> 0 | L22: ='8 Finanční struktura'!L22 -> 0 | M22: ='8 Finanční struktura'!M22 -> 0 | N22: ='8 Finanční struktura'!N22 -> 0 | O22: ='8 Finanční struktura'!O22 -> 0 | P22: ='8 Finanční struktura'!P22 -> 0 | Q22: ='8 Finanční struktura'!Q22 -> 0 | R22: ='8 Finanční struktura'!R22 -> 0 | S22: ='8 Finanční struktura'!S22 -> 0
C23: Celkové zdroje žadatele | E23: ='8 Finanční struktura'!E21 -> 0 | F23: ='8 Finanční struktura'!F21 -> 0 | G23: ='8 Finanční struktura'!G21 -> 0 | H23: ='8 Finanční struktura'!H21 -> 0 | I23: ='8 Finanční struktura'!S21 -> 0 | J23: ='8 Finanční struktura'!T21 -> 0 | K23: ='8 Finanční struktura'!U21 -> 0 | L23: ='8 Finanční struktura'!V21 -> 0 | M23: ='8 Finanční struktura'!W21 -> 0 | N23: ='8 Finanční struktura'!X21 -> 0 | O23: ='8 Finanční struktura'!Y21 -> 0 | P23: ='8 Finanční struktura'!Z21 -> 0 | Q23: ='8 Finanční struktura'!AA21 -> 0 | R23: ='8 Finanční struktura'!AB21 -> 0 | S23: ='8 Finanční struktura'!AC21 -> 0
C24: Zdroje státního rozpočtu | E24: ='8 Finanční struktura'!E23 -> 0 | F24: ='8 Finanční struktura'!F23 -> 0 | G24: ='8 Finanční struktura'!G23 -> 0 | H24: ='8 Finanční struktura'!H23 -> 0 | I24: ='8 Finanční struktura'!S23 -> 0 | J24: ='8 Finanční struktura'!T23 -> 0 | K24: ='8 Finanční struktura'!U23 -> 0 | L24: ='8 Finanční struktura'!V23 -> 0 | M24: ='8 Finanční struktura'!W23 -> 0 | N24: ='8 Finanční struktura'!X23 -> 0 | O24: ='8 Finanční struktura'!Y23 -> 0 | P24: ='8 Finanční struktura'!Z23 -> 0 | Q24: ='8 Finanční struktura'!AA23 -> 0 | R24: ='8 Finanční struktura'!AB23 -> 0 | S24: ='8 Finanční struktura'!AC23 -> 0
C25: Granty EU | E25: ='8 Finanční struktura'!E25 -> 0 | F25: ='8 Finanční struktura'!F25 -> 0 | G25: ='8 Finanční struktura'!G25 -> 0 | H25: ='8 Finanční struktura'!H25 -> 0 | I25: ='8 Finanční struktura'!S25 -> 0 | J25: ='8 Finanční struktura'!T25 -> 0 | K25: ='8 Finanční struktura'!U25 -> 0 | L25: ='8 Finanční struktura'!V25 -> 0 | M25: ='8 Finanční struktura'!W25 -> 0 | N25: ='8 Finanční struktura'!X25 -> 0 | O25: ='8 Finanční struktura'!Y25 -> 0 | P25: ='8 Finanční struktura'!Z25 -> 0 | Q25: ='8 Finanční struktura'!AA25 -> 0 | R25: ='8 Finanční struktura'!AB25 -> 0 | S25: ='8 Finanční struktura'!AC25 -> 0
C26: Dotace | E26: ='6 Kontrola dotací'!E14 -> 18937317.6 | F26: ='6 Kontrola dotací'!F14 -> 20583816.56 | G26: ='6 Kontrola dotací'!G14 -> 22265371.55 | H26: ='6 Kontrola dotací'!H14 -> 23982776.39 | I26: ='6 Kontrola dotací'!I14 -> 25736844.33 | J26: ='6 Kontrola dotací'!J14 -> 27528408.54 | K26: ='6 Kontrola dotací'!K14 -> 29078396.29 | L26: ='6 Kontrola dotací'!L14 -> 30655011.69 | M26: ='6 Kontrola dotací'!M14 -> 32258723.8 | N26: ='6 Kontrola dotací'!N14 -> 33890010.72 | O26: ='6 Kontrola dotací'!O14 -> 35549359.82 | P26: ='6 Kontrola dotací'!P14 -> 37237267.87 | Q26: ='6 Kontrola dotací'!Q14 -> 39826672.09 | R26: ='6 Kontrola dotací'!R14 -> 42458744.32 | S26: ='6 Kontrola dotací'!S14 -> 45134163.44
C27: Celkové příjmy | E27: =SUM(E21:E26) -> 214654007.2 | F27: =SUM(F21:F26) -> 216716933.5 | G27: 218814915.8 | H27: 220948747.9 | I27: 223119243.2 | J27: 225327234.7 | K27: 227293649.8 | L27: 229286692.5 | M27: 231306831.9 | N27: 233354546.2 | O27: 235430322.6 | P27: 237534657.9 | Q27: 240540489.5 | R27: 243588989 | S27: 246680835.5
C28: Celkové provozní náklady | E28: ='3 Provozní náklady'!E14 -> 214654007.2 | F28: ='3 Provozní náklady'!F14 -> 216716933.5 | G28: ='3 Provozní náklady'!G14 -> 218814915.8 | H28: ='3 Provozní náklady'!H14 -> 220948747.9 | I28: ='3 Provozní náklady'!I14 -> 223119243.2 | J28: ='3 Provozní náklady'!J14 -> 225327234.7 | K28: ='3 Provozní náklady'!K14 -> 227293649.8 | L28: ='3 Provozní náklady'!L14 -> 229286692.5 | M28: ='3 Provozní náklady'!M14 -> 231306831.9 | N28: ='3 Provozní náklady'!N14 -> 233354546.2 | O28: ='3 Provozní náklady'!O14 -> 235430322.6 | P28: ='3 Provozní náklady'!P14 -> 237534657.9 | Q28: ='3 Provozní náklady'!Q14 -> 240540489.5 | R28: ='3 Provozní náklady'!R14 -> 243588989 | S28: ='3 Provozní náklady'!S14 -> 246680835.5
C29: Celkové investiční náklady | E29: ='1 Celkové investiční náklady'!G26 -> 0 | F29: ='1 Celkové investiční náklady'!H26 -> 0 | G29: ='1 Celkové investiční náklady'!I26 -> 0 | H29: ='1 Celkové investiční náklady'!J26 -> 0 | I29: ='1 Celkové investiční náklady'!K26 -> 0 | J29: ='1 Celkové investiční náklady'!L26 -> 0 | K29: ='1 Celkové investiční náklady'!M26 -> 0 | L29: ='1 Celkové investiční náklady'!N26 -> 0 | M29: ='1 Celkové investiční náklady'!O26 -> 0 | N29: ='1 Celkové investiční náklady'!P26 -> 0 | O29: ='1 Celkové investiční náklady'!Q26 -> 0 | P29: ='1 Celkové investiční náklady'!R26 -> 0 | Q29: ='1 Celkové investiční náklady'!S26 -> 0 | R29: ='1 Celkové investiční náklady'!T26 -> 0 | S29: ='1 Celkové investiční náklady'!U26 -> 0
C30: Splácení jistiny úvěru
C31: Splácení úroků z úvěru
C32: Celkové výdaje | E32: =SUM(E28:E31) -> 214654007.2 | F32: =SUM(F28:F31) -> 216716933.5 | G32: 218814915.8 | H32: 220948747.9 | I32: 223119243.2 | J32: 225327234.7 | K32: 227293649.8 | L32: 229286692.5 | M32: 231306831.9 | N32: 233354546.2 | O32: 235430322.6 | P32: 237534657.9 | Q32: 240540489.5 | R32: 243588989 | S32: 246680835.5
C33: Cash Flow pro příslušný rok | E33: =E27-E32 -> 0 | F33: 0 | G33: 0 | H33: 0 | I33: 0 | J33: 0 | K33: 0 | L33: 0 | M33: 0 | N33: 0 | O33: 0 | P33: 0 | Q33: 0 | R33: 0 | S33: 0
C34: Kumulované Cash Flow | E34: =E33+S17 -> -2.638045867e+10 | F34: =F33+E34 -> -2.638045867e+10 | G34: =G33+F34 -> -2.638045867e+10 | H34: -2.638045867e+10 | I34: -2.638045867e+10 | J34: -2.638045867e+10 | K34: -2.638045867e+10 | L34: -2.638045867e+10 | M34: -2.638045867e+10 | N34: -2.638045867e+10 | O34: -2.638045867e+10 | P34: -2.638045867e+10 | Q34: -2.638045867e+10 | R34: -2.638045867e+10 | S34: -2.638045867e+10

Sheet 10 FRR_K
B2: 10.1. | C2: Kalkulace finančního vnitřního výnosového procenta | E2: ='0 Úvod'!G19 -> 2009 | F2: =E2+1 -> 2010 | G2: 2011 | H2: 2012 | I2: 2013 | J2: 2014 | K2: 2015 | L2: 2016 | M2: 2017 | N2: 2018 | O2: 2019 | P2: 2020 | Q2: 2021 | R2: 2022 | S2: 2023
B3: a | C3: kapitálu - FRR/K (CZK) | D3: Celkem
C4: Zůstatková hodnota | D4: =SUM(E4:S4,E16:S16) -> 7218913428 | E4: =-1*'5 Finanční analýza (FRR_C)'!E8 -> 0 | F4: =-1*'5 Finanční analýza (FRR_C)'!F8 -> 0 | G4: =-1*'5 Finanční analýza (FRR_C)'!G8 -> 0 | H4: =-1*'5 Finanční analýza (FRR_C)'!H8 -> 0 | I4: =-1*'5 Finanční analýza (FRR_C)'!I8 -> 0 | J4: =-1*'5 Finanční analýza (FRR_C)'!J8 -> 0 | K4: =-1*'5 Finanční analýza (FRR_C)'!K8 -> 0 | L4: =-1*'5 Finanční analýza (FRR_C)'!L8 -> 0 | M4: =-1*'5 Finanční analýza (FRR_C)'!M8 -> 0 | N4: =-1*'5 Finanční analýza (FRR_C)'!N8 -> 0 | O4: =-1*'5 Finanční analýza (FRR_C)'!O8 -> 0 | P4: =-1*'5 Finanční analýza (FRR_C)'!P8 -> 0 | Q4: =-1*'5 Finanční analýza (FRR_C)'!Q8 -> 0 | R4: =-1*'5 Finanční analýza (FRR_C)'!R8 -> 0 | S4: =-1*'5 Finanční analýza (FRR_C)'!S8 -> 0
C5: Přírůstek celkových provozních příjmů | D5: =SUM(E5:S5,E17:S17) -> 488997245.3 | E5: ='7 Mezera ve financování'!E5 -> -58482914.55 | F5: ='7 Mezera ve financování'!F5 -> -57294236.07 | G5: ='7 Mezera ve financování'!G5 -> -44802775.59 | H5: ='7 Mezera ve financování'!H5 -> -54172897.75 | I5: ='7 Mezera ve financování'!I5 -> -42140293.91 | J5: ='7 Mezera ve financování'!J5 -> -40115941.19 | K5: ='7 Mezera ve financování'!K5 -> -43863102.69 | L5: ='7 Mezera ve financování'!L5 -> -333226.3257 | M5: ='7 Mezera ve financování'!M5 -> -5055764.707 | N5: ='7 Mezera ve financování'!N5 -> -4599794.26 | O5: ='7 Mezera ve financování'!O5 -> -2326708.881 | P5: ='7 Mezera ve financování'!P5 -> -1927108.113 | Q5: ='7 Mezera ve financování'!Q5 -> -1527507.346 | R5: ='7 Mezera ve financování'!R5 -> -1127906.578 | S5: ='7 Mezera ve financování'!S5 -> -728305.8106
C6: Celkové příjmy | D6: =SUM(D4:D5) -> 7707910673 | E6: =SUM(E4:E5) -> -58482914.55 | F6: =SUM(F4:F5) -> -57294236.07 | G6: -44802775.59 | H6: -54172897.75 | I6: -42140293.91 | J6: -40115941.19 | K6: -43863102.69 | L6: -333226.3257 | M6: -5055764.707 | N6: -4599794.26 | O6: -2326708.881 | P6: -1927108.113 | Q6: -1527507.346 | R6: -1127906.578 | S6: -728305.8106
C7: Přírůstkové celkové provozní náklady* | D7: =SUM(E7:S7,E19:S19) -> 488997245.3 | E7: ='6 Kontrola dotací'!E37 -> -58482914.55 | F7: ='6 Kontrola dotací'!F37 -> -57294236.07 | G7: ='6 Kontrola dotací'!G37 -> -44802775.59 | H7: ='6 Kontrola dotací'!H37 -> -54172897.75 | I7: ='6 Kontrola dotací'!I37 -> -42140293.91 | J7: ='6 Kontrola dotací'!J37 -> -40115941.19 | K7: ='6 Kontrola dotací'!K37 -> -43863102.69 | L7: ='6 Kontrola dotací'!L37 -> -333226.3257 | M7: ='6 Kontrola dotací'!M37 -> -5055764.707 | N7: ='6 Kontrola dotací'!N37 -> -4599794.26 | O7: ='6 Kontrola dotací'!O37 -> -2326708.881 | P7: ='6 Kontrola dotací'!P37 -> -1927108.113 | Q7: ='6 Kontrola dotací'!Q37 -> -1527507.346 | R7: ='6 Kontrola dotací'!R37 -> -1127906.578 | S7: ='6 Kontrola dotací'!S37 -> -728305.8106
C8: Příspěvky žadatele + národní zdroje | D8: =SUM(E8:S8,E20:S20) -> 0 | E8: ='8 Finanční struktura'!E6+'8 Finanční struktura'!E9 -> 0 | F8: ='8 Finanční struktura'!F6+'8 Finanční struktura'!F9 -> 0 | G8: ='8 Finanční struktura'!G6+'8 Finanční struktura'!G9 -> 0 | H8: ='8 Finanční struktura'!H6+'8 Finanční struktura'!H9 -> 0 | I8: ='8 Finanční struktura'!I6+'8 Finanční struktura'!I9 -> 0 | J8: ='8 Finanční struktura'!J6+'8 Finanční struktura'!J9 -> 0 | K8: ='8 Finanční struktura'!K6+'8 Finanční struktura'!K9 -> 0 | L8: ='8 Finanční struktura'!L6+'8 Finanční struktura'!L9 -> 0 | M8: ='8 Finanční struktura'!M6+'8 Finanční struktura'!M9 -> 0 | N8: ='8 Finanční struktura'!N6+'8 Finanční struktura'!N9 -> 0 | O8: ='8 Finanční struktura'!O6+'8 Finanční struktura'!O9 -> 0 | P8: ='8 Finanční struktura'!P6+'8 Finanční struktura'!P9 -> 0 | Q8: ='8 Finanční struktura'!Q6+'8 Finanční struktura'!Q9 -> 0 | R8: ='8 Finanční struktura'!R6+'8 Finanční struktura'!R9 -> 0 | S8: ='8 Finanční struktura'!S6+'8 Finanční struktura'!S9 -> 0
C9: Celkové náklady | D9: =SUM(D7:D8) -> 488997245.3 | E9: =SUM(E7:E8) -> -58482914.55 | F9: -57294236.07 | G9: -44802775.59 | H9: -54172897.75 | I9: -42140293.91 | J9: -40115941.19 | K9: -43863102.69 | L9: -333226.3257 | M9: -5055764.707 | N9: -4599794.26 | O9: -2326708.881 | P9: -1927108.113 | Q9: -1527507.346 | R9: -1127906.578 | S9: -728305.8106
C10: Cash Flow | E10: =E6-E9 -> 0 | F10: 0 | G10: 0 | H10: 6.705522537e-08 | I10: 0 | J10: 0 | K10: 0 | L10: -1.490116119e-08 | M10: 0 | N10: 0 | O10: -1.490116119e-08 | P10: 1.490116119e-08 | Q10: 1.490116119e-08 | R10: 7.450580597e-09 | S10: 2.235174179e-08
C11: Diskontní sazba | D11: ='0 Úvod'!D21 -> 0.04 | E11: 1 | F11: =E11/(1+$D$11) -> 0.9615384615 | G11: =F11/(1+$D$11) -> 0.924556213 | H11: 0.8889963587 | I11: 0.854804191 | J11: 0.8219271068 | K11: 0.7903145257 | L11: 0.7599178132 | M11: 0.730690205 | N11: 0.7025867356 | O11: 0.6755641688 | P11: 0.6495809316 | Q11: 0.6245970496 | R11: 0.6005740861 | S11: 0.5774750828
C12: Diskontované cash flow | D12: =SUM(E12:S12,E24:S24) -> 2314754803 | E12: =E10*E11 -> 0 | F12: =F10*F11 -> 0 | G12: 0 | H12: 5.961185119e-08 | I12: 0 | J12: 0 | K12: 0 | L12: -1.132365783e-08 | M12: 0 | N12: 0 | O12: -1.006669058e-08 | P12: 9.67951017e-09 | Q12: 9.307221317e-09 | R12: 4.474625633e-09 | S12: 1.290757394e-08
B14: 10.1. | C14: =C2 -> Kalkulace finančního vnitřního výnosového procenta | E14: =S2+1 -> 2024 | F14: =E14+1 -> 2025 | G14: 2026 | H14: 2027 | I14: 2028 | J14: 2029 | K14: 2030 | L14: 2031 | M14: 2032 | N14: 2033 | O14: 2034 | P14: 2035 | Q14: 2036 | R14: 2037 | S14: 2038
B15: b | C15: =C3 -> kapitálu - FRR/K (CZK)
C16: =C4 -> Zůstatková hodnota | E16: =-1*'5 Finanční analýza (FRR_C)'!E20 -> 0 | F16: =-1*'5 Finanční analýza (FRR_C)'!F20 -> 0 | G16: =-1*'5 Finanční analýza (FRR_C)'!G20 -> 0 | H16: =-1*'5 Finanční analýza (FRR_C)'!H20 -> 0 | I16: =-1*'5 Finanční analýza (FRR_C)'!I20 -> 0 | J16: =-1*'5 Finanční analýza (FRR_C)'!J20 -> 0 | K16: =-1*'5 Finanční analýza (FRR_C)'!K20 -> 0 | L16: =-1*'5 Finanční analýza (FRR_C)'!L20 -> 0 | M16: =-1*'5 Finanční analýza (FRR_C)'!M20 -> 0 | N16: =-1*'5 Finanční analýza (FRR_C)'!N20 -> 0 | O16: =-1*'5 Finanční analýza (FRR_C)'!O20 -> 0 | P16: =-1*'5 Finanční analýza (FRR_C)'!P20 -> 0 | Q16: =-1*'5 Finanční analýza (FRR_C)'!Q20 -> 0 | R16: =-1*'5 Finanční analýza (FRR_C)'!R20 -> 0 | S16: =-1*'5 Finanční analýza (FRR_C)'!S20 -> 7218913428
C17: Přírůstek celkových provozních příjmů | E17: ='7 Mezera ve financování'!E15 -> 52857212.05 | F17: ='7 Mezera ve financování'!F15 -> 53156637.08 | G17: ='7 Mezera ve financování'!G15 -> 53456062.11 | H17: ='7 Mezera ve financování'!H15 -> 55688647.17 | I17: ='7 Mezera ve financování'!I15 -> 55988072.19 | J17: ='7 Mezera ve financování'!J15 -> 56287497.22 | K17: ='7 Mezera ve financování'!K15 -> 56586922.25 | L17: ='7 Mezera ve financování'!L15 -> 56886347.27 | M17: ='7 Mezera ve financování'!M15 -> 57185772.3 | N17: ='7 Mezera ve financování'!N15 -> 57485197.33 | O17: ='7 Mezera ve financování'!O15 -> 57784622.36 | P17: ='7 Mezera ve financování'!P15 -> 58084047.38 | Q17: ='7 Mezera ve financování'!Q15 -> 58383472.41 | R17: ='7 Mezera ve financování'!R15 -> 58682897.44 | S17: ='7 Mezera ve financování'!S15 -> 58982322.47
C18: Celkové příjmy | E18: =SUM(E16:E17) -> 52857212.05 | F18: =SUM(F16:F17) -> 53156637.08 | G18: 53456062.11 | H18: 55688647.17 | I18: 55988072.19 | J18: 56287497.22 | K18: 56586922.25 | L18: 56886347.27 | M18: 57185772.3 | N18: 57485197.33 | O18: 57784622.36 | P18: 58084047.38 | Q18: 58383472.41 | R18: 58682897.44 | S18: 7277895750
C19: Přírůstkové celkové provozní náklady* | E19: ='6 Kontrola dotací'!E44 -> 52857212.05 | F19: ='6 Kontrola dotací'!F44 -> 53156637.08 | G19: ='6 Kontrola dotací'!G44 -> 53456062.11 | H19: ='6 Kontrola dotací'!H44 -> 55688647.17 | I19: ='6 Kontrola dotací'!I44 -> 55988072.19 | J19: ='6 Kontrola dotací'!J44 -> 56287497.22 | K19: ='6 Kontrola dotací'!K44 -> 56586922.25 | L19: ='6 Kontrola dotací'!L44 -> 56886347.27 | M19: ='6 Kontrola dotací'!M44 -> 57185772.3 | N19: ='6 Kontrola dotací'!N44 -> 57485197.33 | O19: ='6 Kontrola dotací'!O44 -> 57784622.36 | P19: ='6 Kontrola dotací'!P44 -> 58084047.38 | Q19: ='6 Kontrola dotací'!Q44 -> 58383472.41 | R19: ='6 Kontrola dotací'!R44 -> 58682897.44 | S19: ='6 Kontrola dotací'!S44 -> 58982322.47
C20: Příspěvky žadatele + národní zdroje | E20: ='8 Finanční struktura'!E21+'8 Finanční struktura'!E24 -> 0 | F20: ='8 Finanční struktura'!F21+'8 Finanční struktura'!F24 -> 0 | G20: ='8 Finanční struktura'!G21+'8 Finanční struktura'!G24 -> 0 | H20: ='8 Finanční struktura'!H21+'8 Finanční struktura'!H24 -> 0 | I20: ='8 Finanční struktura'!I21+'8 Finanční struktura'!I24 -> 0 | J20: ='8 Finanční struktura'!J21+'8 Finanční struktura'!J24 -> 0 | K20: ='8 Finanční struktura'!K21+'8 Finanční struktura'!K24 -> 0 | L20: ='8 Finanční struktura'!L21+'8 Finanční struktura'!L24 -> 0 | M20: ='8 Finanční struktura'!M21+'8 Finanční struktura'!M24 -> 0 | N20: ='8 Finanční struktura'!N21+'8 Finanční struktura'!N24 -> 0 | O20: ='8 Finanční struktura'!O21+'8 Finanční struktura'!O24 -> 0 | P20: ='8 Finanční struktura'!P21+'8 Finanční struktura'!P24 -> 0 | Q20: ='8 Finanční struktura'!Q21+'8 Finanční struktura'!Q24 -> 0 | R20: ='8 Finanční struktura'!R21+'8 Finanční struktura'!R24 -> 0 | S20: ='8 Finanční struktura'!S21+'8 Finanční struktura'!S24 -> 0
C21: Celkové náklady | E21: =SUM(E19:E20) -> 52857212.05 | F21: 53156637.08 | G21: 53456062.11 | H21: 55688647.17 | I21: 55988072.19 | J21: 56287497.22 | K21: 56586922.25 | L21: 56886347.27 | M21: 57185772.3 | N21: 57485197.33 | O21: 57784622.36 | P21: 58084047.38 | Q21: 58383472.41 | R21: 58682897.44 | S21: 58982322.47
C22: Cash Flow | E22: =E18-E21 -> 0 | F22: 0 | G22: 0 | H22: 0 | I22: 0 | J22: 0 | K22: 0 | L22: 0 | M22: 0 | N22: 0 | O22: 0 | P22: 0 | Q22: 0 | R22: 0 | S22: 7218913428
C23: Diskontní sazba | D23: =D11 -> 0.04 | E23: =S11*1/(1+$D$11) -> 0.5552645027 | F23: =E23*1/(1+$D$11) -> 0.5339081757 | G23: =F23*1/(1+$D$11) -> 0.5133732459 | H23: 0.493628121 | I23: 0.474642424 | J23: 0.4563869462 | K23: 0.4388336021 | L23: 0.4219553867 | M23: 0.4057263333 | N23: 0.3901214743 | O23: 0.3751168023 | P23: 0.3606892329 | Q23: 0.3468165701 | R23: 0.3334774713 | S23: 0.3206514147
C24: Diskontované cash flow | E24: =E22*E23 -> 0 | F24: 0 | G24: 0 | H24: 0 | I24: 0 | J24: 0 | K24: 0 | L24: 0 | M24: 0 | N24: 0 | O24: 0 | P24: 0 | Q24: 0 | R24: 0 | S24: 2314754803
B26: Finanční vniřní výnosové procento kapitálu FRR/K** | E26: =ROUND(IRR((E10:S10,E22:S22),0.05),4) -> 15.6795 | G26: =IF('8 Finanční struktura'!T11="OK","","CHYBA!") -> CHYBA!
B27: Finanční čistá současná hodnota kapitálu FNPV/K (CZK) | E27: =SUM(E12:S12,E24:S24) -> 2314754803
B28: Finanční čistá současná hodnota kapitálu FNPV/K (EUR) | E28: =E27/'0 Úvod'!N19 -> 90208682.9
B30: Komentáře
B32: * čistá úspora prov. nákladů po odečtení úspory dotace (dle listu 6)
B33: ** pokud se zobrazí "CHYBA", zkonrolujte list 8 Finanční struktura
